Workbook

Sheet App.2-AA_Capital Projects
P1: File Number: | Q1: 0
P2: Exhibit:
P3: Tab:
P4: Schedule:
P5: Page:
P7: Date:
A9: Appendix 2-AA
A10: Capital Expenditure Table
A13: Projects ($M) | B13: =C13-1 -> 2020 | C13: 2021 | D13: 2022 | E13: 2023 | F13: 2024 | G13: 2025 | H13: 2026 | I13: 2027 | J13: 2028 | K13: 2029 | L13: 2030 | M13: 2031
A14: Reporting Basis | B14: MIFRS | C14: MIFRS | D14: MIFRS | E14: MIFRS | F14: MIFRS | G14: MIFRS | H14: MIFRS | I14: MIFRS | J14: MIFRS | K14: MIFRS | L14: MIFRS | M14: MIFRS
A15: System Access
A16: A1 Externally-Initiated Plant Relocation | B16: 6.52561596 | C16: 11.84794478 | D16: 15.06635884 | E16: 35.35415657 | F16: 15.3394257 | G16: 10.7083687 | H16: 6.611505504 | I16: 7.61705333 | J16: 8.69489379 | K16: 8.82523665 | L16: 9.02710522 | M16: 8.91344149
A17: A2 Customer & Generation Connections | B17: 11.18182154 | C17: 17.1019582 | D17: 16.11453686 | E17: 16.52124444 | F17: 10.89608922 | G17: 28.90318603 | H17: 12.596013 | I17: 16.78546671 | J17: 17.74759217 | K17: 18.68193308 | L17: 19.86727338 | M17: 20.34533024
A18: A3 System Expansion | B18: 3.14448326 | C18: 3.01041806 | D18: 10.1579325 | E18: 5.06193074 | F18: 16.32349017 | G18: 12.74315075 | H18: 24.89925495 | I18: 73.56139439 | J18: 37.2413927 | K18: 27.00484342 | L18: 32.2263113 | M18: 36.36632855
A19: A4 Metering & AMI 2.0 | B19: 1.24243119 | C19: 1.11458783 | D19: 0.84920536 | E19: 1.73597473 | F19: 2.17199279 | G19: 2.22185175 | H19: 1.609783107 | I19: 1.92941943 | J19: 2.40794997 | K19: 8.87187982 | L19: 9.07481531 | M19: 8.96055083
A21: System Access Gross Expenditures | B21: =SUM(B16:B20) -> 22.09435195 | C21: 33.07490887 | D21: 42.18803356 | E21: 58.67330648 | F21: 44.73099788 | G21: 54.57655723 | H21: 45.71655656 | I21: 99.89333386 | J21: 66.09182863 | K21: 63.38389297 | L21: 70.19550521 | M21: 74.58565111
A22: System Access Capital Contributions | B22: 15.07883769 | C22: 19.13523284 | D22: 22.44135703 | E22: 35.24706142 | F22: 22.92848655 | G22: 27.54978061 | H22: 21.56587528 | I22: 66.16735503 | J22: 40.26977829 | K22: 33.28395494 | L22: 37.86500589 | M22: 41.14853199
A23: Sub-Total | B23: =B21-B22 -> 7.015514257 | C23: 13.93967603 | D23: 19.74667653 | E23: =E21-E22 -> 23.42624506 | F23: =F21-F22 -> 21.80251133 | G23: =G21-G22 -> 27.02677662 | H23: =H21-H22 -> 24.15068128 | I23: 33.72597883 | J23: 25.82205034 | K23: 30.09993803 | L23: 32.33049932 | M23: 33.43711912
A24: System Renewal
A25: R1 Substation Renewal | B25: 3.572949245 | C25: 2.003897668 | D25: 4.631047192 | E25: 3.995621545 | F25: 8.46302655 | G25: 9.54012605 | H25: 13.6373647 | I25: 19.58161595 | J25: 26.55433645 | K25: 20.98426805 | L25: 24.309607 | M25: 18.45390871
A26: R2 Underground System Renewal | B26: 4.227519818 | C26: 6.903951563 | D26: 4.153529296 | E26: 1.8052116 | F26: 0.93151869 | G26: 2.0315605 | H26: 0 | I26: 0.71882569 | J26: 9.66491543 | K26: 16.65499278 | L26: 24.6159347 | M26: 32.49691876
A27: R3 Overhead System Renewal | B27: 4.570967844 | C27: 7.671487521 | D27: 7.234576994 | E27: 5.373416308 | F27: 4.78341286 | G27: 4.67595846 | H27: 1.007832001 | I27: 2.57962579 | J27: 10.3405975 | K27: 13.25427385 | L27: 14.74062467 | M27: 14.80248634
A28: R4 Reactive Capital | B28: 2.595350716 | C28: 1.91671448 | D28: 8.253932817 | E28: 6.507443757 | F28: 10.79319598 | G28: 12.81082595 | H28: 7.55714674 | I28: 8.429704 | J28: 7.096878 | K28: 5.13102298 | L28: 5.098226 | M28: 4.471657
A30: System Renewal Gross Expenditures | B30: =SUM(B25:B29) -> 14.96678762 | C30: 18.49605123 | D30: 24.2730863 | E30: 17.68169321 | F30: 24.97115408 | G30: 29.05847096 | H30: 22.20234344 | I30: 31.30977143 | J30: 53.65672738 | K30: 56.02455766 | L30: 68.76439237 | M30: 70.22497081
A31: System Renewal Capital Contributions | B31: 0 | C31: -0.81078 | D31: 0.011691 | E31: 0.41783751 | F31: 0.64558842 | G31: 0 | H31: 0 | I31: 0 | J31: 0 | K31: 0 | L31: 0 | M31: 0
A32: Sub-Total | B32: =B30-B31 -> 14.96678762 | C32: 19.30683123 | D32: 24.2613953 | E32: =E30-E31 -> 17.2638557 | F32: =F30-F31 -> 24.32556566 | G32: =G30-G31 -> 29.05847096 | H32: =H30-H31 -> 22.20234344 | I32: 31.30977143 | J32: 53.65672738 | K32: 56.02455766 | L32: 68.76439237 | M32: 70.22497081
A33: System Service
A34: S1 Substation Growth | B34: 4.373895684 | C34: 8.194861991 | D34: 17.45841837 | E34: 0.7760035232 | F34: 10.77159586 | G34: -0.17465537 | H34: 29.5337002 | I34: 35.81261481 | J34: 20.98702094 | K34: 30.63967592 | L34: 21.56212341 | M34: 38.32603898
A35: S2 Grid Enhancements | B35: 1.633678397 | C35: 4.152929238 | D35: 4.633930601 | E35: 4.066172327 | F35: 8.83949044 | G35: 12.45957215 | H35: 1.260383731 | I35: 8.75398474 | J35: 10.70491676 | K35: 9.07978041 | L35: 9.00119135 | M35: 30.26421126
A36: S3 Voltage & System Conversion | B36: 0.67780546 | C36: 0.96248975 | D36: 0.04652933 | E36: 0.00768232 | F36: 0.01457981 | G36: -0.17465357 | H36: 0 | I36: 0 | J36: 8.142826 | K36: 7.08419396 | L36: 4.83082527 | M36: 3.57749888
A39: System Service Gross Expenditures | B39: =SUM(B34:B38) -> 6.685379541 | C39: 13.31028098 | D39: 22.1388783 | E39: 4.84985817 | F39: 19.62566611 | G39: 12.11026321 | H39: 30.79408393 | I39: 44.56659955 | J39: 39.8347637 | K39: 46.80365029 | L39: 35.39414003 | M39: 72.16774912
A40: System Service Capital Contributions | B40: 0 | C40: 0.16766825 | D40: 0.11661418 | E40: 0.3229258 | F40: 2.19706892 | G40: 1.28339237 | H40: 5.03444632 | I40: 0 | J40: 0 | K40: 0 | L40: 0 | M40: 0
A41: Sub-Total | B41: =B39-B40 -> 6.685379541 | C41: 13.14261273 | D41: 22.02226412 | E41: =E39-E40 -> 4.52693237 | F41: =F39-F40 -> 17.42859719 | G41: =G39-G40 -> 10.82687084 | H41: =H39-H40 -> 25.75963761 | I41: 44.56659955 | J41: 39.8347637 | K41: 46.80365029 | L41: 35.39414003 | M41: 72.16774912
A42: General Plant
A43: P1 Facilities Management | B43: 0.7914561 | C43: 0.82835574 | D43: 5.36296863 | E43: 1.36617237 | F43: 0.67429331 | G43: 1.04341224 | H43: 0.5 | I43: 5.1731992 | J43: 1.9760832 | K43: 5.41831578 | L43: 1.40967956 | M43: 0.79386602
A44: P2 Fleet | B44: 0.80035162 | C44: 1.62622078 | D44: 2.32958714 | E44: 1.78774954 | F44: 1.23872808 | G44: 2.31230806 | H44: 1.74 | I44: 3.9678 | J44: 3.370896 | K44: 4.637444 | L44: 2.960364 | M44: 2.9093035
A45: P3 IT Systems | B45: 4.22830893 | C45: 2.7131131 | D45: 3.30150795 | E45: 3.03022182 | F45: 2.34894824 | G45: 1.26682651 | H45: 1.3294 | I45: 2.63874 | J45: 2.1216357 | K45: 1.9534039 | L45: 2.0411358 | M45: 1.49467537
A46: P4 Equipment | B46: 0.16256586 | C46: 0.17446065 | D46: 0.45894408 | E46: 0.43388371 | F46: 0.35508937 | G46: 0.99705211 | H46: 0.1920260557 | I46: 1.12537416 | J46: 1.26034992 | K46: 1.35116388 | L46: 0.83665337 | M46: 0.83419368
A47: P5 OT Systems | B47: 0.54002228 | C47: 1.69399115 | D47: 1.00703453 | E47: 0.78709225 | F47: 0.69562686 | G47: 1.00512556 | H47: 1.325 | I47: 0.82875 | J47: 1.69065 | K47: 3.4489 | L47: 5.2767 | M47: 6.27956875
A48: General Plant Gross Expenditures | B48: =SUM(B43:B47) -> 6.52270479 | C48: 7.03614142 | D48: 12.46004233 | E48: 7.40511969 | F48: 5.31268586 | G48: 6.62472448 | H48: 5.086426056 | I48: 13.73386336 | J48: 10.41961482 | K48: 16.80922756 | L48: 12.52453273 | M48: 12.31160732
A49: General Plant Capital Contributions | B49: 0 | C49: 0 | D49: 0.0812055 | E49: 0.07680905 | F49: 0 | G49: 0
A50: Sub-Total | B50: =B48-B49 -> 6.52270479 | C50: 7.03614142 | D50: 12.37883683 | E50: =E48-E49 -> 7.32831064 | F50: =F48-F49 -> 5.31268586 | G50: =G48-G49 -> 6.62472448 | H50: =H48-H49 -> 5.086426056 | I50: 13.73386336 | J50: 10.41961482 | K50: 16.80922756 | L50: 12.52453273 | M50: 12.31160732
A51: Miscellaneous(Renewables/Lease) | B51: -0.34427394 | C51: -0.15101554 | D51: =0.43/1000000 -> 4.3e-07
A52: Total | B52: =SUMPRODUCT(--($A15:$A51="Sub-Total"), B$15:B$51)+B51 -> 34.84611227 | C52: 53.27424587 | D52: 78.40917321 | E52: 52.54534377 | F52: 68.86936004 | G52: 73.5368429 | H52: 77.19908838 | I52: 123.3362132 | J52: 129.7331562 | K52: 149.7373735 | L52: 149.0135645 | M52: 188.1414464
A53: Less Renewable Generation Facility Assets and Other Non-Rate-Regulated Utility Assets (input as negative) | B53: 0.34427394 | C53: 0.10843166 | D53: =-0.43/1000000 -> -4.3e-07
A54: Total | B54: =B52+B53 -> 35.19038621 | C54: 53.38267753 | D54: 78.40917278 | E54: 52.54534377 | F54: 68.86936004 | G54: 73.5368429 | H54: 77.19908838 | I54: 123.3362132 | J54: 129.7331562 | K54: 149.7373735 | L54: 149.0135645 | M54: 188.1414464
A56: Notes:
A58: 1 Please provide a breakdown of the major components of each capital project undertaken in each year. Please ensure that all projects below the materiality threshold are included in the miscellaneous line. Add more projects as required.
A59: 2 The applicant should group projects appropriately and avoid presentations that result in classification of significant components of the capital budget in the miscellaneous category.
A60: 3 Utilities may add more rows as needed.

Sheet App.2-AB_Capital Expenditures
AW1: File Number: | AY1: 0
AW2: Exhibit:
AW3: Tab:
AW4: Schedule:
AW5: Page:
AW6: Date:
A7: Show RRR data | AS7: Capital Expenditures = In Service Additions | AY7: No
A8: Yes | AS8: ="Number of months of 'actual' data in bridge years ("&AO14&" & "&AR14&")" -> Number of months of 'actual' data in bridge years (2025 & 2026) | AY8: 12
A9: Appendix 2-AB
A10: Table 2 - Capital Expenditure Summary from Chapter 5 Consolidated Distribution System Plan Filing Requirements
A11: First year of Forecast Period:
A12: 2027
A13: CATEGORY | B13: Actual | AO13: Bridge Years | AU13: Forecast Period (planned)
B14: =E14-1 -> 2012 | E14: =H14-1 -> 2013 | H14: =K14-1 -> 2014 | K14: =N14-1 -> 2015 | N14: =Q14-1 -> 2016 | Q14: =T14-1 -> 2017 | T14: =W14-1 -> 2018 | W14: =Z14-1 -> 2019 | Z14: =AC14-1 -> 2020 | AC14: =AF14-1 -> 2021 | AF14: =AI14-1 -> 2022 | AI14: =AL14-1 -> 2023 | AL14: =AO14-1 -> 2024 | AO14: =AR14-1 -> 2025 | AR14: =AU14-1 -> 2026 | AU14: =A12 -> 2027 | AV14: =AU14+1 -> 2028 | AW14: =AV14+1 -> 2029 | AX14: =AW14+1 -> 2030 | AY14: 2031
B15: Plan | C15: Actual | D15: Var | E15: Plan | F15: Actual | G15: Var | H15: Plan | I15: Actual | J15: Var | K15: Plan | L15: Actual | M15: Var | N15: Plan | O15: Actual | P15: Var | Q15: Plan | R15: Actual | S15: Var | T15: Plan | U15: Actual | V15: Var | W15: Plan | X15: Actual | Y15: Var | Z15: Plan | AA15: Actual | AB15: Var | AC15: Plan | AD15: Actual | AE15: Var | AF15: Plan | AG15: Actual | AH15: Var | AI15: Plan | AJ15: Actual | AK15: Var | AL15: Plan | AM15: Actual | AN15: Var | AO15: Plan | AP15: Actual | AQ15: Var | AR15: Plan | AS15: Actual2 | AT15: Var
B16: $ '000 | D16: % | E16: $ '000 | G16: % | H16: $ '000 | J16: % | K16: $ '000 | M16: % | N16: $ '000 | P16: % | Q16: $ '000 | S16: % | T16: $ '000 | V16: % | W16: ($ in millions) | Y16: % | Z16: ($ in millions) | AB16: % | AC16: ($ in millions) | AE16: % | AF16: ($ in millions) | AH16: % | AI16: ($ in millions) | AK16: % | AL16: ($ in millions) | AN16: % | AO16: ($ in millions) | AQ16: % | AR16: ($ in millions) | AT16: % | AU16: ($ in millions)
A17: System Access | D17: =IF(ISERROR((C17-B17)/B17),"--",(C17-B17)/B17) -> -- | G17: =IF(ISERROR((F17-E17)/E17),"--",(F17-E17)/E17) -> -- | J17: =IF(ISERROR((I17-H17)/H17),"--",(I17-H17)/H17) -> -- | M17: =IF(ISERROR((L17-K17)/K17),"--",(L17-K17)/K17) -> -- | P17: =IF(ISERROR((O17-N17)/N17),"--",(O17-N17)/N17) -> -- | S17: =IF(ISERROR((R17-Q17)/Q17),"--",(R17-Q17)/Q17) -> -- | V17: =IF(ISERROR((U17-T17)/T17),"--",(U17-T17)/T17) -> -- | AA17: ='App.2-AA_Capital Projects'!B21 -> 22.09435195 | AB17: =IF(ISERROR((AA17-Z17)/Z17),"--",(AA17-Z17)/Z17) -> -- | AD17: ='App.2-AA_Capital Projects'!C21 -> 33.07490887 | AE17: =IF(ISERROR((AD17-AC17)/AC17),"--",(AD17-AC17)/AC17) -> -- | AG17: ='App.2-AA_Capital Projects'!D21 -> 42.18803356 | AH17: =IF(ISERROR((AG17-AF17)/AF17),"--",(AG17-AF17)/AF17) -> -- | AJ17: ='App.2-AA_Capital Projects'!E21 -> 58.67330648 | AK17: =IF(ISERROR((AJ17-AI17)/AI17),"--",(AJ17-AI17)/AI17) -> -- | AM17: ='App.2-AA_Capital Projects'!F21 -> 44.73099788 | AN17: =IF(ISERROR((AM17-AL17)/AL17),"--",(AM17-AL17)/AL17) -> -- | AP17: ='App.2-AA_Capital Projects'!G21 -> 54.57655723 | AQ17: =IF(ISERROR((AP17-AO17)/AO17),"--",(AP17-AO17)/AO17) -> -- | AR17: ='App.2-AA_Capital Projects'!H21 -> 45.71655656 | AT17: =IF(ISERROR((AS17-AR17)/AR17),"--",(AS17-AR17)/AR17) -> -1 | AU17: ='App.2-AA_Capital Projects'!I21 -> 99.89333386 | AV17: ='App.2-AA_Capital Projects'!J21 -> 66.09182863 | AW17: ='App.2-AA_Capital Projects'!K21 -> 63.38389297 | AX17: ='App.2-AA_Capital Projects'!L21 -> 70.19550521 | AY17: ='App.2-AA_Capital Projects'!M21 -> 74.58565111
A18: System Renewal | D18: =IF(ISERROR((C18-B18)/B18),"--",(C18-B18)/B18) -> -- | G18: =IF(ISERROR((F18-E18)/E18),"--",(F18-E18)/E18) -> -- | J18: =IF(ISERROR((I18-H18)/H18),"--",(I18-H18)/H18) -> -- | M18: =IF(ISERROR((L18-K18)/K18),"--",(L18-K18)/K18) -> -- | P18: =IF(ISERROR((O18-N18)/N18),"--",(O18-N18)/N18) -> -- | S18: =IF(ISERROR((R18-Q18)/Q18),"--",(R18-Q18)/Q18) -> -- | V18: =IF(ISERROR((U18-T18)/T18),"--",(U18-T18)/T18) -> -- | AA18: ='App.2-AA_Capital Projects'!B30 -> 14.96678762 | AB18: =IF(ISERROR((AA18-Z18)/Z18),"--",(AA18-Z18)/Z18) -> -- | AD18: ='App.2-AA_Capital Projects'!C30 -> 18.49605123 | AE18: =IF(ISERROR((AD18-AC18)/AC18),"--",(AD18-AC18)/AC18) -> -- | AG18: ='App.2-AA_Capital Projects'!D30 -> 24.2730863 | AH18: =IF(ISERROR((AG18-AF18)/AF18),"--",(AG18-AF18)/AF18) -> -- | AJ18: ='App.2-AA_Capital Projects'!E30 -> 17.68169321 | AK18: =IF(ISERROR((AJ18-AI18)/AI18),"--",(AJ18-AI18)/AI18) -> -- | AM18: ='App.2-AA_Capital Projects'!F30 -> 24.97115408 | AN18: =IF(ISERROR((AM18-AL18)/AL18),"--",(AM18-AL18)/AL18) -> -- | AP18: ='App.2-AA_Capital Projects'!G30 -> 29.05847096 | AQ18: =IF(ISERROR((AP18-AO18)/AO18),"--",(AP18-AO18)/AO18) -> -- | AR18: ='App.2-AA_Capital Projects'!H30 -> 22.20234344 | AT18: =IF(ISERROR((AS18-AR18)/AR18),"--",(AS18-AR18)/AR18) -> -1 | AU18: ='App.2-AA_Capital Projects'!I30 -> 31.30977143 | AV18: ='App.2-AA_Capital Projects'!J30 -> 53.65672738 | AW18: ='App.2-AA_Capital Projects'!K30 -> 56.02455766 | AX18: ='App.2-AA_Capital Projects'!L30 -> 68.76439237 | AY18: ='App.2-AA_Capital Projects'!M30 -> 70.22497081
A19: System Service | D19: -- | G19: -- | J19: -- | M19: -- | P19: -- | S19: -- | V19: -- | AA19: ='App.2-AA_Capital Projects'!B39 -> 6.685379541 | AB19: -- | AD19: ='App.2-AA_Capital Projects'!C39 -> 13.31028098 | AE19: -- | AG19: ='App.2-AA_Capital Projects'!D39 -> 22.1388783 | AH19: -- | AJ19: ='App.2-AA_Capital Projects'!E39 -> 4.84985817 | AK19: -- | AM19: ='App.2-AA_Capital Projects'!F39 -> 19.62566611 | AN19: -- | AP19: ='App.2-AA_Capital Projects'!G39 -> 12.11026321 | AQ19: -- | AR19: ='App.2-AA_Capital Projects'!H39 -> 30.79408393 | AT19: -1 | AU19: ='App.2-AA_Capital Projects'!I39 -> 44.56659955 | AV19: ='App.2-AA_Capital Projects'!J39 -> 39.8347637 | AW19: ='App.2-AA_Capital Projects'!K39 -> 46.80365029 | AX19: ='App.2-AA_Capital Projects'!L39 -> 35.39414003 | AY19: ='App.2-AA_Capital Projects'!M39 -> 72.16774912
A20: General Plant | D20: -- | G20: -- | J20: -- | M20: -- | P20: -- | S20: -- | V20: -- | AA20: ='App.2-AA_Capital Projects'!B48 -> 6.52270479 | AB20: -- | AD20: ='App.2-AA_Capital Projects'!C48 -> 7.03614142 | AE20: -- | AG20: ='App.2-AA_Capital Projects'!D48 -> 12.46004233 | AH20: -- | AJ20: ='App.2-AA_Capital Projects'!E48 -> 7.40511969 | AK20: -- | AM20: ='App.2-AA_Capital Projects'!F48 -> 5.31268586 | AN20: -- | AP20: ='App.2-AA_Capital Projects'!G48 -> 6.62472448 | AQ20: -- | AR20: ='App.2-AA_Capital Projects'!H48 -> 5.086426056 | AT20: -1 | AU20: ='App.2-AA_Capital Projects'!I48 -> 13.73386336 | AV20: ='App.2-AA_Capital Projects'!J48 -> 10.41961482 | AW20: ='App.2-AA_Capital Projects'!K48 -> 16.80922756 | AX20: ='App.2-AA_Capital Projects'!L48 -> 12.52453273 | AY20: ='App.2-AA_Capital Projects'!M48 -> 12.31160732
A21: Other (Miscellaneous) | D21: -- | G21: -- | J21: -- | M21: -- | P21: -- | S21: -- | V21: -- | AA21: ='App.2-AA_Capital Projects'!B51+'App.2-AA_Capital Projects'!B53 -> 0 | AB21: -- | AD21: ='App.2-AA_Capital Projects'!C51+'App.2-AA_Capital Projects'!C53 -> -0.04258388 | AE21: -- | AG21: ='App.2-AA_Capital Projects'!D51+'App.2-AA_Capital Projects'!D53 -> 0 | AH21: -- | AJ21: ='App.2-AA_Capital Projects'!E51 -> 0 | AK21: -- | AM21: ='App.2-AA_Capital Projects'!F51 -> 0 | AN21: -- | AP21: ='App.2-AA_Capital Projects'!G51 -> 0 | AQ21: -- | AR21: ='App.2-AA_Capital Projects'!H51 -> 0 | AT21: -- | AU21: ='App.2-AA_Capital Projects'!I51 -> 0 | AV21: ='App.2-AA_Capital Projects'!J51 -> 0 | AW21: ='App.2-AA_Capital Projects'!K51 -> 0 | AX21: ='App.2-AA_Capital Projects'!L51 -> 0 | AY21: ='App.2-AA_Capital Projects'!M51 -> 0
A22: TOTAL EXPENDITURE | B22: =SUM(B17:B20) -> 0 | D22: -- | E22: =SUM(E17:E20) -> 0 | G22: -- | H22: =SUM(H17:H20) -> 0 | J22: -- | K22: =SUM(K17:K20) -> 0 | M22: -- | N22: =SUM(N17:N20) -> 0 | P22: -- | Q22: =SUM(Q17:Q20) -> 0 | S22: -- | T22: =SUM(T17:T20) -> 0 | V22: -- | Z22: =SUM(Z17:Z20) -> 0 | AA22: =SUM(AA17:AA21) -> 50.2692239 | AB22: -- | AC22: =SUM(AC17:AC21) -> 0 | AD22: =SUM(AD17:AD21) -> 71.87479862 | AE22: -- | AF22: =SUM(AF17:AF21) -> 0 | AG22: =SUM(AG17:AG21) -> 101.0600405 | AH22: -- | AI22: =SUM(AI17:AI21) -> 0 | AJ22: =SUM(AJ17:AJ21) -> 88.60997755 | AK22: -- | AL22: =SUM(AL17:AL21) -> 0 | AM22: =SUM(AM17:AM21) -> 94.64050393 | AN22: -- | AO22: =SUM(AO17:AO21) -> 0 | AP22: =SUM(AP17:AP21) -> 102.3700159 | AQ22: -- | AR22: =SUM(AR17:AR21) -> 103.79941 | AS22: =SUM(AS17:AS21) -> 0 | AT22: -1 | AU22: =SUM(AU17:AU21) -> 189.5035682 | AV22: 170.0029345 | AW22: 183.0213285 | AX22: 186.8785703 | AY22: 229.2899784
A23: Capital Contributions | D23: -- | G23: -- | J23: -- | M23: -- | P23: -- | S23: -- | V23: -- | AA23: =('App.2-AA_Capital Projects'!B22+'App.2-AA_Capital Projects'!B31+'App.2-AA_Capital Projects'!B40+'App.2-AA_Capital Projects'!B49) -> 15.07883769 | AB23: -- | AD23: =('App.2-AA_Capital Projects'!C22+'App.2-AA_Capital Projects'!C31+'App.2-AA_Capital Projects'!C40+'App.2-AA_Capital Projects'!C49) -> 18.49212109 | AE23: -- | AG23: =('App.2-AA_Capital Projects'!D22+'App.2-AA_Capital Projects'!D31+'App.2-AA_Capital Projects'!D40+'App.2-AA_Capital Projects'!D49) -> 22.65086771 | AH23: -- | AJ23: =('App.2-AA_Capital Projects'!E22+'App.2-AA_Capital Projects'!E31+'App.2-AA_Capital Projects'!E40+'App.2-AA_Capital Projects'!E49) -> 36.06463378 | AK23: -- | AM23: =('App.2-AA_Capital Projects'!F22+'App.2-AA_Capital Projects'!F31+'App.2-AA_Capital Projects'!F40+'App.2-AA_Capital Projects'!F49) -> 25.77114389 | AN23: -- | AP23: =('App.2-AA_Capital Projects'!G22+'App.2-AA_Capital Projects'!G31+'App.2-AA_Capital Projects'!G40+'App.2-AA_Capital Projects'!G49) -> 28.83317298 | AQ23: -- | AR23: =('App.2-AA_Capital Projects'!H22+'App.2-AA_Capital Projects'!H31+'App.2-AA_Capital Projects'!H40+'App.2-AA_Capital Projects'!H49) -> 26.6003216 | AT23: -1 | AU23: =('App.2-AA_Capital Projects'!I22+'App.2-AA_Capital Projects'!I31+'App.2-AA_Capital Projects'!I40+'App.2-AA_Capital Projects'!I49) -> 66.16735503 | AV23: =('App.2-AA_Capital Projects'!J22+'App.2-AA_Capital Projects'!J31+'App.2-AA_Capital Projects'!J40+'App.2-AA_Capital Projects'!J49) -> 40.26977829 | AW23: =('App.2-AA_Capital Projects'!K22+'App.2-AA_Capital Projects'!K31+'App.2-AA_Capital Projects'!K40+'App.2-AA_Capital Projects'!K49) -> 33.28395494 | AX23: =('App.2-AA_Capital Projects'!L22+'App.2-AA_Capital Projects'!L31+'App.2-AA_Capital Projects'!L40+'App.2-AA_Capital Projects'!L49) -> 37.86500589 | AY23: =('App.2-AA_Capital Projects'!M22+'App.2-AA_Capital Projects'!M31+'App.2-AA_Capital Projects'!M40+'App.2-AA_Capital Projects'!M49) -> 41.14853199
A24: NET CAPITAL EXPENDITURES | B24: =B22-B23 -> 0 | D24: -- | E24: =E22-E23 -> 0 | G24: -- | H24: =H22-H23 -> 0 | J24: -- | K24: =K22-K23 -> 0 | M24: -- | N24: =N22-N23 -> 0 | P24: -- | Q24: =Q22-Q23 -> 0 | S24: -- | T24: =T22-T23 -> 0 | V24: -- | Z24: =Z22-Z23 -> 0 | AA24: =AA22-AA23 -> 35.19038621 | AB24: -- | AC24: =AC22-AC23 -> 0 | AD24: =AD22-AD23 -> 53.38267753 | AE24: -- | AF24: =AF22-AF23 -> 0 | AG24: =AG22-AG23 -> 78.40917278 | AH24: -- | AI24: =AI22-AI23 -> 0 | AJ24: =AJ22-AJ23 -> 52.54534377 | AK24: -- | AL24: =AL22-AL23 -> 0 | AM24: =AM22-AM23 -> 68.86936004 | AN24: -- | AO24: =AO22-AO23 -> 0 | AP24: =AP22-AP23 -> 73.5368429 | AQ24: -- | AR24: =AR22-AR23 -> 77.19908838 | AS24: =AS22-AS23 -> 0 | AT24: -1 | AU24: =AU22-AU23 -> 123.3362132 | AV24: 129.7331562 | AW24: 149.7373735 | AX24: 149.0135645 | AY24: 188.1414464
A25: CWIP | AA25: ='App.2-BA_Fixed Asset Cont'!G90/1000000 -> 31.34829361 | AD25: ='App.2-BA_Fixed Asset Cont'!G157/1000000 -> 37.9396418 | AG25: ='App.2-BA_Fixed Asset Cont'!G225/1000000 -> 31.77001131 | AJ25: ='App.2-BA_Fixed Asset Cont'!H295/1000000 -> 37.57885207 | AM25: ='App.2-BA_Fixed Asset Cont'!G364/1000000 -> 63.56656655 | AP25: ='App.2-BA_Fixed Asset Cont'!G433/1000000 -> 75.11290676 | AR25: ='App.2-BA_Fixed Asset Cont'!G501/1000000 -> 83.91022999 | AU25: ='App.2-BA_Fixed Asset Cont'!H568/1000000 -> 140.9447924 | AV25: ='App.2-BA_Fixed Asset Cont'!G635/1000000 -> 148.2729756 | AW25: ='App.2-BA_Fixed Asset Cont'!G702/1000000 -> 160.7928819 | AX25: ='App.2-BA_Fixed Asset Cont'!G769/1000000 -> 181.9008891 | AY25: ='App.2-BA_Fixed Asset Cont'!G836/1000000 -> 115.6574114
A26: System O&M | C26: 0 | D26: =IF(ISERROR((C26-B26)/B26),"--",(C26-B26)/B26) -> -- | F26: 0 | G26: =IF(ISERROR((F26-E26)/E26),"--",(F26-E26)/E26) -> -- | I26: 0 | J26: =IF(ISERROR((I26-H26)/H26),"--",(I26-H26)/H26) -> -- | L26: 0 | M26: =IF(ISERROR((L26-K26)/K26),"--",(L26-K26)/K26) -> -- | O26: 0 | P26: =IF(ISERROR((O26-N26)/N26),"--",(O26-N26)/N26) -> -- | R26: 0 | S26: -- | U26: 0 | V26: -- | AA26: 13.97 | AB26: -- | AD26: 14.93 | AG26: 15.71 | AJ26: 15.55 | AM26: 20.44 | AP26: =19881737/1000000 -> 19.881737 | AR26: 21.26 | AU26: 25.16 | AV26: 27.66 | AW26: 28.32 | AX26: 29.1 | AY26: 29.88
A27: Note: Variances due to rounding may exist
U28: =IF(T14=2013,5,IF(T14=2014,6,IF(T14=2015,7,IF(T14=2016,8,IF(T14=2017,9,IF(T14=2018,10,IF(T14=2019,11,IF(T14=2020,12,IF(T14=2021,13,IF(T14=2022,14,IF(T14=2023,15))))))))))) -> 10 | X28: =IF(W14=2013,5,IF(W14=2014,6,IF(W14=2015,7,IF(W14=2016,8,IF(W14=2017,9,IF(W14=2018,10,IF(W14=2019,11,IF(W14=2020,12,IF(W14=2021,13,IF(W14=2022,14,IF(W14=2023,15))))))))))) -> 11 | AG28: =IF(AF14=2013,5,IF(AF14=2014,6,IF(AF14=2015,7,IF(AF14=2016,8,IF(AF14=2017,9,IF(AF14=2018,10,IF(AF14=2019,11,IF(AF14=2020,12,IF(AF14=2021,13,IF(AF14=2022,14,IF(AF14=2023,15))))))))))) -> 14 | AJ28: =IF(AI14=2013,5,IF(AI14=2014,6,IF(AI14=2015,7,IF(AI14=2016,8,IF(AI14=2017,9,IF(AI14=2018,10,IF(AI14=2019,11,IF(AI14=2020,12,IF(AI14=2021,13,IF(AI14=2022,14,IF(AI14=2023,15))))))))))) -> 15 | AM28: =IF(AL14=2013,5,IF(AL14=2014,6,IF(AL14=2015,7,IF(AL14=2016,8,IF(AL14=2017,9,IF(AL14=2018,10,IF(AL14=2019,11,IF(AL14=2020,12,IF(AL14=2021,13,IF(AL14=2022,14,IF(AL14=2023,15))))))))))) -> FALSE
C29: =B14 -> 2012 | F29: =C29+1 -> 2013 | I29: =F29+1 -> 2014 | L29: =I29+1 -> 2015 | O29: =L29+1 -> 2016 | R29: =O29+1 -> 2017 | U29: =R29+1 -> 2018 | X29: =U29+1 -> 2019 | AA29: =X29+1 -> 2020 | AD29: =AA29+1 -> 2021 | AG29: =AD29+1 -> 2022 | AJ29: =AG29+1 -> 2023 | AM29: =AJ29+1 -> 2024 | AP29: =AM29+1 -> 2025 | AR29: =AP29+1 -> 2026 | AU29: =AU14 -> 2027 | AV29: =AU29+1 -> 2028 | AW29: =AV29+1 -> 2029 | AX29: 2030 | AY29: 2031
A30: Integrity Check - 2-AA: Net CAPEX | AA30: ='App.2-AA_Capital Projects'!B54 -> 35.19038621 | AD30: ='App.2-AA_Capital Projects'!C54 -> 53.38267753 | AG30: ='App.2-AA_Capital Projects'!D54 -> 78.40917278 | AJ30: ='App.2-AA_Capital Projects'!E54 -> 52.54534377 | AM30: ='App.2-AA_Capital Projects'!F54 -> 68.86936004 | AP30: ='App.2-AA_Capital Projects'!G54 -> 73.5368429 | AR30: ='App.2-AA_Capital Projects'!H54 -> 77.19908838 | AU30: ='App.2-AA_Capital Projects'!I54 -> 123.3362132 | AV30: ='App.2-AA_Capital Projects'!J54 -> 129.7331562 | AW30: ='App.2-AA_Capital Projects'!K54 -> 149.7373735 | AX30: ='App.2-AA_Capital Projects'!L54 -> 149.0135645 | AY30: ='App.2-AA_Capital Projects'!M54 -> 188.1414464
A31: Integrity Check - 2-JA: System O&M
A34: Notes to the Table:
A35: 1. Historical “previous plan” data is not required unless a plan has previously been filed. However, use the last OEB-approved, at least on a Total (Capital) Expenditure basis for the last cost of service rebasing year, and the applicant should include their planned budget in each subsequent historical year up to and including the Bridge Year.
A36: 2. Indicate the number of months of 'actual' data included in the last year of the Historical Period (normally a 'bridge' year):
A38: 3. System O&M contains the following accounts: 5005, 5010, 5012, 5014, 5015, 5016, 5017, 5020, 5025, 5030, 5035, 5040, 5045, 5050, 5055, 5060, 5065, 5070, 5075, 5085, 5090, 5095, 5096, 5105, 5110, 5112, 5114, 5120, 5125, 5130, 5135, 5145, 5150, 5155, 5160, 5165, 5170, 5172, 5175, 5178, 5195
A41: Explanatory Notes on Variances (complete only if applicable)
A42: Notes on shifts in forecast vs. historical budgets by category
A45: Notes on year over year Plan vs. Actual variances for Total Expenditures
A46: No prior approved Capex Plan
A48: Notes on Plan vs. Actual variance trends for individual expenditure categories
A49: No prior approved Capex Plan

Sheet App.2-BA_Fixed Asset Cont
N1: File Number: | O1: 0
N2: Exhibit:
N3: Tab:
N4: Schedule:
N5: Page:
N7: Date:
A9: Appendix 2-BA
A10: Fixed Asset Continuity Schedule 1
A12: Notes:
A14: 1 | B14: Tables in the format outlined above covering all fixed asset accounts should be submitted for the Test Year, Bridge Year and all relevant historical years. At a minimum , the applicant must provide data for the earlier of: 1) all historical years back to its last rebasing; or 2) at least three years of historical actuals, in addition to Bridge Year and Test Year forecasts. If this is the first application where the applicant is rebasing under MIFRS, contact OEB staff for further guidance on the appropriate fixed asset continuity schedules to complete (i.e. applicable years and accounting standard for each schedule).
A17: 2 | B17: The "CCA Class" for fixed assets should generally agree with the CCA Class used for tax purposes in Tax Returns. Fixed Assets sub-components may be used where the underlying asset components are classified under multiple CCA Classes for tax purposes. If an applicant uses any different classes from those shown in the table, an explanation should be provided. (also see note 3).
A20: 3 | B20: The table may need to be customized for a utility's asset categories or for any new asset accounts announced or authorized by the OEB.
A22: 4 | B22: The additions in column (E) must not include construction work in progress (CWIP).
A24: 5 | B24: Effective on the date of IFRS adoption, customer contributions will no longer be recorded in Account 1995 Contributions & Grants, but will be recorded in Account 2440, Deferred Revenues. Amortization of deferred revenue will be removed from the depreciation expense shown on this fixed asset continuity schedule as it should be included as income in Appendix 2-H Other Revenues.
A26: 6 | B26: The applicant must ensure that all asset disposals have been clearly identified in the Chapter 2 Appendices for all historic, bridge and test years. Where a distributor for general financial reporting purposes under IFRS has accounted for the amount of gain or loss on the retirement of assets in a pool of like assets as a charge or credit to income, for reporting and rate application filings, the distributor shall reclassify such gains and losses as depreciation expense, and disclose the amount separately.
A30: 7 | B30: This account includes the amount recorded under finance leases for plant leased from others and used by the utility in its utility operations.
A32: 8 | B32: The applicant must establish the continuity of historical cost for gross assets and accumulated depreciation by asset class by ensuring that the opening balance in the year agrees to the closing balance in the prior year.
E37: Accounting Standard | F37: MIFRS
E38: Year | F38: 2020 | I38: =IF(F38=2014,4,IF(F38=2015,5,IF(F38=2016,6,IF(F38=2017,7,IF(F38=2018,8,IF(F38=2019,9,IF(F38=2020,10))))))) -> 10
D40: Cost | L40: Accumulated Depreciation
A41: CCA Class 2 | B41: OEB Account 3 | C41: Description 3 | D41: Opening Balance 8 | E41: Additions 4 | F41: Disposals 6 | G41: Closing Balance | I41: RRR DATA | K41: Opening Balance 8 | L41: Additions | M41: Disposals 6 | N41: Closing Balance | O41: Net Book Value
A42: 14.1 | B42: 1609 | C42: Capital Contributions Paid | D42: 1532300 | E42: 602400 | G42: =D42+E42+F42 -> 2134700 | I42: 0 | K42: 0 | L42: -82726.37 | N42: =K42+L42+M42 -> -82726.37 | O42: =G42+N42 -> 2051973.63 | S42: 1609
A43: N/A | B43: 1610 | C43: 1610 Miscellaneous Intangible Plant | D43: 3217878.05 | E43: 550872.81 | G43: =D43+E43+F43 -> 3768750.86 | K43: -2109957.41 | L43: -398976.84 | N43: =K43+L43+M43 -> -2508934.25 | O43: =G43+N43 -> 1259816.61
A44: 12 | B44: 1611 | C44: Computer Software (Formally known as Account 1925) | D44: 11906406.34 | E44: 2438783.84 | G44: =D44+E44+F44 -> 14345190.18 | I44: 0 | K44: -9773934.28 | L44: -1424705.9 | N44: =K44+L44+M44 -> -11198640.18 | O44: =G44+N44 -> 3146550 | S44: 1611
A45: 14.1 | B45: 1612 | C45: Land Rights (Formally known as Account 1906) | D45: 451930.21 | E45: 9268.4 | G45: =D45+E45+F45 -> 461198.61 | I45: 0 | K45: -67171.18 | L45: -12243.09 | N45: =K45+L45+M45 -> -79414.27 | O45: =G45+N45 -> 381784.34 | S45: 1612
A46: N/A | B46: 1805 | C46: Land | D46: 981172.99 | G46: =D46+E46+F46 -> 981172.99 | I46: 0 | K46: 0 | N46: =K46+L46+M46 -> 0 | O46: =G46+N46 -> 981172.99 | S46: 1805
A47: 47 | B47: 1808 | C47: Buildings | D47: 1398183.11 | G47: =D47+E47+F47 -> 1398183.11 | I47: 0 | K47: -1173467.64 | L47: -9382.37 | N47: =K47+L47+M47 -> -1182850.01 | O47: =G47+N47 -> 215333.1 | S47: 1808
B48: 1810 | C48: Leasehold Improvements | D48: 0 | G48: 0 | I48: 0 | K48: 0 | N48: 0 | O48: 0 | S48: 1810
A49: 47 | B49: 1815 | C49: Transformer Station Equipment >50 kV | D49: 225104.5 | G49: 225104.5 | I49: 0 | K49: -35446 | L49: -6625.64 | N49: -42071.64 | O49: 183032.86 | S49: 1815
A50: 47 | B50: 1820 | C50: Distribution Station Equipment <50 kV | D50: 57438028.22 | E50: 2671998.06 | F50: -394257.78 | G50: 59715768.5 | I50: 0 | K50: -7860025.41 | L50: -1804904.58 | M50: 21772.74 | N50: -9643157.25 | O50: 50072611.25 | S50: 1820
B51: 1825 | C51: Storage Battery Equipment | D51: 0 | G51: 0 | I51: 0 | K51: 0 | N51: 0 | O51: 0 | S51: 1825
A52: 47 | B52: 1830 | C52: Poles, Towers & Fixtures | D52: 82420240.56 | E52: 8897823.29 | F52: -206147.44 | G52: 91111916.41 | I52: 0 | K52: -9649914.17 | L52: -2332822.88 | M52: 29360.75 | N52: -11953376.3 | O52: 79158540.11 | S52: 1830
A53: 47 | B53: 1835 | C53: Overhead Conductors & Devices | D53: 61967275.4 | E53: 5385975.63 | F53: -145140.04 | G53: 67208110.99 | I53: 0 | K53: -8380877.64 | L53: -1833368.29 | M53: 66859.27 | N53: -10147386.66 | O53: 57060724.33 | S53: 1835
A54: 47 | B54: 1840 | C54: Underground Conduit | D54: 43274458.5 | E54: 4087980.66 | G54: 47362439.16 | I54: 0 | K54: -4165051.08 | L54: -828051.45 | N54: -4993102.53 | O54: 42369336.63 | S54: 1840
A55: 47 | B55: 1845 | C55: Underground Conductors & Devices | D55: 66481011.39 | E55: 7692587.3 | F55: -98562.97 | G55: 74075035.72 | I55: 0 | K55: -7741358.67 | L55: -2011652.95 | M55: 32390.54 | N55: -9720621.08 | O55: 64354414.64 | S55: 1845
A56: 47 | B56: 1850 | C56: Line Transformers | D56: 51669591.79 | E56: 6840211.29 | F56: -190103.96 | G56: 58319699.12 | I56: 0 | K56: -9439947.66 | L56: -2094832.87 | M56: 52336.43 | N56: -11482444.1 | O56: 46837255.02 | S56: 1850
A57: 47 | B57: 1855 | C57: Services (Overhead & Underground) | D57: 40829994.41 | E57: 2260403.57 | G57: 43090397.98 | I57: 0 | K57: -5350884.71 | L57: -1059296.9 | N57: -6410181.61 | O57: 36680216.37 | S57: 1855
A58: 47 | B58: 1860 | C58: Meters | D58: 2622344.51 | E58: 195097.18 | G58: 2817441.69 | I58: 0 | K58: -408323.16 | L58: -117161.98 | N58: -525485.14 | O58: 2291956.55 | S58: 1860
A59: 47 | B59: 1860 | C59: Meters (Smart Meters) | D59: 21180221.54 | E59: 1092225.04 | F59: -72691.38 | G59: 22199755.2 | I59: 0 | K59: -10496019.95 | L59: -1766620.66 | M59: 48785.92 | N59: -12213854.69 | O59: 9985900.509 | S59: 1860
A60: 47 | B60: 1865 | C60: Other Installations on Customers Premises | D60: 81548.16 | G60: 81548.16 | K60: -81548.16 | N60: -81548.16 | O60: 0
A61: N/A | B61: 1905 | C61: Land | D61: 1195031.32 | G61: 1195031.32 | I61: 0 | K61: 0 | N61: 0 | O61: 1195031.32 | S61: 1905
A62: 1 | B62: 1908 | C62: Buildings & Fixtures | D62: 23448481.3 | E62: 668904.33 | G62: 24117385.63 | I62: 0 | K62: -7968041.24 | L62: -1038660.82 | N62: -9006702.06 | O62: 15110683.57 | S62: 1908
B63: 1910 | C63: Leasehold Improvements | D63: 0 | G63: 0 | I63: 0 | K63: 0 | N63: 0 | O63: 0 | S63: 1910
A64: 8 | B64: 1915 | C64: Office Furniture & Equipment (10 years) | D64: 2132026.49 | E64: 116791.71 | G64: 2248818.2 | I64: 0 | K64: -1491117.38 | L64: -110767.3 | N64: -1601884.68 | O64: 646933.52 | S64: 1915
B65: 1915 | C65: Office Furniture & Equipment (5 years) | D65: 0 | G65: 0 | I65: 0 | K65: 0 | N65: 0 | O65: 0 | S65: 1915
A66: 50 | B66: 1920 | C66: Computer Equipment - Hardware | D66: 4551684.75 | E66: 1556192.95 | G66: 6107877.7 | I66: 0 | K66: -3187589.07 | L66: -721917.04 | N66: -3909506.11 | O66: 2198371.59 | S66: 1920
B67: 1920 | C67: Computer Equip.-Hardware(Post Mar. 22/04) | D67: 0 | G67: 0 | I67: 0 | K67: 0 | N67: 0 | O67: 0 | S67: 1920
B68: 1920 | C68: Computer Equip.-Hardware(Post Mar. 19/07) | D68: 0 | G68: 0 | I68: 0 | K68: 0 | N68: 0 | O68: 0 | S68: 1920
A69: 10 | B69: 1930 | C69: Transportation Equipment | D69: 9290464.12 | E69: 784692.74 | G69: 10075156.86 | I69: 0 | K69: -3795910.77 | L69: -870984.36 | N69: -4666895.13 | O69: 5408261.73 | S69: 1930
A70: 8 | B70: 1935 | C70: Stores Equipment | D70: 108757.92 | G70: 108757.92 | I70: 0 | K70: -34874.71 | L70: -12370.88 | N70: -47245.59 | O70: 61512.33 | S70: 1935
A71: 8 | B71: 1940 | C71: Tools, Shop & Garage Equipment | D71: 2459571.24 | E71: 155293.15 | G71: 2614864.39 | I71: 0 | K71: -1107076.33 | L71: -216095.74 | N71: -1323172.07 | O71: 1291692.32 | S71: 1940
A72: 8 | B72: 1945 | C72: Measurement & Testing Equipment | D72: 163262.62 | G72: 163262.62 | I72: 0 | K72: -103142.82 | L72: -17944.24 | N72: -121087.06 | O72: 42175.56 | S72: 1945
B73: 1950 | C73: Power Operated Equipment | D73: 0 | G73: 0 | I73: 0 | K73: 0 | N73: 0 | O73: 0 | S73: 1950
A74: 8 | B74: 1955 | C74: Communications Equipment | D74: 1843773.06 | E74: 142871.44 | G74: 1986644.5 | I74: 0 | K74: -940772.92 | L74: -192132.22 | N74: -1132905.14 | O74: 853739.36 | S74: 1955
B75: 1955 | C75: Communication Equipment (Smart Meters) | D75: 0 | G75: 0 | I75: 0 | K75: 0 | N75: 0 | O75: 0 | S75: 1955
A76: 8 | B76: 1960 | C76: Miscellaneous Equipment | D76: 400286.91 | E76: 20923.46 | G76: 421210.37 | I76: 0 | K76: -162883.77 | L76: -36899.01 | N76: -199782.78 | O76: 221427.59 | S76: 1960
B77: 1970 | C77: Load Management Controls Customer Premises | D77: 0 | G77: 0 | I77: 0 | K77: 0 | N77: 0 | O77: 0 | S77: 1970
B78: 1975 | C78: Load Management Controls Utility Premises | D78: 0 | G78: 0 | I78: 0 | K78: 0 | N78: 0 | O78: 0 | S78: 1975
A79: 8 | B79: 1980 | C79: System Supervisor Equipment | D79: 7395157.819 | E79: 484522.81 | F79: -6999.94 | G79: 7872680.689 | I79: 0 | K79: -3093401.19 | L79: -618540.27 | M79: 507.84 | N79: -3711433.62 | O79: 4161247.069 | S79: 1980
B80: 1985 | C80: Miscellaneous Fixed Assets | D80: 0 | G80: 0 | I80: 0 | K80: 0 | N80: 0 | O80: 0 | S80: 1985
B81: 1990 | C81: Other Tangible Property | D81: 0 | G81: 0 | I81: 0 | K81: 0 | N81: 0 | O81: 0 | S81: 1990
B82: 1995 | C82: Contributions & Grants | D82: 0 | G82: 0 | I82: 0 | K82: 0 | N82: 0 | O82: 0 | S82: 1995
A83: 43.2 | B83: 2075 | C83: Renewables (31) | D83: 1144598.34 | E83: 107167.14 | G83: 1251765.48 | K83: -295925.21 | L83: -58011.79 | N83: -353937 | O83: 897828.48
A84: 47 | B84: 2440 | C84: Deferred Revenue5 | D84: -63725190.65 | E84: -16341413.51 | G84: -80066604.16 | I84: 0 | K84: 4151717.81 | L84: 1767067.76 | N84: 5918785.57 | O84: -74147818.59 | S84: 2440
A85: N/A | B85: 2005 | C85: Property Under Finance Lease7 | D85: 1992448.67 | G85: 1992448.67 | I85: 0 | K85: -419911.26 | L85: -473167.38 | N85: -893078.64 | O85: 1099370.03 | S85: 2005
C86: Sub-Total | D86: =SUM(D42:D85) -> 440078043.6 | E86: =SUM(E42:E85) -> 30421573.29 | F86: =SUM(F42:F85) -> -1113903.51 | G86: =SUM(G42:G85) -> 469385713.4 | I86: =SUM(I42:I85) -> 0 | K86: =SUM(K42:K85) -> -95182855.98 | L86: =SUM(L42:L85) -> -18383796.06 | M86: =SUM(M42:M85) -> 252013.49 | N86: =SUM(N42:N85) -> -113314638.5 | O86: =SUM(O42:O85) -> 356071074.8
C87: Less Socialized Renewable Energy Generation Investments (input as negative) | D87: -675735.9245 | G87: =D87+E87+F87 -> -675735.9245 | K87: 139632.8414 | L87: 35849.8638 | N87: =K87+L87+M87 -> 175482.7052 | O87: =G87+N87 -> -500253.2193
C88: Less Other Non Rate-Regulated Utility Assets (input as negative) | D88: -1144598.34 | E88: =-E83 -> -107167.14 | G88: =D88+E88+F88 -> -1251765.48 | K88: 295925.21 | L88: =-L83 -> 58011.79 | N88: =K88+L88+M88 -> 353937 | O88: =G88+N88 -> -897828.48
C89: Total PP&E for Rate Base Purposes | D89: =SUM(D86:D88) -> 438257709.3 | E89: =SUM(E86:E88) -> 30314406.15 | F89: =SUM(F86:F88) -> -1113903.51 | G89: =SUM(G86:G88) -> 467458212 | K89: =SUM(K86:K88) -> -94747297.93 | L89: =SUM(L86:L88) -> -18289934.41 | M89: =SUM(M86:M88) -> 252013.49 | N89: =SUM(N86:N88) -> -112785218.8 | O89: =SUM(O86:O88) -> 354672993.1
C90: Construction Work In Progress | D90: 26923756.16 | E90: =309937.76-2367043.07+1894873.49+2871184.01+453009.39+1262575.87 -> 4424537.45 | G90: =D90+E90+F90 -> 31348293.61 | I90: 0 | N90: =K90+L90+M90 -> 0 | O90: =G90+N90 -> 31348293.61
C91: Total PP&E | D91: =SUM(D89:D90) -> 465181465.5 | E91: =SUM(E89:E90) -> 34738943.6 | F91: -1113903.51 | G91: 498806505.6 | I91: 0 | J91: 0 | K91: -94747297.93 | L91: -18289934.41 | M91: 252013.49 | N91: -112785218.8 | O91: 386021286.7
C92: Depreciation Expense adj. from gain or loss on the retirement of assets (pool of like assets), if applicable6
C93: Total | L93: =L91+L92 -> -18289934.41
D94: Gross Fixed Assets (average) for Rate Base | G94: =AVERAGE(D89,G89) -> 452857960.6 | K94: Accumulated Depreciation (average) | N94: =AVERAGE(K89,N89) -> -103766258.4
K95: Net Fixed Assets (average) | N95: =G94+N94 -> 349091702.3
K96: Less: Fully Allocated Depreciation
A97: 10 | C97: =+K97 -> Transportation | K97: Transportation | M97: =+L69 -> -870984.36
C98: =+K98 -> Net Derecognition | K98: Net Derecognition | M98: =-F91-M91 -> 861890.02
C99: Socialized Renewable Energy Generation Investments | K99: Socialized Renewable Energy Generation Investments | M99: =+L87 -> 35849.8638
K100: Net Depreciation | M100: =L93-M97-M98-M99 -> -18316689.93
E104: Accounting Standard | F104: MIFRS
E105: Year | F105: 2021 | I105: =IF(F105=2014,4,IF(F105=2015,5,IF(F105=2016,6,IF(F105=2017,7,IF(F105=2018,8,IF(F105=2019,9,IF(F105=2020,10))))))) -> FALSE
D107: Cost | L107: Accumulated Depreciation
A108: CCA Class 2 | B108: OEB Account 3 | C108: Description 3 | D108: Opening Balance 8 | E108: Additions 4 | F108: Disposals 6 | G108: Closing Balance | I108: RRR DATA | K108: Opening Balance 8 | L108: Additions | M108: Disposals 6 | N108: Closing Balance | O108: Net Book Value
A109: 14.1 | B109: 1609 | C109: Capital Contributions Paid | D109: =G42 -> 2134700 | G109: =D109+E109+F109 -> 2134700 | I109: 0 | K109: =N42 -> -82726.37 | L109: -164103.94 | N109: =K109+L109+M109 -> -246830.31 | O109: =G109+N109 -> 1887869.69 | S109: 1609
A110: N/A | B110: 1610 | C110: 1610 Miscellaneous Intangible Plant | D110: 3768750.86 | E110: 263140.8 | G110: =D110+E110+F110 -> 4031891.66 | K110: -2508934.25 | L110: -434894.25 | N110: =K110+L110+M110 -> -2943828.5 | O110: =G110+N110 -> 1088063.16
A111: 12 | B111: 1611 | C111: Computer Software (Formally known as Account 1925) | D111: 14345190.18 | E111: 2302830.18 | G111: =D111+E111+F111 -> 16648020.36 | I111: 0 | K111: -11198640.18 | L111: -1839646.07 | N111: =K111+L111+M111 -> -13038286.25 | O111: =G111+N111 -> 3609734.11 | S111: 1611
A112: 14.1 | B112: 1612 | C112: Land Rights (Formally known as Account 1906) | D112: 461198.61 | E112: 3841402 | G112: =D112+E112+F112 -> 4302600.61 | I112: 0 | K112: -79414.27 | L112: -12301.74 | N112: =K112+L112+M112 -> -91716.01 | O112: =G112+N112 -> 4210884.6 | S112: 1612
A113: N/A | B113: 1805 | C113: Land | D113: 981172.99 | G113: =D113+E113+F113 -> 981172.99 | I113: 0 | K113: 0 | N113: =K113+L113+M113 -> 0 | O113: =G113+N113 -> 981172.99 | S113: 1805
A114: 47 | B114: 1808 | C114: Buildings | D114: 1398183.11 | E114: 10860.93 | G114: =D114+E114+F114 -> 1409044.04 | I114: 0 | K114: -1182850.01 | L114: -9466.17 | N114: =K114+L114+M114 -> -1192316.18 | O114: =G114+N114 -> 216727.86 | S114: 1808
B115: 1810 | C115: Leasehold Improvements | D115: 0 | G115: 0 | I115: 0 | K115: 0 | N115: 0 | O115: 0 | S115: 1810
A116: 47 | B116: 1815 | C116: Transformer Station Equipment >50 kV | D116: 225104.5 | G116: 225104.5 | I116: 0 | K116: -42071.64 | L116: -6607.54 | N116: -48679.18 | O116: 176425.32 | S116: 1815
A117: 47 | B117: 1820 | C117: Distribution Station Equipment <50 kV | D117: 59715768.5 | E117: 5703222.1 | G117: 65418990.6 | I117: 0 | K117: -9643157.25 | L117: -1883447.78 | N117: -11526605.03 | O117: 53892385.57 | S117: 1820
B118: 1825 | C118: Storage Battery Equipment | D118: 0 | G118: 0 | I118: 0 | K118: 0 | N118: 0 | O118: 0 | S118: 1825
A119: 47 | B119: 1830 | C119: Poles, Towers & Fixtures | D119: 91111916.41 | E119: 8275332.22 | F119: -108529.56 | G119: 99278719.07 | I119: 0 | K119: -11953376.3 | L119: -2534787.56 | M119: 18698.83 | N119: -14469465.03 | O119: 84809254.04 | S119: 1830
A120: 47 | B120: 1835 | C120: Overhead Conductors & Devices | D120: 67208110.99 | E120: 6231709.22 | F120: -226560.14 | G120: 73213260.07 | I120: 0 | K120: -10147386.66 | L120: -1813792.34 | M120: 199671.12 | N120: -11761507.88 | O120: 61451752.19 | S120: 1835
A121: 47 | B121: 1840 | C121: Underground Conduit | D121: 47362439.16 | E121: 6928307.38 | G121: 54290746.54 | I121: 0 | K121: -4993102.53 | L121: -918268.42 | N121: -5911370.95 | O121: 48379375.59 | S121: 1840
A122: 47 | B122: 1845 | C122: Underground Conductors & Devices | D122: 74075035.72 | E122: 11405142.71 | F122: -75325.01 | G122: 85404853.42 | I122: 0 | K122: -9720621.08 | L122: -2266162.52 | M122: 26414.16 | N122: -11960369.44 | O122: 73444483.98 | S122: 1845
A123: 47 | B123: 1850 | C123: Line Transformers | D123: 58319699.12 | E123: 7974593.82 | F123: -413280.07 | G123: 65881012.87 | I123: 0 | K123: -11482444.1 | L123: -2296704.03 | M123: 96861.56 | N123: -13682286.57 | O123: 52198726.3 | S123: 1850
A124: 47 | B124: 1855 | C124: Services (Overhead & Underground) | D124: 43090397.98 | E124: 3212950.68 | G124: 46303348.66 | I124: 0 | K124: -6410181.61 | L124: -1122098.19 | N124: -7532279.8 | O124: 38771068.86 | S124: 1855
A125: 47 | B125: 1860 | C125: Meters | D125: 2817441.69 | E125: 32492.77 | F125: -2304.96 | G125: 2847629.5 | I125: 0 | K125: -525485.14 | L125: -121290.17 | M125: 597.13 | N125: -646178.18 | O125: 2201451.32 | S125: 1860
A126: 47 | B126: 1860 | C126: Meters (Smart Meters) | D126: 22199755.2 | E126: 1138830.84 | F126: -149164.46 | G126: 23189421.58 | I126: 0 | K126: -12213854.69 | L126: -1821627.38 | M126: 109070.04 | N126: -13926412.03 | O126: 9263009.549 | S126: 1860
A127: 47 | B127: 1865 | C127: Other Installations on Customers Premises | D127: 81548.16 | G127: 81548.16 | K127: -81548.16 | N127: -81548.16 | O127: 0
A128: N/A | B128: 1905 | C128: Land | D128: 1195031.32 | G128: 1195031.32 | I128: 0 | K128: 0 | N128: 0 | O128: 1195031.32 | S128: 1905
A129: 1 | B129: 1908 | C129: Buildings & Fixtures | D129: 24117385.63 | E129: 709571.43 | G129: 24826957.06 | I129: 0 | K129: -9006702.06 | L129: -1074397.74 | N129: -10081099.8 | O129: 14745857.26 | S129: 1908
B130: 1910 | C130: Leasehold Improvements | D130: 0 | G130: 0 | I130: 0 | K130: 0 | N130: 0 | O130: 0 | S130: 1910
A131: 8 | B131: 1915 | C131: Office Furniture & Equipment (10 years) | D131: 2248818.2 | E131: 84060.79 | G131: 2332878.99 | I131: 0 | K131: -1601884.68 | L131: -111430.85 | N131: -1713315.53 | O131: 619563.46 | S131: 1915
B132: 1915 | C132: Office Furniture & Equipment (5 years) | D132: 0 | G132: 0 | I132: 0 | K132: 0 | N132: 0 | O132: 0 | S132: 1915
A133: 50 | B133: 1920 | C133: Computer Equipment - Hardware | D133: 6107877.7 | E133: 1990622.41 | G133: 8098500.11 | I133: 0 | K133: -3909506.11 | L133: -979771.06 | N133: -4889277.17 | O133: 3209222.94 | S133: 1920
B134: 1920 | C134: Computer Equip.-Hardware(Post Mar. 22/04) | D134: 0 | G134: 0 | I134: 0 | K134: 0 | N134: 0 | O134: 0 | S134: 1920
B135: 1920 | C135: Computer Equip.-Hardware(Post Mar. 19/07) | D135: 0 | G135: 0 | I135: 0 | K135: 0 | N135: 0 | O135: 0 | S135: 1920
A136: 10 | B136: 1930 | C136: Transportation Equipment | D136: 10075156.86 | E136: 1478718.9 | F136: -140070.67 | G136: 11413805.09 | I136: 0 | K136: -4666895.13 | L136: -916543.36 | M136: 120445.84 | N136: -5462992.65 | O136: 5950812.44 | S136: 1930
A137: 8 | B137: 1935 | C137: Stores Equipment | D137: 108757.92 | G137: 108757.92 | I137: 0 | K137: -47245.59 | L137: -11186.85 | N137: -58432.44 | O137: 50325.48 | S137: 1935
A138: 8 | B138: 1940 | C138: Tools, Shop & Garage Equipment | D138: 2614864.39 | E138: 152760.77 | G138: 2767625.16 | I138: 0 | K138: -1323172.07 | L138: -226471.7 | N138: -1549643.77 | O138: 1217981.39 | S138: 1940
A139: 8 | B139: 1945 | C139: Measurement & Testing Equipment | D139: 163262.62 | E139: 22114.78 | G139: 185377.4 | I139: 0 | K139: -121087.06 | L139: -13039.06 | N139: -134126.12 | O139: 51251.28 | S139: 1945
B140: 1950 | C140: Power Operated Equipment | D140: 0 | G140: 0 | I140: 0 | K140: 0 | N140: 0 | O140: 0 | S140: 1950
A141: 8 | B141: 1955 | C141: Communications Equipment | D141: 1986644.5 | G141: 1986644.5 | I141: 0 | K141: -1132905.14 | L141: -198707.87 | N141: -1331613.01 | O141: 655031.49 | S141: 1955
B142: 1955 | C142: Communication Equipment (Smart Meters) | D142: 0 | G142: 0 | I142: 0 | K142: 0 | N142: 0 | O142: 0 | S142: 1955
A143: 8 | B143: 1960 | C143: Miscellaneous Equipment | D143: 421210.37 | E143: 18981.12 | G143: 440191.49 | I143: 0 | K143: -199782.78 | L143: -38794.4 | N143: -238577.18 | O143: 201614.31 | S143: 1960
B144: 1970 | C144: Load Management Controls Customer Premises | D144: 0 | G144: 0 | I144: 0 | K144: 0 | N144: 0 | O144: 0 | S144: 1970
B145: 1975 | C145: Load Management Controls Utility Premises | D145: 0 | G145: 0 | I145: 0 | K145: 0 | N145: 0 | O145: 0 | S145: 1975
A146: 8 | B146: 1980 | C146: System Supervisor Equipment | D146: 7872680.689 | E146: 612475.78 | G146: 8485156.469 | I146: 0 | K146: -3711433.62 | L146: -419909.91 | N146: -4131343.53 | O146: 4353812.939 | S146: 1980
B147: 1985 | C147: Miscellaneous Fixed Assets | D147: 0 | G147: 0 | I147: 0 | K147: 0 | N147: 0 | O147: 0 | S147: 1985
B148: 1990 | C148: Other Tangible Property | D148: 0 | G148: 0 | I148: 0 | K148: 0 | N148: 0 | O148: 0 | S148: 1990
B149: 1995 | C149: Contributions & Grants | D149: 0 | G149: 0 | I149: 0 | K149: 0 | N149: 0 | O149: 0 | S149: 1995
A150: 43.2 | B150: 2075 | C150: Renewables (31) | D150: 1251765.48 | G150: 1251765.48 | K150: -353937 | L150: -57867.92 | N150: -411804.92 | O150: 839960.56
A151: 47 | B151: 2440 | C151: Deferred Revenue5 | D151: -80066604.16 | E151: -15664639.98 | G151: -95731244.14 | I151: 0 | K151: 5918785.57 | L151: 2174242.77 | N151: 8093028.34 | O151: -87638215.8 | S151: 2440
A152: N/A | B152: 2005 | C152: Property Under Finance Lease7 | D152: 1992448.67 | E152: -42583.88 | G152: 1949864.79 | I152: 0 | K152: -893078.64 | L152: -329064.02 | N152: -1222142.66 | O152: 727722.13 | S152: 2005
C153: Sub-Total | D153: =SUM(D109:D152) -> 469385713.4 | E153: =SUM(E109:E152) -> 46682897.77 | F153: =SUM(F109:F152) -> -1115234.87 | G153: =SUM(G109:G152) -> 514953376.3 | I153: =SUM(I109:I152) -> 0 | K153: =SUM(K109:K152) -> -113314638.5 | L153: =SUM(L109:L152) -> -19448140.07 | M153: =SUM(M109:M152) -> 571758.68 | N153: =SUM(N109:N152) -> -132191019.9 | O153: =SUM(O109:O152) -> 382762356.3
C154: Less Socialized Renewable Energy Generation Investments (input as negative) | D154: =G87 -> -675735.9245 | G154: =D154+E154+F154 -> -675735.9245 | K154: =N87 -> 175482.7052 | L154: 35751.929 | N154: =K154+L154+M154 -> 211234.6342 | O154: =G154+N154 -> -464501.2903
C155: Less Other Non Rate-Regulated Utility Assets (input as negative) | D155: =G88 -> -1251765.48 | E155: =-E150 -> 0 | F155: =-F150 -> 0 | G155: =D155+E155+F155 -> -1251765.48 | K155: =N88 -> 353937 | L155: =-L150 -> 57867.92 | N155: =K155+L155+M155 -> 411804.92 | O155: =G155+N155 -> -839960.56
C156: Total PP&E for Rate Base Purposes | D156: =SUM(D153:D155) -> 467458212 | E156: =SUM(E153:E155) -> 46682897.77 | F156: =SUM(F153:F155) -> -1115234.87 | G156: =SUM(G153:G155) -> 513025874.9 | K156: =SUM(K153:K155) -> -112785218.8 | L156: =SUM(L153:L155) -> -19354520.22 | M156: =SUM(M153:M155) -> 571758.68 | N156: =SUM(N153:N155) -> -131567980.4 | O156: =SUM(O153:O155) -> 381457894.5
C157: Construction Work In Progress | D157: =G90 -> 31348293.61 | E157: =624087.64+360109.31+77668.7+8544874.91-187911.26-2827481.11 -> 6591348.19 | G157: =D157+E157+F157 -> 37939641.8 | I157: 0 | N157: =K157+L157+M157 -> 0 | O157: =G157+N157 -> 37939641.8
C158: Total PP&E | D158: =SUM(D156:D157) -> 498806505.6 | E158: =SUM(E156:E157) -> 53274245.96 | F158: -1115234.87 | G158: 550965516.7 | I158: 0 | J158: 0 | K158: -112785218.8 | L158: -19354520.22 | M158: 571758.68 | N158: -131567980.4 | O158: 419397536.3
C159: Depreciation Expense adj. from gain or loss on the retirement of assets (pool of like assets), if applicable6
C160: Total | L160: =L158+L159 -> -19354520.22
D161: Gross Fixed Assets (average) for Rate Base | G161: =AVERAGE(D156,G156) -> 490242043.4 | K161: Accumulated Depreciation (average) | N161: =AVERAGE(K156,N156) -> -122176599.6
K162: Net Fixed Assets (average) | N162: =G161+N161 -> 368065443.8
K163: Less: Fully Allocated Depreciation
A164: 10 | C164: Transportation | K164: Transportation | M164: -893315.68
C165: Net Derecognition | K165: Net Derecognition | M165: =-F158-M158 -> 543476.19
C166: Disposal of Utility Property | K166: Disposal of Utility Property | M166: =+F136+M136 -> -19624.83
C167: =+K167 -> Socialized Renewable Energy Generation Investments | K167: Socialized Renewable Energy Generation Investments | M167: =+L154 -> 35751.929
K168: Net Depreciation | M168: =L160-M164-M165-M167-M166 -> -19020807.83
E172: Accounting Standard | F172: MIFRS
E173: Year | F173: 2022 | I173: =IF(F173=2014,4,IF(F173=2015,5,IF(F173=2016,6,IF(F173=2017,7,IF(F173=2018,8,IF(F173=2019,9,IF(F173=2020,10))))))) -> FALSE
D175: Cost | L175: Accumulated Depreciation
A176: CCA Class 2 | B176: OEB Account 3 | C176: Description 3 | D176: Opening Balance 8 | E176: Additions 4 | F176: Disposals 6 | G176: Closing Balance | I176: RRR DATA | K176: Opening Balance 8 | L176: Additions | M176: Disposals 6 | N176: Closing Balance | O176: Net Book Value
A177: 14.1 | B177: 1609 | C177: Capital Contributions Paid | D177: =G109 -> 2134700 | E177: 0 | G177: =D177+E177+F177 -> 2134700 | I177: 0 | K177: =N109 -> -246830.31 | L177: -164103.94 | M177: 0 | N177: =K177+L177+M177 -> -410934.25 | O177: =G177+N177 -> 1723765.75 | S177: 1609
A178: N/A | B178: 1610 | C178: 1610 Miscellaneous Intangible Plant | D178: 4031891.66 | E178: 218311.82 | G178: =D178+E178+F178 -> 4250203.48 | K178: -2943828.5 | L178: -411945.99 | M178: 0 | N178: =K178+L178+M178 -> -3355774.49 | O178: =G178+N178 -> 894428.99
A179: 12 | B179: 1611 | C179: Computer Software (Formally known as Account 1925) | D179: 16648020.36 | E179: 1885559.2 | F179: 0 | G179: =D179+E179+F179 -> 18533579.56 | I179: 0 | K179: -13038286.25 | L179: -2042517.17 | M179: 0 | N179: =K179+L179+M179 -> -15080803.42 | O179: =G179+N179 -> 3452776.14 | S179: 1611
A180: 14.1 | B180: 1612 | C180: Land Rights (Formally known as Account 1906) | D180: 4302600.61 | E180: -3841402 | F180: 0 | G180: =D180+E180+F180 -> 461198.61 | I180: 0 | K180: -91716.01 | L180: -12301.73 | M180: 0 | N180: =K180+L180+M180 -> -104017.74 | O180: =G180+N180 -> 357180.87 | S180: 1612
A181: N/A | B181: 1805 | C181: Land | D181: 981172.99 | E181: 16193.1 | F181: -2376.56 | G181: =D181+E181+F181 -> 994989.53 | I181: 0 | K181: 0 | L181: 0 | M181: 0 | N181: =K181+L181+M181 -> 0 | O181: =G181+N181 -> 994989.53 | S181: 1805
A182: 47 | B182: 1808 | C182: Buildings | D182: 1409044.04 | E182: 0 | F182: 0 | G182: =D182+E182+F182 -> 1409044.04 | I182: 0 | K182: -1192316.18 | L182: -9573.82 | M182: 0 | N182: =K182+L182+M182 -> -1201890 | O182: =G182+N182 -> 207154.04 | S182: 1808
B183: 1810 | C183: Leasehold Improvements | D183: 0 | G183: 0 | I183: 0 | K183: 0 | N183: 0 | O183: 0 | S183: 1810
A184: 47 | B184: 1815 | C184: Transformer Station Equipment >50 kV | D184: 225104.5 | E184: 0 | F184: 0 | G184: 225104.5 | I184: 0 | K184: -48679.18 | L184: -5533.63 | M184: 0 | N184: -54212.81 | O184: 170891.69 | S184: 1815
A185: 47 | B185: 1820 | C185: Distribution Station Equipment <50 kV | D185: 65418990.6 | E185: =2299674.15 -> 2299674.15 | F185: -13956.76 | G185: 67704707.99 | I185: 0 | K185: -11526605.03 | L185: -1952949.29 | M185: 2071.62 | N185: -13477482.7 | O185: 54227225.29 | S185: 1820
B186: 1825 | C186: Storage Battery Equipment | D186: 0 | G186: 0 | I186: 0 | K186: 0 | N186: 0 | O186: 0 | S186: 1825
A187: 47 | B187: 1830 | C187: Poles, Towers & Fixtures | D187: 99278719.07 | E187: =12378908.51 -> 12378908.51 | F187: -525184.38 | G187: 111132443.2 | I187: 0 | K187: -14469465.03 | L187: -2789882.89 | M187: 80287.79 | N187: -17179060.13 | O187: 93953383.07 | S187: 1830
A188: 47 | B188: 1835 | C188: Overhead Conductors & Devices | D188: 73213260.07 | E188: =5962963.66 -> 5962963.66 | F188: -367784.65 | G188: 78808439.08 | I188: 0 | K188: -11761507.88 | L188: -1945949.72 | M188: 207505.65 | N188: -13499951.95 | O188: 65308487.13 | S188: 1835
A189: 47 | B189: 1840 | C189: Underground Conduit | D189: 54290746.54 | E189: 3431792.73 | F189: -349084.66 | G189: 57373454.61 | I189: 0 | K189: -5911370.95 | L189: -1003834.99 | M189: 65583.94 | N189: -6849622 | O189: 50523832.61 | S189: 1840
A190: 47 | B190: 1845 | C190: Underground Conductors & Devices | D190: 85404853.42 | E190: =7034342.7 -> 7034342.7 | F190: -658352.56 | G190: 91780843.56 | I190: 0 | K190: -11960369.44 | L190: -2501373.15 | M190: 198852.84 | N190: -14262889.75 | O190: 77517953.81 | S190: 1845
A191: 47 | B191: 1850 | C191: Line Transformers | D191: 65881012.87 | E191: =5723708.29 -> 5723708.29 | F191: -461964.58 | G191: 71142756.58 | I191: 0 | K191: -13682286.57 | L191: -2485626.47 | M191: 138605.72 | N191: -16029307.32 | O191: 55113449.26 | S191: 1850
A192: 47 | B192: 1855 | C192: Services (Overhead & Underground) | D192: 46303348.66 | E192: =2904698.5 -> 2904698.5 | F192: 0 | G192: 49208047.16 | I192: 0 | K192: -7532279.8 | L192: -1195230.97 | M192: 0 | N192: -8727510.77 | O192: 40480536.39 | S192: 1855
A193: 47 | B193: 1860 | C193: Meters | D193: 2847629.5 | E193: 27870.73 | F193: -84971.01 | G193: 2790529.22 | I193: 0 | K193: -646178.18 | L193: -119825.48 | M193: 19307.55 | N193: -746696.11 | O193: 2043833.11 | S193: 1860
A194: 47 | B194: 1860 | C194: Meters (Smart Meters) | D194: 23189421.58 | E194: 879564.85 | F194: -152894.95 | G194: 23916091.48 | I194: 0 | K194: -13926412.03 | L194: -1877275.14 | M194: 119342.11 | N194: -15684345.06 | O194: 8231746.419 | S194: 1860
A195: 47 | B195: 1865 | C195: Other Installations on Customers Premises | D195: 81548.16 | E195: 0 | F195: 0 | G195: 81548.16 | K195: -81548.16 | L195: 0 | M195: 0 | N195: -81548.16 | O195: 0
A196: N/A | B196: 1905 | C196: Land | D196: 1195031.32 | E196: -0.02000000002 | F196: 0 | G196: 1195031.3 | I196: 0 | K196: 0 | M196: 0 | N196: 0 | O196: 1195031.3 | S196: 1905
A197: 1 | B197: 1908 | C197: Buildings & Fixtures | D197: 24826957.06 | E197: 5214434.38 | F197: 0 | G197: 30041391.44 | I197: 0 | K197: -10081099.8 | L197: -1195904.46 | M197: 0 | N197: -11277004.26 | O197: 18764387.18 | S197: 1908
B198: 1910 | C198: Leasehold Improvements | D198: 0 | G198: 0 | I198: 0 | K198: 0 | N198: 0 | O198: 0 | S198: 1910
A199: 8 | B199: 1915 | C199: Office Furniture & Equipment (10 years) | D199: 2332878.99 | E199: 162420.69 | F199: 0 | G199: 2495299.68 | I199: 0 | K199: -1713315.53 | L199: -119562.47 | M199: 0 | N199: -1832878 | O199: 662421.68 | S199: 1915
B200: 1915 | C200: Office Furniture & Equipment (5 years) | D200: 0 | G200: 0 | I200: 0 | K200: 0 | N200: 0 | O200: 0 | S200: 1915
A201: 50 | B201: 1920 | C201: Computer Equipment - Hardware | D201: 8098500.11 | E201: 2507697.9 | F201: 0 | G201: 10606198.01 | I201: 0 | K201: -4889277.17 | L201: -1280115.2 | M201: 0 | N201: -6169392.37 | O201: 4436805.64 | S201: 1920
B202: 1920 | C202: Computer Equip.-Hardware(Post Mar. 22/04) | D202: 0 | G202: 0 | I202: 0 | K202: 0 | N202: 0 | O202: 0 | S202: 1920
B203: 1920 | C203: Computer Equip.-Hardware(Post Mar. 19/07) | D203: 0 | G203: 0 | I203: 0 | K203: 0 | N203: 0 | O203: 0 | S203: 1920
A204: 10 | B204: 1930 | C204: Transportation Equipment | D204: 11413805.09 | E204: 2455255.05 | F204: -85891.26 | G204: 13783168.88 | I204: 0 | K204: -5462992.65 | L204: -978396.01 | M204: 85891.26 | N204: -6355497.4 | O204: 7427671.48 | S204: 1930
A205: 8 | B205: 1935 | C205: Stores Equipment | D205: 108757.92 | E205: 0 | F205: 0 | G205: 108757.92 | I205: 0 | K205: -58432.44 | L205: -11186.85 | M205: 0 | N205: -69619.29 | O205: 39138.63 | S205: 1935
A206: 8 | B206: 1940 | C206: Tools, Shop & Garage Equipment | D206: 2767625.16 | E206: 431334.32 | F206: 0 | G206: 3198959.48 | I206: 0 | K206: -1549643.77 | L206: -247751.92 | M206: 0 | N206: -1797395.69 | O206: 1401563.79 | S206: 1940
A207: 8 | B207: 1945 | C207: Measurement & Testing Equipment | D207: 185377.4 | E207: 0 | F207: 0 | G207: 185377.4 | I207: 0 | K207: -134126.12 | L207: -14135.12 | M207: 0 | N207: -148261.24 | O207: 37116.16 | S207: 1945
B208: 1950 | C208: Power Operated Equipment | D208: 0 | G208: 0 | I208: 0 | K208: 0 | N208: 0 | O208: 0 | S208: 1950
A209: 8 | B209: 1955 | C209: Communications Equipment | D209: 1986644.5 | E209: =339287.24 -> 339287.24 | F209: 0 | G209: 2325931.74 | I209: 0 | K209: -1331613.01 | L209: -204237.35 | M209: 0 | N209: -1535850.36 | O209: 790081.38 | S209: 1955
B210: 1955 | C210: Communication Equipment (Smart Meters) | D210: 0 | G210: 0 | I210: 0 | K210: 0 | N210: 0 | O210: 0 | S210: 1955
A211: 8 | B211: 1960 | C211: Miscellaneous Equipment | D211: 440191.49 | E211: 25626.86 | F211: 0 | G211: 465818.35 | I211: 0 | K211: -238577.18 | L211: -37715.4 | M211: 0 | N211: -276292.58 | O211: 189525.77 | S211: 1960
B212: 1970 | C212: Load Management Controls Customer Premises | D212: 0 | G212: 0 | I212: 0 | K212: 0 | N212: 0 | O212: 0 | S212: 1970
B213: 1975 | C213: Load Management Controls Utility Premises | D213: 0 | G213: 0 | I213: 0 | K213: 0 | N213: 0 | O213: 0 | S213: 1975
A214: 8 | B214: 1980 | C214: System Supervisor Equipment | D214: 8485156.469 | E214: =531740.699999999 -> 531740.7 | F214: 0 | G214: 9016897.169 | I214: 0 | K214: -4131343.53 | L214: -446847.12 | M214: 0 | N214: -4578190.65 | O214: 4438706.519 | S214: 1980
B215: 1985 | C215: Miscellaneous Fixed Assets | D215: 0 | G215: 0 | I215: 0 | K215: 0 | N215: 0 | O215: 0 | S215: 1985
B216: 1990 | C216: Other Tangible Property | D216: 0 | G216: 0 | I216: 0 | K216: 0 | N216: 0 | O216: 0 | S216: 1990
B217: 1995 | C217: Contributions & Grants | D217: 0 | G217: 0 | I217: 0 | K217: 0 | N217: 0 | O217: 0 | S217: 1995
A218: 43.2 | B218: 2075 | C218: Renewables (31) | D218: 1251765.48 | E218: 0.43 | F218: 0 | G218: 1251765.91 | K218: -411804.92 | L218: -57868.36 | M218: 0 | N218: -469673.28 | O218: 782092.63
A219: 47 | B219: 2440 | C219: Deferred Revenue5 | D219: -95731244.14 | E219: -12068411.39 | F219: 466264.4 | G219: -107333391.1 | I219: 0 | K219: 8093028.34 | L219: 2506465.58 | M219: -36766.71 | N219: 10562727.21 | O219: -96770663.92 | S219: 2440
A220: N/A | B220: 2005 | C220: Property Under Finance Lease7 | D220: 1949864.79 | E220: 0 | F220: 0 | G220: 1949864.79 | I220: 0 | K220: -1222142.66 | L220: -216734.99 | M220: 0 | N220: -1438877.65 | O220: 510987.14 | S220: 2005
C221: Sub-Total | D221: =SUM(D177:D220) -> 514953376.3 | E221: =SUM(E177:E220) -> 38521572.4 | F221: =SUM(F177:F220) -> -2236196.97 | G221: =SUM(G177:G220) -> 551238751.7 | I221: =SUM(I177:I220) -> 0 | K221: =SUM(K177:K220) -> -132191019.9 | L221: =SUM(L177:L220) -> -20821914.05 | M221: =SUM(M177:M220) -> 880681.77 | N221: =SUM(N177:N220) -> -152132252.2 | O221: =SUM(O177:O220) -> 399106499.5
C222: Less Socialized Renewable Energy Generation Investments (input as negative) | D222: =G154 -> -675735.9245 | G222: =D222+E222+F222 -> -675735.9245 | K222: =N154 -> 211234.6342 | L222: 35751.9373 | N222: =K222+L222+M222 -> 246986.5715 | O222: =G222+N222 -> -428749.353
C223: Less Other Non Rate-Regulated Utility Assets (input as negative) | D223: =G155 -> -1251765.48 | E223: =-E218 -> -0.43 | F223: =-F218 -> 0 | G223: =D223+E223+F223 -> -1251765.91 | K223: =N155 -> 411804.92 | L223: =-L218 -> 57868.36 | N223: =K223+L223+M223 -> 469673.28 | O223: =G223+N223 -> -782092.63
C224: Total PP&E for Rate Base Purposes | D224: =SUM(D221:D223) -> 513025874.9 | E224: =SUM(E221:E223) -> 38521571.97 | F224: =SUM(F221:F223) -> -2236196.97 | G224: =SUM(G221:G223) -> 549311249.9 | K224: =SUM(K221:K223) -> -131567980.4 | L224: =SUM(L221:L223) -> -20728293.75 | M224: =SUM(M221:M223) -> 880681.77 | N224: =SUM(N221:N223) -> -151415592.4 | O224: =SUM(O221:O223) -> 397895657.5
C225: Construction Work In Progress | D225: =G157 -> 37939641.8 | E225: =-70806.87+890882.58+14740.77+915956.5+390313.45-8310716.92 -> -6169630.49 | G225: =D225+E225+F225 -> 31770011.31 | I225: 0 | N225: =K225+L225+M225 -> 0 | O225: =G225+N225 -> 31770011.31
C226: Total PP&E | D226: =SUM(D224:D225) -> 550965516.7 | E226: =SUM(E224:E225) -> 32351941.48 | F226: -2236196.97 | G226: 581081261.2 | I226: 0 | J226: 0 | K226: -131567980.4 | L226: -20728293.75 | M226: 880681.77 | N226: -151415592.4 | O226: 429665668.8
C227: Depreciation Expense adj. from gain or loss on the retirement of assets (pool of like assets), if applicable6
C228: Total | L228: =L226+L227 -> -20728293.75
... 582 more rows

Sheet App.2-BA_Fixed Asset Cont (ICM)
A1: Appendix 2-BA
A2: ICM Fixed Asset Continuity Schedule
E4: Accounting Standard | F4: MIFRS
E5: Year | F5: 2022 | I5: =IF(F5=2014,4,IF(F5=2015,5,IF(F5=2016,6,IF(F5=2017,7,IF(F5=2018,8,IF(F5=2019,9,IF(F5=2020,10))))))) -> FALSE
D7: Cost | L7: Accumulated Depreciation
A8: CCA Class 2 | B8: OEB Account 3 | C8: Description 3 | D8: Opening Balance 8 | E8: Additions 4 | F8: Disposals 6 | G8: Closing Balance | I8: RRR DATA | K8: Opening Balance 8 | L8: Additions | M8: Disposals 6 | N8: Closing Balance | O8: Net Book Value
A9: 14.1 | B9: 1609 | C9: Capital Contributions Paid | D9: 0 | G9: =D9+E9+F9 -> 0 | K9: 0 | N9: =K9+L9+M9 -> 0 | O9: =G9+N9 -> 0
B10: 1610 | C10: 1610 Miscellaneous Intangible Plant | G10: =D10+E10+F10 -> 0 | N10: =K10+L10+M10 -> 0 | O10: =G10+N10 -> 0
A11: 12 | B11: 1611 | C11: Computer Software (Formally known as Account 1925) | D11: 0 | G11: =D11+E11+F11 -> 0 | K11: 0 | N11: =K11+L11+M11 -> 0 | O11: =G11+N11 -> 0
A12: 14.1 | B12: 1612 | C12: Land Rights (Formally known as Account 1906) | D12: 0 | E12: 3841402 | G12: =D12+E12+F12 -> 3841402 | K12: 0 | N12: =K12+L12+M12 -> 0 | O12: =G12+N12 -> 3841402
B13: 1805 | C13: Land | G13: =D13+E13+F13 -> 0 | N13: =K13+L13+M13 -> 0 | O13: =G13+N13 -> 0
B14: 1808 | C14: Buildings | G14: =D14+E14+F14 -> 0 | N14: =K14+L14+M14 -> 0 | O14: =G14+N14 -> 0
B15: 1810 | C15: Leasehold Improvements | G15: 0 | N15: 0 | O15: 0
A16: 47 | B16: 1815 | C16: Transformer Station Equipment >50 kV | D16: 0 | E16: =16008403.68+2217871.9+5001651.95+11229156.71 -> 34457084.24 | G16: 34457084.24 | K16: 0 | L16: =-151791.37-27932.13-62991.36-125709.71 -> -368424.57 | N16: -368424.57 | O16: 34088659.67
A17: 47 | B17: 1820 | C17: Distribution Station Equipment <50 kV | D17: 0 | G17: 0 | K17: 0 | N17: 0 | O17: 0
B18: 1825 | C18: Storage Battery Equipment | G18: 0 | N18: 0 | O18: 0
A19: 47 | B19: 1830 | C19: Poles, Towers & Fixtures | D19: 0 | E19: =(1004.25+9287.99+6637.68+25260.78+13624.88+67633.45+47590.98+115330.74+2230.82)+(1679.87+43769.5+7557.07+8040.08+5437.09+73690.69+176935.99+13273.19+14893.06+184403.78+119035.27+20399.32+50472.68+2532.82+149093.54+213733.64) -> 1373549.16 | G19: 1373549.16 | K19: 0 | L19: =(-12.65-116.97-83.59-318.14-171.59-851.78-599.37-1452.49-28.09)+(-21.16-551.24-95.17-101.26-68.48-928.07-2228.35-167.16-187.56-2322.4-1499.14-256.91-635.66-31.9-1877.7-2691.79) -> -17298.62 | N19: -17298.62 | O19: 1356250.54
A20: 47 | B20: 1835 | C20: Overhead Conductors & Devices | D20: 0 | E20: =(133892.89+3503.83+30715.09)+(5637.65+191019.84+58752.8+23473.81+73793.22+55805.28+6866.94) -> 583461.35 | G20: 583461.35 | K20: 0 | L20: =(-1124.18-88.26-386.83)+(-47.33-1603.82-493.29-197.09-1858.72-1405.64-86.48) -> -7291.64 | N20: -7291.64 | O20: 576169.71
A21: 47 | B21: 1840 | C21: Underground Conduit | D21: 0 | E21: 1218817.85 | G21: 1218817.85 | K21: 0 | L21: -10233.29 | N21: -10233.29 | O21: 1208584.56
A22: 47 | B22: 1845 | C22: Underground Conductors & Devices | D22: 0 | E22: =(96824.54+236038.49+1737855.56+128573.3+144264.99)+(22142.37+4368.97) -> 2370068.22 | G22: 2370068.22 | K22: 0 | L22: =(-1219.42-2972.69-21886.75-1619.27-2907.1)+(-278.86-55.02) -> -30939.11 | N22: -30939.11 | O22: 2339129.11
A23: 47 | B23: 1850 | C23: Line Transformers | D23: 0 | E23: =41323.89+20217.07+(60627.6+3201.2+8346.18) -> 133715.94 | G23: 133715.94 | K23: 0 | L23: =(-693.89-254.62)+(-1018.02-40.32-105.11) -> -2111.96 | N23: -2111.96 | O23: 131603.98
A24: 47 | B24: 1855 | C24: Services (Overhead & Underground) | D24: 0 | G24: 0 | K24: 0 | N24: 0 | O24: 0
B25: 1860 | C25: Meters | G25: 0 | N25: 0 | O25: 0
B26: 1860 | C26: Meters (Smart Meters) | G26: 0 | N26: 0 | O26: 0
B27: 1865 | C27: Other Installations on Customers Premises | G27: 0 | N27: 0 | O27: 0
B28: 1905 | C28: Land | G28: 0 | N28: 0 | O28: 0
B29: 1908 | C29: Buildings & Fixtures | G29: 0 | N29: 0 | O29: 0
B30: 1910 | C30: Leasehold Improvements | G30: 0 | N30: 0 | O30: 0
B31: 1915 | C31: Office Furniture & Equipment (10 years) | G31: 0 | N31: 0 | O31: 0
B32: 1915 | C32: Office Furniture & Equipment (5 years) | G32: 0 | N32: 0 | O32: 0
A33: 50 | B33: 1920 | C33: Computer Equipment - Hardware | D33: 0 | G33: 0 | K33: 0 | N33: 0 | O33: 0
B34: 1920 | C34: Computer Equip.-Hardware(Post Mar. 22/04) | G34: 0 | N34: 0 | O34: 0
B35: 1920 | C35: Computer Equip.-Hardware(Post Mar. 19/07) | G35: 0 | N35: 0 | O35: 0
B36: 1930 | C36: Transportation Equipment | G36: 0 | N36: 0 | O36: 0
B37: 1935 | C37: Stores Equipment | G37: 0 | N37: 0 | O37: 0
B38: 1940 | C38: Tools, Shop & Garage Equipment | G38: 0 | N38: 0 | O38: 0
B39: 1945 | C39: Measurement & Testing Equipment | G39: 0 | N39: 0 | O39: 0
B40: 1950 | C40: Power Operated Equipment | G40: 0 | N40: 0 | O40: 0
A41: 8 | B41: 1955 | C41: Communications Equipment | D41: 0 | G41: 0 | K41: 0 | N41: 0 | O41: 0
B42: 1955 | C42: Communication Equipment (Smart Meters) | G42: 0 | N42: 0 | O42: 0
B43: 1960 | C43: Miscellaneous Equipment | G43: 0 | N43: 0 | O43: 0
B44: 1970 | C44: Load Management Controls Customer Premises | G44: 0 | N44: 0 | O44: 0
B45: 1975 | C45: Load Management Controls Utility Premises | G45: 0 | N45: 0 | O45: 0
A46: 8 | B46: 1980 | C46: System Supervisor Equipment | D46: 0 | E46: 84847.49 | G46: 84847.49 | K46: 0 | L46: -2849.42 | N46: -2849.42 | O46: 81998.07
B47: 1985 | C47: Miscellaneous Fixed Assets | G47: 0 | N47: 0 | O47: 0
B48: 1990 | C48: Other Tangible Property | G48: 0 | N48: 0 | O48: 0
B49: 1995 | C49: Contributions & Grants | G49: 0 | N49: 0 | O49: 0
B50: 2075 | C50: Renewables (31) | G50: 0 | N50: 0 | O50: 0
A51: 47 | B51: 2440 | C51: Deferred Revenue5 | D51: 0 | E51: =-147811.49-48212.28-1751.92-11909.17-481452.37-1371268.14-188408.11-20926.02 -> -2271739.5 | G51: -2271739.5 | K51: 0 | L51: =1861.56+404.79+44.13+149.99+4042.31+17269.91+2372.83+351.38 -> 26496.9 | N51: 26496.9 | O51: -2245242.6
B52: 2005 | C52: Property Under Finance Lease7 | G52: 0 | N52: 0 | O52: 0
C53: Sub-Total | D53: =SUM(D9:D52) -> 0 | E53: =SUM(E9:E52) -> 41791206.75 | F53: =SUM(F9:F52) -> 0 | G53: =SUM(G9:G52) -> 41791206.75 | K53: =SUM(K9:K52) -> 0 | L53: =SUM(L9:L52) -> -412651.71 | M53: =SUM(M9:M52) -> 0 | N53: =SUM(N9:N52) -> -412651.71 | O53: =SUM(O9:O52) -> 41378555.04
C54: Less Socialized Renewable Energy Generation Investments (input as negative) | D54: 0 | G54: =D54+E54+F54 -> 0 | K54: 0 | N54: =K54+L54+M54 -> 0 | O54: =G54+N54 -> 0
C55: Less Other Non Rate-Regulated Utility Assets (input as negative) | D55: 0 | G55: =D55+E55+F55 -> 0 | K55: 0 | N55: =K55+L55+M55 -> 0 | O55: =G55+N55 -> 0
C56: Total PP&E for Rate Base Purposes | D56: =SUM(D53:D55) -> 0 | E56: =SUM(E53:E55) -> 41791206.75 | F56: =SUM(F53:F55) -> 0 | G56: =SUM(G53:G55) -> 41791206.75 | K56: =SUM(K53:K55) -> 0 | L56: =SUM(L53:L55) -> -412651.71 | M56: =SUM(M53:M55) -> 0 | N56: =SUM(N53:N55) -> -412651.71 | O56: =SUM(O53:O55) -> 41378555.04
C57: Construction Work In Progress | D57: 0 | G57: =D57+E57+F57 -> 0 | N57: =K57+L57+M57 -> 0 | O57: =G57+N57 -> 0
C58: Total PP&E | D58: =SUM(D56:D57) -> 0 | E58: =SUM(E56:E57) -> 41791206.75 | F58: 0 | G58: 41791206.75 | K58: =SUM(K56:K57) -> 0 | L58: -412651.71 | M58: 0 | N58: -412651.71 | O58: 41378555.04
C59: Depreciation Expense adj. from gain or loss on the retirement of assets (pool of like assets), if applicable6
C60: Total | L60: =L58+L59 -> -412651.71
E64: Accounting Standard | F64: MIFRS
E65: Year | F65: =+F5+1 -> 2023 | I65: =IF(F65=2014,4,IF(F65=2015,5,IF(F65=2016,6,IF(F65=2017,7,IF(F65=2018,8,IF(F65=2019,9,IF(F65=2020,10))))))) -> FALSE
D67: Cost | K67: Accumulated Depreciation
A68: CCA Class 2 | B68: OEB Account 3 | C68: Description 3 | D68: Opening Balance 8 | E68: Z-Factor Opening Balance | F68: Additions 4 | G68: Disposals 6 | H68: Closing Balance | I68: RRR DATA | K68: Opening Balance 8 | L68: Z-Factor Opening Balance | M68: Additions | N68: Disposals 6 | O68: Closing Balance | P68: Net Book Value
A69: 14.1 | B69: 1609 | C69: Capital Contributions Paid | D69: =G9 -> 0 | H69: =D69+E69+F69+G69 -> 0 | K69: =N9 -> 0 | O69: =K69+L69+M69+N69 -> 0 | P69: =H69+O69 -> 0
B70: 1610 | C70: 1610 Miscellaneous Intangible Plant | D70: 0 | H70: 0 | K70: 0 | O70: =K70+L70+M70+N70 -> 0 | P70: 0
A71: 12 | B71: 1611 | C71: Computer Software (Formally known as Account 1925) | D71: 0 | F71: 440038.54 | H71: 440038.54 | K71: 0 | M71: -44316.96 | O71: -44316.96 | P71: 395721.58
A72: 14.1 | B72: 1612 | C72: Land Rights (Formally known as Account 1906) | D72: 3841402 | H72: 3841402 | K72: 0 | O72: 0 | P72: 3841402
B73: 1805 | C73: Land | D73: 0 | H73: 0 | K73: 0 | O73: 0 | P73: 0
B74: 1808 | C74: Buildings | D74: 0 | H74: 0 | K74: 0 | O74: 0 | P74: 0
B75: 1810 | C75: Leasehold Improvements | D75: 0 | H75: 0 | K75: 0 | O75: 0 | P75: 0
A76: 47 | B76: 1815 | C76: Transformer Station Equipment >50 kV | D76: 34457084.24 | F76: =14420.75+12929.89-631108.4+943214.959999999 -> 339457.2 | H76: 34796541.44 | K76: -368424.57 | M76: =-300742.79-55571.69-104955.63-259928.4 -> -721198.51 | O76: -1089623.08 | P76: 33706918.36
A77: 47 | B77: 1820 | C77: Distribution Station Equipment <50 kV | D77: 0 | H77: 0 | K77: 0 | O77: 0 | P77: 0
B78: 1825 | C78: Storage Battery Equipment | D78: 0 | H78: 0 | K78: 0 | O78: 0 | P78: 0
A79: 47 | B79: 1830 | C79: Poles, Towers & Fixtures | D79: 1373549.16 | F79: 1053918.97 | H79: 2427468.13 | K79: -17298.62 | M79: -47505.6 | O79: -64804.22 | P79: 2362663.91
A80: 47 | B80: 1835 | C80: Overhead Conductors & Devices | D80: 583461.35 | F80: 1004261.73 | H80: 1587723.08 | K80: -7291.64 | M80: -29026.58 | O80: -36318.22 | P80: 1551404.86
A81: 47 | B81: 1840 | C81: Underground Conduit | D81: 1218817.85 | F81: 1347931.7 | H81: 2566749.55 | K81: -10233.29 | M81: -31617.07 | O81: -41850.36 | P81: 2524899.19
A82: 47 | B82: 1845 | C82: Underground Conductors & Devices | D82: 2370068.22 | F82: 790696.66 | H82: 3160764.88 | K82: -30939.11 | M82: -75457.77 | O82: -106396.88 | P82: 3054368
A83: 47 | B83: 1850 | C83: Line Transformers | D83: 133715.94 | F83: 49606.94 | H83: 183322.88 | K83: -2111.96 | M83: -4892.88 | O83: -7004.84 | P83: 176318.04
A84: 47 | B84: 1855 | C84: Services (Overhead & Underground) | D84: 0 | F84: 6370.09 | H84: 6370.09 | K84: 0 | M84: -64.18 | O84: -64.18 | P84: 6305.91
B85: 1860 | C85: Meters | D85: 0 | H85: 0 | K85: 0 | O85: 0 | P85: 0
B86: 1860 | C86: Meters (Smart Meters) | D86: 0 | H86: 0 | K86: 0 | O86: 0 | P86: 0
B87: 1865 | C87: Other Installations on Customers Premises | D87: 0 | H87: 0 | K87: 0 | O87: 0 | P87: 0
B88: 1905 | C88: Land | D88: 0 | H88: 0 | K88: 0 | O88: 0 | P88: 0
B89: 1908 | C89: Buildings & Fixtures | D89: 0 | H89: 0 | K89: 0 | O89: 0 | P89: 0
B90: 1910 | C90: Leasehold Improvements | D90: 0 | H90: 0 | K90: 0 | O90: 0 | P90: 0
B91: 1915 | C91: Office Furniture & Equipment (10 years) | D91: 0 | H91: 0 | K91: 0 | O91: 0 | P91: 0
B92: 1915 | C92: Office Furniture & Equipment (5 years) | D92: 0 | H92: 0 | K92: 0 | O92: 0 | P92: 0
A93: 50 | B93: 1920 | C93: Computer Equipment - Hardware | D93: 0 | F93: 5299.13 | H93: 5299.13 | K93: 0 | M93: -533.68 | O93: -533.68 | P93: 4765.45
B94: 1920 | C94: Computer Equip.-Hardware(Post Mar. 22/04) | D94: 0 | H94: 0 | K94: 0 | O94: 0 | P94: 0
B95: 1920 | C95: Computer Equip.-Hardware(Post Mar. 19/07) | D95: 0 | H95: 0 | K95: 0 | O95: 0 | P95: 0
B96: 1930 | C96: Transportation Equipment | D96: 0 | H96: 0 | K96: 0 | O96: 0 | P96: 0
B97: 1935 | C97: Stores Equipment | D97: 0 | H97: 0 | K97: 0 | O97: 0 | P97: 0
B98: 1940 | C98: Tools, Shop & Garage Equipment | D98: 0 | H98: 0 | K98: 0 | O98: 0 | P98: 0
B99: 1945 | C99: Measurement & Testing Equipment | D99: 0 | H99: 0 | K99: 0 | O99: 0 | P99: 0
B100: 1950 | C100: Power Operated Equipment | D100: 0 | H100: 0 | K100: 0 | O100: 0 | P100: 0
A101: 8 | B101: 1955 | C101: Communications Equipment | D101: 0 | H101: 0 | K101: 0 | O101: 0 | P101: 0
B102: 1955 | C102: Communication Equipment (Smart Meters) | D102: 0 | H102: 0 | K102: 0 | O102: 0 | P102: 0
B103: 1960 | C103: Miscellaneous Equipment | D103: 0 | H103: 0 | K103: 0 | O103: 0 | P103: 0
B104: 1970 | C104: Load Management Controls Customer Premises | D104: 0 | H104: 0 | K104: 0 | O104: 0 | P104: 0
B105: 1975 | C105: Load Management Controls Utility Premises | D105: 0 | H105: 0 | K105: 0 | O105: 0 | P105: 0
A106: 8 | B106: 1980 | C106: System Supervisor Equipment | D106: 84847.49 | F106: 1669.03 | H106: 86516.52 | K106: -2849.42 | M106: -5464.32 | O106: -8313.74 | P106: 78202.78
B107: 1985 | C107: Miscellaneous Fixed Assets | D107: 0 | H107: 0 | K107: 0 | O107: 0 | P107: 0
B108: 1990 | C108: Other Tangible Property | D108: 0 | H108: 0 | K108: 0 | O108: 0 | P108: 0
B109: 1995 | C109: Contributions & Grants | D109: 0 | H109: 0 | K109: 0 | O109: 0 | P109: 0
B110: 2075 | C110: Renewables (31) | D110: 0 | H110: 0 | K110: 0 | O110: 0 | P110: 0
A111: 47 | B111: 2440 | C111: Deferred Revenue5 | D111: -2271739.5 | F111: -1239727.97 | H111: -3511467.47 | K111: 26496.9 | M111: 102162.76 | O111: 128659.66 | P111: -3382807.81
B112: 2005 | C112: Property Under Finance Lease7 | D112: 0 | H112: 0 | K112: 0 | O112: 0 | P112: 0
C113: Sub-Total | D113: =SUM(D69:D112) -> 41791206.75 | E113: 0 | F113: 3799522.02 | G113: 0 | H113: 45590728.77 | K113: =SUM(K69:K112) -> -412651.71 | L113: 0 | M113: -857914.79 | N113: 0 | O113: -1270566.5 | P113: 44320162.27
C114: Less Socialized Renewable Energy Generation Investments (input as negative) | D114: =G54 -> 0 | H114: =D114+E114+F114+G114 -> 0 | K114: =N54 -> 0 | O114: =K114+L114+M114+N114 -> 0 | P114: =H114+O114 -> 0
C115: Less Other Non Rate-Regulated Utility Assets (input as negative) | D115: =G55 -> 0 | H115: =D115+E115+F115+G115 -> 0 | K115: =N55 -> 0 | O115: 0 | P115: =H115+O115 -> 0
C116: Total PP&E for Rate Base Purposes | D116: =SUM(D113:D115) -> 41791206.75 | E116: =SUM(E113:E115) -> 0 | F116: =SUM(F113:F115) -> 3799522.02 | G116: =SUM(G113:G115) -> 0 | H116: =SUM(H113:H115) -> 45590728.77 | K116: =SUM(K113:K115) -> -412651.71 | L116: 0 | M116: -857914.79 | N116: 0 | O116: -1270566.5 | P116: 44320162.27
C117: Construction Work In Progress | D117: =G57 -> 0 | H117: =D117+E117+F117+G117 -> 0 | O117: =K117+L117+M117+N117 -> 0 | P117: =H117+O117 -> 0
C118: Total PP&E | D118: =SUM(D116:D117) -> 41791206.75 | E118: =SUM(E116:E117) -> 0 | F118: 3799522.02 | G118: 0 | H118: 45590728.77 | K118: =SUM(K116:K117) -> -412651.71 | L118: 0 | M118: -857914.79 | N118: 0 | O118: -1270566.5 | P118: 44320162.27
C119: Depreciation Expense adj. from gain or loss on the retirement of assets (pool of like assets), if applicable6
C120: Total | M120: =M118+M119 -> -857914.79
E124: Accounting Standard | F124: MIFRS
E125: Year | F125: =+F65+1 -> 2024 | I125: =IF(F125=2014,4,IF(F125=2015,5,IF(F125=2016,6,IF(F125=2017,7,IF(F125=2018,8,IF(F125=2019,9,IF(F125=2020,10))))))) -> FALSE
D127: Cost | L127: Accumulated Depreciation
A128: CCA Class 2 | B128: OEB Account 3 | C128: Description 3 | D128: Opening Balance 8 | E128: Additions 4 | F128: Disposals 6 | G128: Closing Balance | K128: Opening Balance 8 | L128: Additions | M128: Disposals 6 | N128: Closing Balance | O128: Net Book Value
A129: 14.1 | B129: 1609 | C129: Capital Contributions Paid | D129: =H69 -> 0 | E129: =3244400.11 -> 3244400.11 | G129: =D129+E129+F129 -> 3244400.11 | K129: =O69 -> 0 | L129: -38011.44 | N129: =K129+L129+M129 -> -38011.44 | O129: =G129+N129 -> 3206388.67
B130: 1610 | C130: 1610 Miscellaneous Intangible Plant | D130: 0 | G130: =D130+E130+F130 -> 0 | K130: 0 | N130: =K130+L130+M130 -> 0 | O130: =G130+N130 -> 0
A131: 12 | B131: 1611 | C131: Computer Software (Formally known as Account 1925) | D131: 440038.54 | E131: 2478004.58 | G131: =D131+E131+F131 -> 2918043.12 | K131: -44316.96 | L131: -337852.58 | N131: =K131+L131+M131 -> -382169.54 | O131: =G131+N131 -> 2535873.58
A132: 14.1 | B132: 1612 | C132: Land Rights (Formally known as Account 1906) | D132: 3841402 | G132: =D132+E132+F132 -> 3841402 | K132: 0 | N132: =K132+L132+M132 -> 0 | O132: =G132+N132 -> 3841402
B133: 1805 | C133: Land | D133: 0 | G133: =D133+E133+F133 -> 0 | K133: 0 | N133: =K133+L133+M133 -> 0 | O133: =G133+N133 -> 0
B134: 1808 | C134: Buildings | D134: 0 | G134: =D134+E134+F134 -> 0 | K134: 0 | N134: =K134+L134+M134 -> 0 | O134: =G134+N134 -> 0
B135: 1810 | C135: Leasehold Improvements | D135: 0 | G135: 0 | K135: 0 | N135: 0 | O135: 0
A136: 47 | B136: 1815 | C136: Transformer Station Equipment >50 kV | D136: 34796541.44 | G136: 34796541.44 | K136: -1089623.08 | L136: =-302270.12-55884.56-109184.91-271055.43 -> -738395.02 | N136: -1828018.1 | O136: 32968523.34
A137: 47 | B137: 1820 | C137: Distribution Station Equipment <50 kV | D137: 0 | G137: 0 | K137: 0 | N137: 0 | O137: 0
B138: 1825 | C138: Storage Battery Equipment | D138: 0 | G138: 0 | K138: 0 | N138: 0 | O138: 0
A139: 47 | B139: 1830 | C139: Poles, Towers & Fixtures | D139: 2427468.13 | E139: =-14839.45+4891.65 -> -9947.8 | G139: 2417520.33 | K139: -64804.22 | L139: =-28547.54-31941.22 -> -60488.76 | N139: -125292.98 | O139: 2292227.35
A140: 47 | B140: 1835 | C140: Overhead Conductors & Devices | D140: 1587723.08 | E140: =-1395.82-55988.86-3034.58 -> -60419.26 | G140: 1527303.82 | K140: -36318.22 | L140: =-7745.81-20313.55-172.03-8060.94-3701.88-2346.56 -> -42340.77 | N140: -78658.99 | O140: 1448644.83
A141: 47 | B141: 1840 | C141: Underground Conduit | D141: 2566749.55 | E141: =505068.05 -> 505068.05 | G141: 3071817.6 | K141: -41850.36 | L141: -47107.59 | N141: -88957.95 | O141: 2982859.65
A142: 47 | B142: 1845 | C142: Underground Conductors & Devices | D142: 3160764.88 | E142: 5706.6 | G142: 3166471.48 | K142: -106396.88 | L142: =-767.74-61160.14-27670.51 -> -89598.39 | N142: -195995.27 | O142: 2970476.21
A143: 47 | B143: 1850 | C143: Line Transformers | D143: 183322.88 | E143: =-540.84 -> -540.84 | G143: 182782.04 | K143: -7004.84 | L143: =-2024.98-289.27-2006.06-1266.06 -> -5586.37 | N143: -12591.21 | O143: 170190.83
A144: 47 | B144: 1855 | C144: Services (Overhead & Underground) | D144: 6370.09 | G144: 6370.09 | K144: -64.18 | L144: -127.66 | N144: -191.84 | O144: 6178.25
B145: 1860 | C145: Meters | D145: 0 | G145: 0 | K145: 0 | N145: 0 | O145: 0
B146: 1860 | C146: Meters (Smart Meters) | D146: 0 | G146: 0 | K146: 0 | N146: 0 | O146: 0
B147: 1865 | C147: Other Installations on Customers Premises | D147: 0 | G147: 0 | K147: 0 | N147: 0 | O147: 0
B148: 1905 | C148: Land | D148: 0 | G148: 0 | K148: 0 | N148: 0 | O148: 0
B149: 1908 | C149: Buildings & Fixtures | D149: 0 | G149: 0 | K149: 0 | N149: 0 | O149: 0
B150: 1910 | C150: Leasehold Improvements | D150: 0 | G150: 0 | K150: 0 | N150: 0 | O150: 0
B151: 1915 | C151: Office Furniture & Equipment (10 years) | D151: 0 | G151: 0 | K151: 0 | N151: 0 | O151: 0
B152: 1915 | C152: Office Furniture & Equipment (5 years) | D152: 0 | G152: 0 | K152: 0 | N152: 0 | O152: 0
A153: 50 | B153: 1920 | C153: Computer Equipment - Hardware | D153: 5299.13 | G153: 5299.13 | K153: -533.68 | L153: =-1061.57 -> -1061.57 | N153: -1595.25 | O153: 3703.88
B154: 1920 | C154: Computer Equip.-Hardware(Post Mar. 22/04) | D154: 0 | G154: 0 | K154: 0 | N154: 0 | O154: 0
B155: 1920 | C155: Computer Equip.-Hardware(Post Mar. 19/07) | D155: 0 | G155: 0 | K155: 0 | N155: 0 | O155: 0
B156: 1930 | C156: Transportation Equipment | D156: 0 | G156: 0 | K156: 0 | N156: 0 | O156: 0
B157: 1935 | C157: Stores Equipment | D157: 0 | G157: 0 | K157: 0 | N157: 0 | O157: 0
B158: 1940 | C158: Tools, Shop & Garage Equipment | D158: 0 | G158: 0 | K158: 0 | N158: 0 | O158: 0
B159: 1945 | C159: Measurement & Testing Equipment | D159: 0 | G159: 0 | K159: 0 | N159: 0 | O159: 0
B160: 1950 | C160: Power Operated Equipment | D160: 0 | G160: 0 | K160: 0 | N160: 0 | O160: 0
A161: 8 | B161: 1955 | C161: Communications Equipment | D161: 0 | G161: 0 | K161: 0 | N161: 0 | O161: 0
B162: 1955 | C162: Communication Equipment (Smart Meters) | D162: 0 | G162: 0 | K162: 0 | N162: 0 | O162: 0
B163: 1960 | C163: Miscellaneous Equipment | D163: 0 | G163: 0 | K163: 0 | N163: 0 | O163: 0
B164: 1970 | C164: Load Management Controls Customer Premises | D164: 0 | G164: 0 | K164: 0 | N164: 0 | O164: 0
B165: 1975 | C165: Load Management Controls Utility Premises | D165: 0 | G165: 0 | K165: 0 | N165: 0 | O165: 0
A166: 8 | B166: 1980 | C166: System Supervisor Equipment | D166: 86516.52 | E166: =2876.41 -> 2876.41 | G166: 89392.93 | K166: -8313.74 | L166: =-5190.56-669.37 -> -5859.93 | N166: -14173.67 | O166: 75219.26
B167: 1985 | C167: Miscellaneous Fixed Assets | D167: 0 | G167: 0 | K167: 0 | N167: 0 | O167: 0
B168: 1990 | C168: Other Tangible Property | D168: 0 | G168: 0 | K168: 0 | N168: 0 | O168: 0
B169: 1995 | C169: Contributions & Grants | D169: 0 | G169: 0 | K169: 0 | N169: 0 | O169: 0
B170: 2075 | C170: Renewables (31) | D170: 0 | G170: 0 | K170: 0 | N170: 0 | O170: 0
A171: 47 | B171: 2440 | C171: Deferred Revenue5 | D171: -3511467.47 | E171: =195699.77-1239002.29 -> -1043302.52 | G171: -4554769.99 | K171: 128659.66 | L171: =68074.46+208114.54 -> 276189 | N171: 404848.66 | O171: -4149921.33
B172: 2005 | C172: Property Under Finance Lease7 | D172: 0 | G172: 0 | K172: 0 | N172: 0 | O172: 0
C173: Sub-Total | D173: =SUM(D129:D172) -> 45590728.77 | E173: =SUM(E129:E172) -> 5121845.33 | F173: =SUM(F129:F172) -> 0 | G173: =SUM(G129:G172) -> 50712574.1 | K173: =SUM(K129:K172) -> -1270566.5 | L173: =SUM(L129:L172) -> -1090241.08 | M173: =SUM(M129:M172) -> 0 | N173: =SUM(N129:N172) -> -2360807.58 | O173: =SUM(O129:O172) -> 48351766.52
C174: Less Socialized Renewable Energy Generation Investments (input as negative) | D174: =H114 -> 0 | G174: =D174+E174+F174 -> 0 | K174: =O114 -> 0 | N174: =K174+L174+M174 -> 0 | O174: =G174+N174 -> 0
C175: Less Other Non Rate-Regulated Utility Assets (input as negative) | D175: =H115 -> 0 | G175: =D175+E175+F175 -> 0 | K175: =O115 -> 0 | N175: =K175+L175+M175 -> 0 | O175: =G175+N175 -> 0
C176: Total PP&E for Rate Base Purposes | D176: =SUM(D173:D175) -> 45590728.77 | E176: =SUM(E173:E175) -> 5121845.33 | F176: =SUM(F173:F175) -> 0 | G176: =SUM(G173:G175) -> 50712574.1 | K176: =SUM(K173:K175) -> -1270566.5 | L176: =SUM(L173:L175) -> -1090241.08 | M176: =SUM(M173:M175) -> 0 | N176: =SUM(N173:N175) -> -2360807.58 | O176: =SUM(O173:O175) -> 48351766.52
C177: Construction Work In Progress | D177: =H117 -> 0 | G177: =D177+E177+F177 -> 0 | N177: =K177+L177+M177 -> 0 | O177: =G177+N177 -> 0
C178: Total PP&E | D178: =SUM(D176:D177) -> 45590728.77 | E178: =SUM(E176:E177) -> 5121845.33 | F178: 0 | G178: 50712574.1 | K178: =SUM(K176:K177) -> -1270566.5 | L178: -1090241.08 | M178: 0 | N178: -2360807.58 | O178: 48351766.52
C179: Depreciation Expense adj. from gain or loss on the retirement of assets (pool of like assets), if applicable6
C180: Total | L180: =L178+L179 -> -1090241.08
E184: Accounting Standard | F184: MIFRS
E185: Year | F185: =+F125+1 -> 2025 | I185: =IF(F185=2014,4,IF(F185=2015,5,IF(F185=2016,6,IF(F185=2017,7,IF(F185=2018,8,IF(F185=2019,9,IF(F185=2020,10))))))) -> FALSE
D187: Cost | L187: Accumulated Depreciation
A188: CCA Class 2 | B188: OEB Account 3 | C188: Description 3 | D188: Opening Balance 8 | E188: Additions 4 | F188: Disposals 6 | G188: Closing Balance | K188: Opening Balance 8 | L188: Additions | M188: Disposals 6 | N188: Closing Balance | O188: Net Book Value
A189: 14.1 | B189: 1609 | C189: Capital Contributions Paid | D189: =G129 -> 3244400.11 | E189: -893407 | G189: =D189+E189+F189 -> 2350993.11 | K189: =N129 -> -38011.44 | L189: -54393.29 | N189: =K189+L189+M189 -> -92404.73 | O189: =G189+N189 -> 2258588.38
B190: 1610 | C190: 1610 Miscellaneous Intangible Plant | D190: 0 | G190: =D190+E190+F190 -> 0 | K190: 0 | N190: =K190+L190+M190 -> 0 | O190: =G190+N190 -> 0
A191: 12 | B191: 1611 | C191: Computer Software (Formally known as Account 1925) | D191: 2918043.12 | E191: 3705979.88 | G191: =D191+E191+F191 -> 6624023 | K191: -382169.54 | L191: -706293.31 | N191: =K191+L191+M191 -> -1088462.85 | O191: =G191+N191 -> 5535560.15
A192: 14.1 | B192: 1612 | C192: Land Rights (Formally known as Account 1906) | D192: 3841402 | G192: =D192+E192+F192 -> 3841402 | K192: 0 | N192: =K192+L192+M192 -> 0 | O192: =G192+N192 -> 3841402
B193: 1805 | C193: Land | D193: 0 | G193: =D193+E193+F193 -> 0 | K193: 0 | N193: =K193+L193+M193 -> 0 | O193: =G193+N193 -> 0
B194: 1808 | C194: Buildings | D194: 0 | G194: =D194+E194+F194 -> 0 | K194: 0 | N194: =K194+L194+M194 -> 0 | O194: =G194+N194 -> 0
B195: 1810 | C195: Leasehold Improvements | D195: 0 | G195: 0 | K195: 0 | N195: 0 | O195: 0
A196: 47 | B196: 1815 | C196: Transformer Station Equipment >50 kV | D196: 34796541.44 | G196: 34796541.44 | K196: -1828018.1 | L196: =-301444.26-55731.88-108886.59-270314.84 -> -736377.57 | N196: -2564395.67 | O196: 32232145.77
A197: 47 | B197: 1820 | C197: Distribution Station Equipment <50 kV | D197: 0 | G197: 0 | K197: 0 | N197: 0 | O197: 0
B198: 1825 | C198: Storage Battery Equipment | D198: 0 | G198: 0 | K198: 0 | N198: 0 | O198: 0
A199: 47 | B199: 1830 | C199: Poles, Towers & Fixtures | D199: 2417520.33 | G199: 2417520.33 | K199: -125292.98 | L199: -60384.26 | N199: -185677.24 | O199: 2231843.09
A200: 47 | B200: 1835 | C200: Overhead Conductors & Devices | D200: 1527303.82 | G200: 1527303.82 | K200: -78658.99 | L200: -42225.1 | N200: -120884.09 | O200: 1406419.73
A201: 47 | B201: 1840 | C201: Underground Conduit | D201: 3071817.6 | G201: 3071817.6 | K201: -88957.95 | L201: -51161.91 | N201: -140119.86 | O201: 2931697.74
A202: 47 | B202: 1845 | C202: Underground Conductors & Devices | D202: 3166471.48 | G202: 3166471.48 | K202: -195995.27 | L202: -89453.92 | N202: -285449.19 | O202: 2881022.29
A203: 47 | B203: 1850 | C203: Line Transformers | D203: 182782.04 | G203: 182782.04 | K203: -12591.21 | L203: -5571.12 | N203: -18162.33 | O203: 164619.71
A204: 47 | B204: 1855 | C204: Services (Overhead & Underground) | D204: 6370.09 | G204: 6370.09 | K204: -191.84 | L204: -127.31 | N204: -319.15 | O204: 6050.94
B205: 1860 | C205: Meters | D205: 0 | G205: 0 | K205: 0 | N205: 0 | O205: 0
B206: 1860 | C206: Meters (Smart Meters) | D206: 0 | G206: 0 | K206: 0 | N206: 0 | O206: 0
B207: 1865 | C207: Other Installations on Customers Premises | D207: 0 | G207: 0 | K207: 0 | N207: 0 | O207: 0
B208: 1905 | C208: Land | D208: 0 | G208: 0 | K208: 0 | N208: 0 | O208: 0
B209: 1908 | C209: Buildings & Fixtures | D209: 0 | G209: 0 | K209: 0 | N209: 0 | O209: 0
B210: 1910 | C210: Leasehold Improvements | D210: 0 | G210: 0 | K210: 0 | N210: 0 | O210: 0
B211: 1915 | C211: Office Furniture & Equipment (10 years) | D211: 0 | G211: 0 | K211: 0 | N211: 0 | O211: 0
B212: 1915 | C212: Office Furniture & Equipment (5 years) | D212: 0 | G212: 0 | K212: 0 | N212: 0 | O212: 0
A213: 50 | B213: 1920 | C213: Computer Equipment - Hardware | D213: 5299.13 | E213: 5455346.66 | G213: 5460645.79 | K213: -1595.25 | L213: -1046105.48 | N213: -1047700.73 | O213: 4412945.06
B214: 1920 | C214: Computer Equip.-Hardware(Post Mar. 22/04) | D214: 0 | G214: 0 | K214: 0 | N214: 0 | O214: 0
... 82 more rows

Sheet App.2-C_DepExp
H1: File Number: | J1: 0
H2: Exhibit:
A3: ` | H3: Tab:
H4: Schedule:
H5: Page:
H7: Date:
A9: Appendix 2-C | Q9: CGAAP
A10: Depreciation and Amortization Expense | Q10: Revised CGAAP
Q11: MIFRS
A13: General: | B13: This appendix is to assess the reasonability of the depreciation expense that is included in rate base via. accumulated depreciation and the revenue requirement.
B14: Applicants must provide a breakdown of depreciation and amortization expense in the above format for all relevant accounts. Balances presented in the table should exclude asset retirement obligations (AROs) and the related depreciation and accretion expense. These should be disclosed separately.
B15: This appendix must be completed under MIFRS for each year for the earlier of: 1) all historical years back to the Applicant's last rebasing; or 2) at least three years of historical actuals, in addition to Bridge Year and Test Year forecasts. If this is the first application where the Applicant is rebasing under MIFRS, contact OEB staff for further guidance on the appropriate depreciation schedules to complete (i.e. applicable years and accounting standard for each schedule).
A17: Notes:
A18: 1 | B18: This should include assets in column A (excel column C) that become fully depreciated.
A19: 2 | B19: The useful life used should be consistent with the OEB's regulatory accounting policies as set out in the Accounting Procedures Handbook for Electricity Distributors, effective Jan. 1, 2012 and also with the Report of the Board, Transition to International Financial Reporting Standards, EB-2008-0408, and the Kinectrics Report.
A20: 3 | B20: OEB policy of the "half-year" rule - the applicant must ensure that additions in the year attract a half-year depreciation expense in the first year. Deviations from this standard practice must be supported in the application.
A21: 4 | B21: The applicant must provide an explanation of material variances in its evidence.
E23: Year | F23: 2020
Q24: 2017
C25: Book Values | G25: Service Lives | I25: Depreciation Expense | Q25: 2018
A26: Account | B26: Description | C26: Opening Net Book Value of Assets | D26: Less Fully Depreciated 1 | E26: Current Year Additions | F26: Disposals (Net) | G26: Net Amount of Assets to be Depreciated | H26: Remaining Life of Assets Existing 2 | I26: Depreciation Rate Assets | J26: Depreciation Expense on Assets 3 | K26: Depreciation Expense per Appendix 2-BA Fixed Assets, Column K | L26: Variance 4 | M26: Variance %
C27: a | D27: b | E27: c | F27: d | G27: e = a-b+0.5*c-d | H27: f | I27: g = 1/f | J27: h = e/f | K27: i | L27: j = i-h | M27: k = j/i
A28: 1609 | B28: Capital Contributions Paid | C28: ='App.2-BA_Fixed Asset Cont'!D42+'App.2-BA_Fixed Asset Cont'!K42 -> 1532300 | E28: ='App.2-BA_Fixed Asset Cont'!E42 -> 602400 | F28: =-('App.2-BA_Fixed Asset Cont'!F42+'App.2-BA_Fixed Asset Cont'!M42) -> 0 | G28: =C28-D28+(E28*0.5)-F28 -> 1833500 | H28: 13 | I28: =IF(H28=0,0,1/H28) -> 0.07692307692 | J28: =IF(H28=0,0,+G28/H28) -> 141038.4615 | K28: =-'App.2-BA_Fixed Asset Cont'!L42 -> 82726.37 | L28: =IF(ISERROR(+K28-J28), 0, +K28-J28) -> -58312.09154 | M28: =IFERROR(L28/K28,0) -> -0.7048791279
A29: 1610 | B29: Miscellaneous Intangible Plant | C29: ='App.2-BA_Fixed Asset Cont'!D43+'App.2-BA_Fixed Asset Cont'!K43 -> 1107920.64 | E29: ='App.2-BA_Fixed Asset Cont'!E43 -> 550872.81 | F29: =-('App.2-BA_Fixed Asset Cont'!F43+'App.2-BA_Fixed Asset Cont'!M43) -> 0 | G29: =C29-D29+(E29*0.5)-F29 -> 1383357.045 | H29: 3.476991409 | I29: =IF(H29=0,0,1/H29) -> 0.2876049672 | J29: 397860.3575 | K29: =-'App.2-BA_Fixed Asset Cont'!L43 -> 398976.84 | L29: =IF(ISERROR(+K29-J29), 0, +K29-J29) -> 1116.482504 | M29: =IFERROR(L29/K29,0) -> 0.002798364196
A30: 1611 | B30: Computer Software (Formally known as Account 1925) | C30: ='App.2-BA_Fixed Asset Cont'!D44+'App.2-BA_Fixed Asset Cont'!K44 -> 2132472.06 | E30: ='App.2-BA_Fixed Asset Cont'!E44 -> 2438783.84 | F30: =-('App.2-BA_Fixed Asset Cont'!F44+'App.2-BA_Fixed Asset Cont'!M44) -> 0 | G30: =C30-D30+(E30*0.5)-F30 -> 3351863.98 | H30: 2.35995074 | I30: =IF(H30=0,0,1/H30) -> 0.4237376582 | J30: 1420310.994 | K30: =-'App.2-BA_Fixed Asset Cont'!L44 -> 1424705.9 | L30: =IF(ISERROR(+K30-J30), 0, +K30-J30) -> 4394.906343 | M30: =IFERROR(L30/K30,0) -> 0.003084781458
A31: 1612 | B31: Land Rights (Formally known as Account 1906) | C31: ='App.2-BA_Fixed Asset Cont'!D45+'App.2-BA_Fixed Asset Cont'!K45 -> 384759.03 | E31: ='App.2-BA_Fixed Asset Cont'!E45 -> 9268.4 | F31: =-('App.2-BA_Fixed Asset Cont'!F45+'App.2-BA_Fixed Asset Cont'!M45) -> 0 | G31: 389393.23 | H31: 31.86987856 | I31: =IF(H31=0,0,1/H31) -> 0.03137759054 | J31: 12218.22133 | K31: =-'App.2-BA_Fixed Asset Cont'!L45 -> 12243.09 | L31: =IF(ISERROR(+K31-J31), 0, +K31-J31) -> 24.86866961 | M31: 0.002031241264
A32: 1805 | B32: Land | C32: ='App.2-BA_Fixed Asset Cont'!D46+'App.2-BA_Fixed Asset Cont'!K46 -> 981172.99 | E32: ='App.2-BA_Fixed Asset Cont'!E46 -> 0 | F32: =-('App.2-BA_Fixed Asset Cont'!F46+'App.2-BA_Fixed Asset Cont'!M46) -> 0 | G32: 981172.99 | I32: 0 | J32: 0 | K32: =-'App.2-BA_Fixed Asset Cont'!L46 -> 0 | L32: 0 | M32: 0
A33: 1808 | B33: Buildings | C33: ='App.2-BA_Fixed Asset Cont'!D47+'App.2-BA_Fixed Asset Cont'!K47 -> 224715.47 | E33: ='App.2-BA_Fixed Asset Cont'!E47 -> 0 | F33: =-('App.2-BA_Fixed Asset Cont'!F47+'App.2-BA_Fixed Asset Cont'!M47) -> 0 | G33: 224715.47 | H33: 24 | I33: 0.04166666667 | J33: 9363.144583 | K33: =-'App.2-BA_Fixed Asset Cont'!L47 -> 9382.37 | L33: 19.22541667 | M33: 0.002049100245
A34: 1810 | B34: Leasehold Improvements | C34: ='App.2-BA_Fixed Asset Cont'!D48+'App.2-BA_Fixed Asset Cont'!K48 -> 0 | E34: ='App.2-BA_Fixed Asset Cont'!E48 -> 0 | F34: =-('App.2-BA_Fixed Asset Cont'!F48+'App.2-BA_Fixed Asset Cont'!M48) -> 0 | G34: 0 | I34: 0 | J34: 0 | K34: =-'App.2-BA_Fixed Asset Cont'!L48 -> 0 | L34: 0 | M34: 0
A35: 1815 | B35: Transformer Station Equipment >50 kV | C35: ='App.2-BA_Fixed Asset Cont'!D49+'App.2-BA_Fixed Asset Cont'!K49 -> 189658.5 | E35: ='App.2-BA_Fixed Asset Cont'!E49 -> 0 | F35: =-('App.2-BA_Fixed Asset Cont'!F49+'App.2-BA_Fixed Asset Cont'!M49) -> 0 | G35: 189658.5 | H35: 28.68372932 | I35: 0.03486297019 | J35: 6612.058631 | K35: =-'App.2-BA_Fixed Asset Cont'!L49 -> 6625.64 | L35: 13.58136889 | M35: 0.002049819925
A36: 1820 | B36: Distribution Station Equipment <50 kV | C36: ='App.2-BA_Fixed Asset Cont'!D50+'App.2-BA_Fixed Asset Cont'!K50 -> 49578002.81 | E36: ='App.2-BA_Fixed Asset Cont'!E50 -> 2671998.06 | F36: =-('App.2-BA_Fixed Asset Cont'!F50+'App.2-BA_Fixed Asset Cont'!M50) -> 372485.04 | G36: 50541516.8 | H36: 28.14946007 | I36: 0.03552466007 | J36: 1795470.204 | K36: =-'App.2-BA_Fixed Asset Cont'!L50 -> 1804904.58 | L36: 9434.376316 | M36: 0.005227077609
A37: 1825 | B37: Storage Battery Equipment | C37: ='App.2-BA_Fixed Asset Cont'!D51+'App.2-BA_Fixed Asset Cont'!K51 -> 0 | E37: ='App.2-BA_Fixed Asset Cont'!E51 -> 0 | F37: =-('App.2-BA_Fixed Asset Cont'!F51+'App.2-BA_Fixed Asset Cont'!M51) -> 0 | G37: 0 | I37: 0 | J37: 0 | K37: =-'App.2-BA_Fixed Asset Cont'!L51 -> 0 | L37: 0 | M37: 0
A38: 1830 | B38: Poles, Towers & Fixtures | C38: ='App.2-BA_Fixed Asset Cont'!D52+'App.2-BA_Fixed Asset Cont'!K52 -> 72770326.39 | E38: ='App.2-BA_Fixed Asset Cont'!E52 -> 8897823.29 | F38: =-('App.2-BA_Fixed Asset Cont'!F52+'App.2-BA_Fixed Asset Cont'!M52) -> 176786.69 | G38: 77042451.34 | H38: 33.16998697 | I38: 0.03014773569 | J38: 2322655.46 | K38: =-'App.2-BA_Fixed Asset Cont'!L52 -> 2332822.88 | L38: 10167.42015 | M38: 0.004358419253
A39: 1835 | B39: Overhead Conductors & Devices | C39: ='App.2-BA_Fixed Asset Cont'!D53+'App.2-BA_Fixed Asset Cont'!K53 -> 53586397.76 | E39: ='App.2-BA_Fixed Asset Cont'!E53 -> 5385975.63 | F39: =-('App.2-BA_Fixed Asset Cont'!F53+'App.2-BA_Fixed Asset Cont'!M53) -> 78280.77 | G39: 56201104.8 | H39: 30.75150467 | I39: 0.03251873398 | J39: 1827588.776 | K39: =-'App.2-BA_Fixed Asset Cont'!L53 -> 1833368.29 | L39: 5779.513511 | M39: 0.003152401808
A40: 1840 | B40: Underground Conduit | C40: ='App.2-BA_Fixed Asset Cont'!D54+'App.2-BA_Fixed Asset Cont'!K54 -> 39109407.42 | E40: ='App.2-BA_Fixed Asset Cont'!E54 -> 4087980.66 | F40: =-('App.2-BA_Fixed Asset Cont'!F54+'App.2-BA_Fixed Asset Cont'!M54) -> 0 | G40: 41153397.75 | H40: 49.81112246 | I40: 0.0200758375 | J40: 826188.9258 | K40: =-'App.2-BA_Fixed Asset Cont'!L54 -> 828051.45 | L40: 1862.524214 | M40: 0.002249285614
A41: 1845 | B41: Underground Conductors & Devices | C41: ='App.2-BA_Fixed Asset Cont'!D55+'App.2-BA_Fixed Asset Cont'!K55 -> 58739652.72 | E41: ='App.2-BA_Fixed Asset Cont'!E55 -> 7692587.3 | F41: =-('App.2-BA_Fixed Asset Cont'!F55+'App.2-BA_Fixed Asset Cont'!M55) -> 66172.43 | G41: 62519773.94 | H41: 31.0606462 | I41: 0.03219508034 | J41: 2012829.145 | K41: =-'App.2-BA_Fixed Asset Cont'!L55 -> 2011652.95 | L41: -1176.195027 | M41: -0.000584690827
A42: 1850 | B42: Line Transformers | C42: ='App.2-BA_Fixed Asset Cont'!D56+'App.2-BA_Fixed Asset Cont'!K56 -> 42229644.13 | E42: ='App.2-BA_Fixed Asset Cont'!E56 -> 6840211.29 | F42: =-('App.2-BA_Fixed Asset Cont'!F56+'App.2-BA_Fixed Asset Cont'!M56) -> 137767.53 | G42: 45511982.24 | H42: 21.82585178 | I42: 0.04581722674 | J42: 2085232.81 | K42: =-'App.2-BA_Fixed Asset Cont'!L56 -> 2094832.87 | L42: 9600.060137 | M42: 0.004582733198
A43: 1855 | B43: Services (Overhead & Underground) | C43: ='App.2-BA_Fixed Asset Cont'!D57+'App.2-BA_Fixed Asset Cont'!K57 -> 35479109.7 | E43: ='App.2-BA_Fixed Asset Cont'!E57 -> 2260403.57 | F43: =-('App.2-BA_Fixed Asset Cont'!F57+'App.2-BA_Fixed Asset Cont'!M57) -> 0 | G43: 36609311.48 | H43: 34.63981331 | I43: 0.02886851587 | J43: 1056856.489 | K43: =-'App.2-BA_Fixed Asset Cont'!L57 -> 1059296.9 | L43: 2440.410571 | M43: 0.00230380224
A44: 1860 | B44: Meters | C44: ='App.2-BA_Fixed Asset Cont'!D58+'App.2-BA_Fixed Asset Cont'!K58 -> 2214021.35 | E44: ='App.2-BA_Fixed Asset Cont'!E58 -> 195097.18 | F44: =-('App.2-BA_Fixed Asset Cont'!F58+'App.2-BA_Fixed Asset Cont'!M58) -> 0 | G44: 2311569.94 | H44: 20.6252534 | I44: 0.0484842528 | J44: 112074.7413 | K44: =-'App.2-BA_Fixed Asset Cont'!L58 -> 117161.98 | L44: 5087.238676 | M44: 0.04342055909
A45: 1860 | B45: Meters (Smart Meters) | C45: ='App.2-BA_Fixed Asset Cont'!D59+'App.2-BA_Fixed Asset Cont'!K59 -> 10684201.59 | E45: ='App.2-BA_Fixed Asset Cont'!E59 -> 1092225.04 | F45: =-('App.2-BA_Fixed Asset Cont'!F59+'App.2-BA_Fixed Asset Cont'!M59) -> 23905.46 | G45: 11206408.65 | H45: 6.369979995 | I45: 0.1569863643 | J45: 1759253.35 | K45: =-'App.2-BA_Fixed Asset Cont'!L59 -> 1766620.66 | L45: 7367.309534 | M45: 0.004170283808
A46: 1865 | B46: Other Installations on Customers Premises | C46: ='App.2-BA_Fixed Asset Cont'!D60+'App.2-BA_Fixed Asset Cont'!K60 -> 0 | E46: ='App.2-BA_Fixed Asset Cont'!E60 -> 0 | F46: =-('App.2-BA_Fixed Asset Cont'!F60+'App.2-BA_Fixed Asset Cont'!M60) -> 0 | G46: 0 | I46: 0 | J46: 0 | K46: =-'App.2-BA_Fixed Asset Cont'!L60 -> 0 | L46: 0 | M46: 0
A47: 1905 | B47: Land | C47: ='App.2-BA_Fixed Asset Cont'!D61+'App.2-BA_Fixed Asset Cont'!K61 -> 1195031.32 | E47: ='App.2-BA_Fixed Asset Cont'!E61 -> 0 | F47: =-('App.2-BA_Fixed Asset Cont'!F61+'App.2-BA_Fixed Asset Cont'!M61) -> 0 | G47: 1195031.32 | I47: 0 | J47: 0 | K47: =-'App.2-BA_Fixed Asset Cont'!L61 -> 0 | L47: 0 | M47: 0
A48: 1908 | B48: Buildings & Fixtures | C48: ='App.2-BA_Fixed Asset Cont'!D62+'App.2-BA_Fixed Asset Cont'!K62 -> 15480440.06 | E48: ='App.2-BA_Fixed Asset Cont'!E62 -> 668904.33 | F48: =-('App.2-BA_Fixed Asset Cont'!F62+'App.2-BA_Fixed Asset Cont'!M62) -> 0 | G48: 15814892.23 | H48: 15.25756657 | I48: 0.06554125098 | J48: 1036527.82 | K48: =-'App.2-BA_Fixed Asset Cont'!L62 -> 1038660.82 | L48: 2132.999506 | M48: 0.002053605436
A49: 1910 | B49: Leasehold Improvements | C49: ='App.2-BA_Fixed Asset Cont'!D63+'App.2-BA_Fixed Asset Cont'!K63 -> 0 | E49: ='App.2-BA_Fixed Asset Cont'!E63 -> 0 | F49: =-('App.2-BA_Fixed Asset Cont'!F63+'App.2-BA_Fixed Asset Cont'!M63) -> 0 | G49: 0 | I49: 0 | J49: 0 | K49: =-'App.2-BA_Fixed Asset Cont'!L63 -> 0 | L49: 0 | M49: 0
A50: 1915 | B50: Office Furniture & Equipment (10 years) | C50: ='App.2-BA_Fixed Asset Cont'!D64+'App.2-BA_Fixed Asset Cont'!K64 -> 640909.11 | E50: ='App.2-BA_Fixed Asset Cont'!E64 -> 116791.71 | F50: =-('App.2-BA_Fixed Asset Cont'!F64+'App.2-BA_Fixed Asset Cont'!M64) -> 0 | G50: 699304.965 | H50: 6.326225605 | I50: 0.1580721369 | J50: 110540.6302 | K50: =-'App.2-BA_Fixed Asset Cont'!L64 -> 110767.3 | L50: 226.6698212 | M50: 0.002046360444
A51: 1915 | B51: Office Furniture & Equipment (5 years) | C51: ='App.2-BA_Fixed Asset Cont'!D65+'App.2-BA_Fixed Asset Cont'!K65 -> 0 | E51: ='App.2-BA_Fixed Asset Cont'!E65 -> 0 | F51: =-('App.2-BA_Fixed Asset Cont'!F65+'App.2-BA_Fixed Asset Cont'!M65) -> 0 | G51: 0 | I51: 0 | J51: 0 | K51: =-'App.2-BA_Fixed Asset Cont'!L65 -> 0 | L51: 0 | M51: 0
A52: 1920 | B52: Computer Equipment - Hardware | C52: ='App.2-BA_Fixed Asset Cont'!D66+'App.2-BA_Fixed Asset Cont'!K66 -> 1364095.68 | E52: ='App.2-BA_Fixed Asset Cont'!E66 -> 1556192.95 | F52: =-('App.2-BA_Fixed Asset Cont'!F66+'App.2-BA_Fixed Asset Cont'!M66) -> 0 | G52: 2142192.155 | H52: 2.976020779 | I52: 0.3360191592 | J52: 719817.6069 | K52: =-'App.2-BA_Fixed Asset Cont'!L66 -> 721917.04 | L52: 2099.433134 | M52: 0.002908136278
A53: 1920 | B53: Computer Equip.-Hardware(Post Mar. 22/04) | C53: ='App.2-BA_Fixed Asset Cont'!D67+'App.2-BA_Fixed Asset Cont'!K67 -> 0 | E53: ='App.2-BA_Fixed Asset Cont'!E67 -> 0 | F53: =-('App.2-BA_Fixed Asset Cont'!F67+'App.2-BA_Fixed Asset Cont'!M67) -> 0 | G53: 0 | I53: 0 | J53: 0 | K53: =-'App.2-BA_Fixed Asset Cont'!L67 -> 0 | L53: 0 | M53: 0
A54: 1920 | B54: Computer Equip.-Hardware(Post Mar. 19/07) | C54: ='App.2-BA_Fixed Asset Cont'!D68+'App.2-BA_Fixed Asset Cont'!K68 -> 0 | E54: ='App.2-BA_Fixed Asset Cont'!E68 -> 0 | F54: =-('App.2-BA_Fixed Asset Cont'!F68+'App.2-BA_Fixed Asset Cont'!M68) -> 0 | G54: 0 | I54: 0 | J54: 0 | K54: =-'App.2-BA_Fixed Asset Cont'!L68 -> 0 | L54: 0 | M54: 0
A55: 1930 | B55: Transportation Equipment | C55: ='App.2-BA_Fixed Asset Cont'!D69+'App.2-BA_Fixed Asset Cont'!K69 -> 5494553.35 | E55: ='App.2-BA_Fixed Asset Cont'!E69 -> 784692.74 | F55: =-('App.2-BA_Fixed Asset Cont'!F69+'App.2-BA_Fixed Asset Cont'!M69) -> 0 | G55: =C55-D55+(E55*0.5)-F55 -> 5886899.72 | H55: 6.773275865 | I55: 0.1476390479 | J55: 869136.2698 | K55: =-'App.2-BA_Fixed Asset Cont'!L69 -> 870984.36 | L55: 1848.09021 | M55: 0.002121840867
A56: 1935 | B56: Stores Equipment | C56: ='App.2-BA_Fixed Asset Cont'!D70+'App.2-BA_Fixed Asset Cont'!K70 -> 73883.21 | E56: ='App.2-BA_Fixed Asset Cont'!E70 -> 0 | F56: =-('App.2-BA_Fixed Asset Cont'!F70+'App.2-BA_Fixed Asset Cont'!M70) -> 0 | G56: 73883.21 | H56: 5.98260511 | I56: 0.167151263 | J56: 12349.67186 | K56: =-'App.2-BA_Fixed Asset Cont'!L70 -> 12370.88 | L56: 21.20813581 | M56: 0.001714359513
A57: 1940 | B57: Tools, Shop & Garage Equipment | C57: ='App.2-BA_Fixed Asset Cont'!D71+'App.2-BA_Fixed Asset Cont'!K71 -> 1352494.91 | E57: ='App.2-BA_Fixed Asset Cont'!E71 -> 155293.15 | F57: =-('App.2-BA_Fixed Asset Cont'!F71+'App.2-BA_Fixed Asset Cont'!M71) -> 0 | G57: 1430141.485 | H57: 6.631910604 | I57: 0.1507861097 | J57: 215645.4709 | K57: =-'App.2-BA_Fixed Asset Cont'!L71 -> 216095.74 | L57: 450.269136 | M57: 0.002083655772
A58: 1945 | B58: Measurement & Testing Equipment | C58: ='App.2-BA_Fixed Asset Cont'!D72+'App.2-BA_Fixed Asset Cont'!K72 -> 60119.8 | E58: ='App.2-BA_Fixed Asset Cont'!E72 -> 0 | F58: =-('App.2-BA_Fixed Asset Cont'!F72+'App.2-BA_Fixed Asset Cont'!M72) -> 0 | G58: 60119.8 | H58: 3.35508516 | I58: 0.2980550276 | J58: 17919.00865 | K58: =-'App.2-BA_Fixed Asset Cont'!L72 -> 17944.24 | L58: 25.23135284 | M58: 0.001406097602
A59: 1950 | B59: Power Operated Equipment | C59: ='App.2-BA_Fixed Asset Cont'!D73+'App.2-BA_Fixed Asset Cont'!K73 -> 0 | E59: ='App.2-BA_Fixed Asset Cont'!E73 -> 0 | F59: =-('App.2-BA_Fixed Asset Cont'!F73+'App.2-BA_Fixed Asset Cont'!M73) -> 0 | G59: 0 | I59: 0 | J59: 0 | K59: =-'App.2-BA_Fixed Asset Cont'!L73 -> 0 | L59: 0 | M59: 0
A60: 1955 | B60: Communications Equipment | C60: ='App.2-BA_Fixed Asset Cont'!D74+'App.2-BA_Fixed Asset Cont'!K74 -> 903000.14 | E60: ='App.2-BA_Fixed Asset Cont'!E74 -> 142871.44 | F60: =-('App.2-BA_Fixed Asset Cont'!F74+'App.2-BA_Fixed Asset Cont'!M74) -> 0 | G60: 974435.86 | H60: 5.082583151 | I60: 0.1967503473 | J60: 191720.5939 | K60: =-'App.2-BA_Fixed Asset Cont'!L74 -> 192132.22 | L60: 411.6261471 | M60: 0.002142410821
A61: 1955 | B61: Communication Equipment (Smart Meters) | C61: ='App.2-BA_Fixed Asset Cont'!D75+'App.2-BA_Fixed Asset Cont'!K75 -> 0 | E61: ='App.2-BA_Fixed Asset Cont'!E75 -> 0 | F61: =-('App.2-BA_Fixed Asset Cont'!F75+'App.2-BA_Fixed Asset Cont'!M75) -> 0 | G61: 0 | I61: 0 | J61: 0 | K61: =-'App.2-BA_Fixed Asset Cont'!L75 -> 0 | L61: 0 | M61: 0
A62: 1960 | B62: Miscellaneous Equipment | C62: ='App.2-BA_Fixed Asset Cont'!D76+'App.2-BA_Fixed Asset Cont'!K76 -> 237403.14 | E62: ='App.2-BA_Fixed Asset Cont'!E76 -> 20923.46 | F62: =-('App.2-BA_Fixed Asset Cont'!F76+'App.2-BA_Fixed Asset Cont'!M76) -> 0 | G62: 247864.87 | H62: 6.731262757 | I62: 0.1485605355 | J62: 36822.93783 | K62: =-'App.2-BA_Fixed Asset Cont'!L76 -> 36899.01 | L62: 76.07217204 | M62: 0.00206163179
A63: 1970 | B63: Load Management Controls Customer Premises | C63: ='App.2-BA_Fixed Asset Cont'!D77+'App.2-BA_Fixed Asset Cont'!K77 -> 0 | E63: ='App.2-BA_Fixed Asset Cont'!E77 -> 0 | F63: =-('App.2-BA_Fixed Asset Cont'!F77+'App.2-BA_Fixed Asset Cont'!M77) -> 0 | G63: 0 | I63: 0 | J63: 0 | K63: =-'App.2-BA_Fixed Asset Cont'!L77 -> 0 | L63: 0 | M63: 0
A64: 1975 | B64: Load Management Controls Utility Premises | C64: ='App.2-BA_Fixed Asset Cont'!D78+'App.2-BA_Fixed Asset Cont'!K78 -> 0 | E64: ='App.2-BA_Fixed Asset Cont'!E78 -> 0 | F64: =-('App.2-BA_Fixed Asset Cont'!F78+'App.2-BA_Fixed Asset Cont'!M78) -> 0 | G64: 0 | I64: 0 | J64: 0 | K64: =-'App.2-BA_Fixed Asset Cont'!L78 -> 0 | L64: 0 | M64: 0
A65: 1980 | B65: System Supervisor Equipment | C65: ='App.2-BA_Fixed Asset Cont'!D79+'App.2-BA_Fixed Asset Cont'!K79 -> 4301756.629 | E65: ='App.2-BA_Fixed Asset Cont'!E79 -> 484522.81 | F65: =-('App.2-BA_Fixed Asset Cont'!F79+'App.2-BA_Fixed Asset Cont'!M79) -> 6492.1 | G65: 4537525.934 | H65: 7.357566738 | I65: 0.1359144994 | J65: 616715.5659 | K65: =-'App.2-BA_Fixed Asset Cont'!L79 -> 618540.27 | L65: 1824.704149 | M65: 0.002950016737
A66: 1985 | B66: Miscellaneous Fixed Assets | C66: ='App.2-BA_Fixed Asset Cont'!D80+'App.2-BA_Fixed Asset Cont'!K80 -> 0 | E66: ='App.2-BA_Fixed Asset Cont'!E80 -> 0 | F66: =-('App.2-BA_Fixed Asset Cont'!F80+'App.2-BA_Fixed Asset Cont'!M80) -> 0 | G66: 0 | I66: 0 | J66: 0 | K66: =-'App.2-BA_Fixed Asset Cont'!L80 -> 0 | L66: 0 | M66: 0
A67: 1990 | B67: Other Tangible Property | C67: ='App.2-BA_Fixed Asset Cont'!D81+'App.2-BA_Fixed Asset Cont'!K81 -> 0 | E67: ='App.2-BA_Fixed Asset Cont'!E81 -> 0 | F67: =-('App.2-BA_Fixed Asset Cont'!F81+'App.2-BA_Fixed Asset Cont'!M81) -> 0 | G67: 0 | I67: 0 | J67: 0 | K67: =-'App.2-BA_Fixed Asset Cont'!L81 -> 0 | L67: 0 | M67: 0
A68: 1995 | B68: Contributions & Grants | C68: ='App.2-BA_Fixed Asset Cont'!D82+'App.2-BA_Fixed Asset Cont'!K82 -> 0 | E68: ='App.2-BA_Fixed Asset Cont'!E82 -> 0 | F68: =-('App.2-BA_Fixed Asset Cont'!F82+'App.2-BA_Fixed Asset Cont'!M82) -> 0 | G68: 0 | I68: 0 | J68: 0 | K68: =-'App.2-BA_Fixed Asset Cont'!L82 -> 0 | L68: 0 | M68: 0
A69: 2075 | B69: Renewables (31) | C69: ='App.2-BA_Fixed Asset Cont'!D83+'App.2-BA_Fixed Asset Cont'!K83 -> 848673.13 | E69: ='App.2-BA_Fixed Asset Cont'!E83 -> 107167.14 | F69: =-('App.2-BA_Fixed Asset Cont'!F83+'App.2-BA_Fixed Asset Cont'!M83) -> 0 | G69: 902256.7 | H69: 16.01230593 | I69: 0.06245196691 | J69: 56347.70557 | K69: =-'App.2-BA_Fixed Asset Cont'!L83 -> 58011.79 | L69: 1664.084427 | M69: 0.02868527978
A70: 2440 | B70: Deferred Revenue | C70: ='App.2-BA_Fixed Asset Cont'!D84+'App.2-BA_Fixed Asset Cont'!K84 -> -59573472.84 | E70: ='App.2-BA_Fixed Asset Cont'!E84 -> -16341413.51 | F70: =-('App.2-BA_Fixed Asset Cont'!F84+'App.2-BA_Fixed Asset Cont'!M84) -> 0 | G70: -67744179.59 | H70: 38.41985734 | I70: 0.02602820701 | J70: -1763259.53 | K70: =-'App.2-BA_Fixed Asset Cont'!L84 -> -1767067.76 | L70: -3808.23003 | M70: 0.00215511262
A71: 2005 | B71: Property Under Finance Lease | C71: ='App.2-BA_Fixed Asset Cont'!D85+'App.2-BA_Fixed Asset Cont'!K85 -> 1572537.41 | E71: ='App.2-BA_Fixed Asset Cont'!E85 -> 0 | F71: =-('App.2-BA_Fixed Asset Cont'!F85+'App.2-BA_Fixed Asset Cont'!M85) -> 0 | G71: 1572537.41 | H71: 3.240459945 | I71: 0.3085981672 | J71: 485282.1626 | K71: =-'App.2-BA_Fixed Asset Cont'!L85 -> 473167.38 | L71: -12114.78262 | M71: -0.02560358793
B72: Total | C72: =SUM(C28:C71) -> 344895187.6 | D72: =SUM(D28:D71) -> 0 | E72: 30421573.29 | F72: 861890.02 | G72: =SUM(G28:G71) -> 359244084.2 | J72: =SUM(J28:J71) -> 18391119.05 | K72: =SUM(K28:K71) -> 18383796.06 | L72: -7322.993609 | M72: -0.0003983395804
E75: Year | F75: 2021
Q76: 2017
C77: Book Values | G77: Service Lives | I77: Depreciation Expense | Q77: 2018
A78: Account | B78: Description | C78: Opening Net Book Value of Assets | D78: Less Fully Depreciated 1 | E78: Current Year Additions | F78: Disposals (Net) | G78: Net Amount of Assets to be Depreciated | H78: Remaining Life of Assets Existing 2 | I78: Depreciation Rate Assets | J78: Depreciation Expense on Assets 3 | K78: Depreciation Expense per Appendix 2-BA Fixed Assets, Column K | L78: Variance 4 | M78: Variance %
C79: a | D79: b | E79: c | F79: d | G79: e = a-b+0.5*c-d | H79: f | I79: g = 1/f | J79: h = e/f | K79: i | L79: j = i-h | M79: k = j/i
A80: 1609 | B80: Capital Contributions Paid | C80: ='App.2-BA_Fixed Asset Cont'!D109+'App.2-BA_Fixed Asset Cont'!K109 -> 2051973.63 | E80: ='App.2-BA_Fixed Asset Cont'!E109 -> 0 | F80: =-('App.2-BA_Fixed Asset Cont'!F109+'App.2-BA_Fixed Asset Cont'!M109) -> 0 | G80: =C80-D80+(E80*0.5)-F80 -> 2051973.63 | H80: 12.49453552 | I80: =IF(H80=0,0,1/H80) -> 0.08003498797 | J80: =IF(H80=0,0,+G80/H80) -> 164229.6848 | K80: =-'App.2-BA_Fixed Asset Cont'!L109 -> 164103.94 | L80: =IF(ISERROR(+K80-J80), 0, +K80-J80) -> -125.7447977 | M80: =IFERROR(L80/K80,0) -> -0.0007662509366
A81: 1610 | B81: Miscellaneous Intangible Plant | C81: ='App.2-BA_Fixed Asset Cont'!D110+'App.2-BA_Fixed Asset Cont'!K110 -> 1259816.61 | E81: ='App.2-BA_Fixed Asset Cont'!E110 -> 263140.8 | F81: =-('App.2-BA_Fixed Asset Cont'!F110+'App.2-BA_Fixed Asset Cont'!M110) -> 0 | G81: =C81-D81+(E81*0.5)-F81 -> 1391387.01 | H81: 3.199955573 | I81: =IF(H81=0,0,1/H81) -> 0.3125043386 | J81: 434814.4774 | K81: =-'App.2-BA_Fixed Asset Cont'!L110 -> 434894.25 | L81: =IF(ISERROR(+K81-J81), 0, +K81-J81) -> 79.77264355 | M81: =IFERROR(L81/K81,0) -> 0.0001834299799
A82: 1611 | B82: Computer Software (Formally known as Account 1925) | C82: ='App.2-BA_Fixed Asset Cont'!D111+'App.2-BA_Fixed Asset Cont'!K111 -> 3146550 | E82: ='App.2-BA_Fixed Asset Cont'!E111 -> 2302830.18 | F82: =-('App.2-BA_Fixed Asset Cont'!F111+'App.2-BA_Fixed Asset Cont'!M111) -> 0 | G82: =C82-D82+(E82*0.5)-F82 -> 4297965.09 | H82: 2.347706319 | I82: =IF(H82=0,0,1/H82) -> 0.4259476544 | J82: 1830708.149 | K82: =-'App.2-BA_Fixed Asset Cont'!L111 -> 1839646.07 | L82: =IF(ISERROR(+K82-J82), 0, +K82-J82) -> 8937.921127 | M82: =IFERROR(L82/K82,0) -> 0.004858500378
A83: 1612 | B83: Land Rights (Formally known as Account 1906) | C83: ='App.2-BA_Fixed Asset Cont'!D112+'App.2-BA_Fixed Asset Cont'!K112 -> 381784.34 | F83: =-('App.2-BA_Fixed Asset Cont'!F112+'App.2-BA_Fixed Asset Cont'!M112) -> 0 | G83: 381784.34 | H83: 31.01376785 | I83: =IF(H83=0,0,1/H83) -> 0.03224374429 | J83: 12310.15663 | K83: =-'App.2-BA_Fixed Asset Cont'!L112 -> 12301.74 | L83: =IF(ISERROR(+K83-J83), 0, +K83-J83) -> -8.416634249 | M83: -0.0006841824205
A84: 1612 | B84: Land Rights-Seaton MTS | C84: 0 | E84: ='App.2-BA_Fixed Asset Cont'!E112 -> 3841402 | G84: 1920701 | I84: 0 | J84: 0 | L84: 0 | M84: 0
A85: 1805 | B85: Land | C85: ='App.2-BA_Fixed Asset Cont'!D113+'App.2-BA_Fixed Asset Cont'!K113 -> 981172.99 | E85: ='App.2-BA_Fixed Asset Cont'!E113 -> 0 | F85: =-('App.2-BA_Fixed Asset Cont'!F113+'App.2-BA_Fixed Asset Cont'!M113) -> 0 | G85: 981172.99 | I85: 0 | J85: 0 | K85: =-'App.2-BA_Fixed Asset Cont'!L113 -> 0 | L85: 0 | M85: 0
A86: 1808 | B86: Buildings | C86: ='App.2-BA_Fixed Asset Cont'!D114+'App.2-BA_Fixed Asset Cont'!K114 -> 215333.1 | E86: ='App.2-BA_Fixed Asset Cont'!E114 -> 10860.93 | F86: =-('App.2-BA_Fixed Asset Cont'!F114+'App.2-BA_Fixed Asset Cont'!M114) -> 0 | G86: 220763.565 | H86: 23.30962691 | I86: 0.04290072955 | J86: 9470.917996 | K86: =-'App.2-BA_Fixed Asset Cont'!L114 -> 9466.17 | L86: -4.747995652 | M86: -0.0005015751515
A87: 1810 | B87: Leasehold Improvements | C87: ='App.2-BA_Fixed Asset Cont'!D115+'App.2-BA_Fixed Asset Cont'!K115 -> 0 | E87: ='App.2-BA_Fixed Asset Cont'!E115 -> 0 | F87: =-('App.2-BA_Fixed Asset Cont'!F115+'App.2-BA_Fixed Asset Cont'!M115) -> 0 | G87: 0 | I87: 0 | J87: 0 | K87: =-'App.2-BA_Fixed Asset Cont'!L115 -> 0 | L87: 0 | M87: 0
A88: 1815 | B88: Transformer Station Equipment >50 kV | C88: ='App.2-BA_Fixed Asset Cont'!D116+'App.2-BA_Fixed Asset Cont'!K116 -> 183032.86 | E88: ='App.2-BA_Fixed Asset Cont'!E116 -> 0 | F88: =-('App.2-BA_Fixed Asset Cont'!F116+'App.2-BA_Fixed Asset Cont'!M116) -> 0 | G88: 183032.86 | H88: 27.68333309 | I88: 0.0361228179 | J88: 6611.662672 | K88: =-'App.2-BA_Fixed Asset Cont'!L116 -> 6607.54 | L88: -4.122672097 | M88: -0.0006239344896
A89: 1820 | B89: Distribution Station Equipment <50 kV | C89: ='App.2-BA_Fixed Asset Cont'!D117+'App.2-BA_Fixed Asset Cont'!K117 -> 50072611.25 | E89: ='App.2-BA_Fixed Asset Cont'!E117 -> 5703222.1 | F89: =-('App.2-BA_Fixed Asset Cont'!F117+'App.2-BA_Fixed Asset Cont'!M117) -> 0 | G89: 52924222.3 | H89: 28.07656439 | I89: 0.03561689337 | J89: 1884996.382 | K89: =-'App.2-BA_Fixed Asset Cont'!L117 -> 1883447.78 | L89: -1548.602389 | M89: -0.0008222167906
A90: 1825 | B90: Storage Battery Equipment | C90: ='App.2-BA_Fixed Asset Cont'!D118+'App.2-BA_Fixed Asset Cont'!K118 -> 0 | E90: ='App.2-BA_Fixed Asset Cont'!E118 -> 0 | F90: =-('App.2-BA_Fixed Asset Cont'!F118+'App.2-BA_Fixed Asset Cont'!M118) -> 0 | G90: 0 | I90: 0 | J90: 0 | K90: =-'App.2-BA_Fixed Asset Cont'!L118 -> 0 | L90: 0 | M90: 0
A91: 1830 | B91: Poles, Towers & Fixtures | C91: ='App.2-BA_Fixed Asset Cont'!D119+'App.2-BA_Fixed Asset Cont'!K119 -> 79158540.11 | E91: ='App.2-BA_Fixed Asset Cont'!E119 -> 8275332.22 | F91: =-('App.2-BA_Fixed Asset Cont'!F119+'App.2-BA_Fixed Asset Cont'!M119) -> 89830.73 | G91: 83206375.49 | H91: 32.83639168 | I91: 0.03045401607 | J91: 2533968.296 | K91: =-'App.2-BA_Fixed Asset Cont'!L119 -> 2534787.56 | L91: 819.2637958 | M91: 0.0003232080703
A92: 1835 | B92: Overhead Conductors & Devices | C92: ='App.2-BA_Fixed Asset Cont'!D120+'App.2-BA_Fixed Asset Cont'!K120 -> 57060724.33 | E92: ='App.2-BA_Fixed Asset Cont'!E120 -> 6231709.22 | F92: =-('App.2-BA_Fixed Asset Cont'!F120+'App.2-BA_Fixed Asset Cont'!M120) -> 26889.02 | G92: 60149689.92 | H92: 33.17249084 | I92: 0.03014546013 | J92: 1813240.079 | K92: =-'App.2-BA_Fixed Asset Cont'!L120 -> 1813792.34 | L92: 552.2609614 | M92: 0.000304478605
A93: 1840 | B93: Underground Conduit | C93: ='App.2-BA_Fixed Asset Cont'!D121+'App.2-BA_Fixed Asset Cont'!K121 -> 42369336.63 | E93: ='App.2-BA_Fixed Asset Cont'!E121 -> 6928307.38 | F93: =-('App.2-BA_Fixed Asset Cont'!F121+'App.2-BA_Fixed Asset Cont'!M121) -> 0 | G93: 45833490.32 | H93: 49.9293839 | I93: 0.02002828639 | J93: 917966.2705 | K93: =-'App.2-BA_Fixed Asset Cont'!L121 -> 918268.42 | L93: 302.1495444 | M93: 0.0003290427263
A94: 1845 | B94: Underground Conductors & Devices | C94: ='App.2-BA_Fixed Asset Cont'!D122+'App.2-BA_Fixed Asset Cont'!K122 -> 64354414.64 | E94: ='App.2-BA_Fixed Asset Cont'!E122 -> 11405142.71 | F94: =-('App.2-BA_Fixed Asset Cont'!F122+'App.2-BA_Fixed Asset Cont'!M122) -> 48910.85 | G94: 70008075.14 | H94: 30.94180299 | I94: 0.03231873722 | J94: 2262572.584 | K94: =-'App.2-BA_Fixed Asset Cont'!L122 -> 2266162.52 | L94: 3589.936215 | M94: 0.001584147731
A95: 1850 | B95: Line Transformers | C95: ='App.2-BA_Fixed Asset Cont'!D123+'App.2-BA_Fixed Asset Cont'!K123 -> 46837255.02 | E95: ='App.2-BA_Fixed Asset Cont'!E123 -> 7974593.82 | F95: =-('App.2-BA_Fixed Asset Cont'!F123+'App.2-BA_Fixed Asset Cont'!M123) -> 316418.51 | G95: 50508133.42 | H95: 22.07794684 | I95: 0.04529406685 | J95: 2287718.772 | K95: =-'App.2-BA_Fixed Asset Cont'!L123 -> 2296704.03 | L95: 8985.258367 | M95: 0.003912240432
A96: 1855 | B96: Services (Overhead & Underground) | C96: ='App.2-BA_Fixed Asset Cont'!D124+'App.2-BA_Fixed Asset Cont'!K124 -> 36680216.37 | E96: ='App.2-BA_Fixed Asset Cont'!E124 -> 3212950.68 | F96: =-('App.2-BA_Fixed Asset Cont'!F124+'App.2-BA_Fixed Asset Cont'!M124) -> 0 | G96: 38286691.71 | H96: 34.10784245 | I96: 0.02931877035 | J96: 1122518.722 | K96: =-'App.2-BA_Fixed Asset Cont'!L124 -> 1122098.19 | L96: -420.5317834 | M96: -0.0003747727134
A97: 1860 | B97: Meters | C97: ='App.2-BA_Fixed Asset Cont'!D125+'App.2-BA_Fixed Asset Cont'!K125 -> 2291956.55 | E97: ='App.2-BA_Fixed Asset Cont'!E125 -> 32492.77 | F97: =-('App.2-BA_Fixed Asset Cont'!F125+'App.2-BA_Fixed Asset Cont'!M125) -> 1707.83 | G97: 2306495.105 | H97: 19.00803239 | I97: 0.05260933796 | J97: 121343.1805 | K97: =-'App.2-BA_Fixed Asset Cont'!L125 -> 121290.17 | L97: -53.01048998 | M97: -0.0004370551214
A98: 1860 | B98: Meters (Smart Meters) | C98: ='App.2-BA_Fixed Asset Cont'!D126+'App.2-BA_Fixed Asset Cont'!K126 -> 9985900.509 | E98: ='App.2-BA_Fixed Asset Cont'!E126 -> 1138830.84 | F98: =-('App.2-BA_Fixed Asset Cont'!F126+'App.2-BA_Fixed Asset Cont'!M126) -> 40094.42 | G98: 10515221.51 | H98: 5.780683831 | I98: 0.1729899142 | J98: 1819027.267 | K98: =-'App.2-BA_Fixed Asset Cont'!L126 -> 1821627.38 | L98: 2600.113258 | M98: 0.001427357365
A99: 1865 | B99: Other Installations on Customers Premises | C99: ='App.2-BA_Fixed Asset Cont'!D127+'App.2-BA_Fixed Asset Cont'!K127 -> 0 | E99: ='App.2-BA_Fixed Asset Cont'!E127 -> 0 | F99: =-('App.2-BA_Fixed Asset Cont'!F127+'App.2-BA_Fixed Asset Cont'!M127) -> 0 | G99: 0 | I99: 0 | J99: 0 | K99: =-'App.2-BA_Fixed Asset Cont'!L127 -> 0 | L99: 0 | M99: 0
A100: 1905 | B100: Land | C100: ='App.2-BA_Fixed Asset Cont'!D128+'App.2-BA_Fixed Asset Cont'!K128 -> 1195031.32 | E100: ='App.2-BA_Fixed Asset Cont'!E128 -> 0 | F100: =-('App.2-BA_Fixed Asset Cont'!F128+'App.2-BA_Fixed Asset Cont'!M128) -> 0 | G100: 1195031.32 | I100: 0 | J100: 0 | K100: =-'App.2-BA_Fixed Asset Cont'!L128 -> 0 | L100: 0 | M100: 0
A101: 1908 | B101: Buildings & Fixtures | C101: ='App.2-BA_Fixed Asset Cont'!D129+'App.2-BA_Fixed Asset Cont'!K129 -> 15110683.57 | E101: ='App.2-BA_Fixed Asset Cont'!E129 -> 709571.43 | F101: =-('App.2-BA_Fixed Asset Cont'!F129+'App.2-BA_Fixed Asset Cont'!M129) -> 0 | G101: 15465469.29 | H101: 14.3864212 | I101: 0.06950999042 | J101: 1075004.622 | K101: =-'App.2-BA_Fixed Asset Cont'!L129 -> 1074397.74 | L101: -606.8818665 | M101: -0.0005648577281
A102: 1910 | B102: Leasehold Improvements | C102: ='App.2-BA_Fixed Asset Cont'!D130+'App.2-BA_Fixed Asset Cont'!K130 -> 0 | E102: ='App.2-BA_Fixed Asset Cont'!E130 -> 0 | F102: =-('App.2-BA_Fixed Asset Cont'!F130+'App.2-BA_Fixed Asset Cont'!M130) -> 0 | G102: 0 | I102: 0 | J102: 0 | K102: =-'App.2-BA_Fixed Asset Cont'!L130 -> 0 | L102: 0 | M102: 0
A103: 1915 | B103: Office Furniture & Equipment (10 years) | C103: ='App.2-BA_Fixed Asset Cont'!D131+'App.2-BA_Fixed Asset Cont'!K131 -> 646933.52 | E103: ='App.2-BA_Fixed Asset Cont'!E131 -> 84060.79 | F103: =-('App.2-BA_Fixed Asset Cont'!F131+'App.2-BA_Fixed Asset Cont'!M131) -> 0 | G103: 688963.915 | H103: 6.180485681 | I103: 0.161799582 | J103: 111474.0735 | K103: =-'App.2-BA_Fixed Asset Cont'!L131 -> 111430.85 | L103: -43.22348252 | M103: -0.0003878951163
A104: 1915 | B104: Office Furniture & Equipment (5 years) | C104: ='App.2-BA_Fixed Asset Cont'!D132+'App.2-BA_Fixed Asset Cont'!K132 -> 0 | E104: ='App.2-BA_Fixed Asset Cont'!E132 -> 0 | F104: =-('App.2-BA_Fixed Asset Cont'!F132+'App.2-BA_Fixed Asset Cont'!M132) -> 0 | G104: 0 | I104: 0 | J104: 0 | K104: =-'App.2-BA_Fixed Asset Cont'!L132 -> 0 | L104: 0 | M104: 0
A105: 1920 | B105: Computer Equipment - Hardware | C105: ='App.2-BA_Fixed Asset Cont'!D133+'App.2-BA_Fixed Asset Cont'!K133 -> 2198371.59 | E105: ='App.2-BA_Fixed Asset Cont'!E133 -> 1990622.41 | F105: =-('App.2-BA_Fixed Asset Cont'!F133+'App.2-BA_Fixed Asset Cont'!M133) -> 0 | G105: 3193682.795 | H105: 3.243829917 | I105: 0.3082775687 | J105: 984540.7673 | K105: =-'App.2-BA_Fixed Asset Cont'!L133 -> 979771.06 | L105: -4769.70728 | M105: -0.004868185513
A106: 1920 | B106: Computer Equip.-Hardware(Post Mar. 22/04) | C106: ='App.2-BA_Fixed Asset Cont'!D134+'App.2-BA_Fixed Asset Cont'!K134 -> 0 | E106: ='App.2-BA_Fixed Asset Cont'!E134 -> 0 | F106: =-('App.2-BA_Fixed Asset Cont'!F134+'App.2-BA_Fixed Asset Cont'!M134) -> 0 | G106: 0 | I106: 0 | J106: 0 | K106: =-'App.2-BA_Fixed Asset Cont'!L134 -> 0 | L106: 0 | M106: 0
A107: 1920 | B107: Computer Equip.-Hardware(Post Mar. 19/07) | C107: ='App.2-BA_Fixed Asset Cont'!D135+'App.2-BA_Fixed Asset Cont'!K135 -> 0 | E107: ='App.2-BA_Fixed Asset Cont'!E135 -> 0 | F107: =-('App.2-BA_Fixed Asset Cont'!F135+'App.2-BA_Fixed Asset Cont'!M135) -> 0 | G107: 0 | I107: 0 | J107: 0 | K107: =-'App.2-BA_Fixed Asset Cont'!L135 -> 0 | L107: 0 | M107: 0
A108: 1930 | B108: Transportation Equipment | C108: ='App.2-BA_Fixed Asset Cont'!D136+'App.2-BA_Fixed Asset Cont'!K136 -> 5408261.73 | E108: ='App.2-BA_Fixed Asset Cont'!E136 -> 1478718.9 | F108: =-('App.2-BA_Fixed Asset Cont'!F136+'App.2-BA_Fixed Asset Cont'!M136) -> 19624.83 | G108: 6127996.35 | H108: 6.686437361 | I108: 0.1495564747 | J108: 916481.5311 | K108: =-'App.2-BA_Fixed Asset Cont'!L136 -> 916543.36 | L108: 61.82888745 | M108: 6.745876971e-05
A109: 1935 | B109: Stores Equipment | C109: ='App.2-BA_Fixed Asset Cont'!D137+'App.2-BA_Fixed Asset Cont'!K137 -> 61512.33 | E109: ='App.2-BA_Fixed Asset Cont'!E137 -> 0 | F109: =-('App.2-BA_Fixed Asset Cont'!F137+'App.2-BA_Fixed Asset Cont'!M137) -> 0 | G109: 61512.33 | H109: 5.494535519 | I109: 0.1819990055 | J109: 11195.18288 | K109: =-'App.2-BA_Fixed Asset Cont'!L137 -> 11186.85 | L109: -8.332884137 | M109: -0.0007448820836
A110: 1940 | B110: Tools, Shop & Garage Equipment | C110: ='App.2-BA_Fixed Asset Cont'!D138+'App.2-BA_Fixed Asset Cont'!K138 -> 1291692.32 | E110: ='App.2-BA_Fixed Asset Cont'!E138 -> 152760.77 | F110: =-('App.2-BA_Fixed Asset Cont'!F138+'App.2-BA_Fixed Asset Cont'!M138) -> 0 | G110: 1368072.705 | H110: 6.03843995 | I110: 0.1656056876 | J110: 226560.621 | K110: =-'App.2-BA_Fixed Asset Cont'!L138 -> 226471.7 | L110: -88.92099871 | M110: -0.0003926362486
A111: 1945 | B111: Measurement & Testing Equipment | C111: ='App.2-BA_Fixed Asset Cont'!D139+'App.2-BA_Fixed Asset Cont'!K139 -> 42175.56 | E111: ='App.2-BA_Fixed Asset Cont'!E139 -> 22114.78 | F111: =-('App.2-BA_Fixed Asset Cont'!F139+'App.2-BA_Fixed Asset Cont'!M139) -> 0 | G111: 53232.95 | H111: 4.083702792 | I111: 0.2448758029 | J111: 13035.46137 | K111: =-'App.2-BA_Fixed Asset Cont'!L139 -> 13039.06 | L111: 3.59862728 | M111: 0.0002759882445
A112: 1950 | B112: Power Operated Equipment | C112: ='App.2-BA_Fixed Asset Cont'!D140+'App.2-BA_Fixed Asset Cont'!K140 -> 0 | E112: ='App.2-BA_Fixed Asset Cont'!E140 -> 0 | F112: =-('App.2-BA_Fixed Asset Cont'!F140+'App.2-BA_Fixed Asset Cont'!M140) -> 0 | G112: 0 | I112: 0 | J112: 0 | K112: =-'App.2-BA_Fixed Asset Cont'!L140 -> 0 | L112: 0 | M112: 0
A113: 1955 | B113: Communications Equipment | C113: ='App.2-BA_Fixed Asset Cont'!D141+'App.2-BA_Fixed Asset Cont'!K141 -> 853739.36 | E113: ='App.2-BA_Fixed Asset Cont'!E141 -> 0 | F113: =-('App.2-BA_Fixed Asset Cont'!F141+'App.2-BA_Fixed Asset Cont'!M141) -> 0 | G113: 853739.36 | H113: 4.29369345 | I113: 0.2328997195 | J113: 198835.6574 | K113: =-'App.2-BA_Fixed Asset Cont'!L141 -> 198707.87 | L113: -127.7874295 | M113: -0.0006430919394
A114: 1955 | B114: Communication Equipment (Smart Meters) | C114: ='App.2-BA_Fixed Asset Cont'!D142+'App.2-BA_Fixed Asset Cont'!K142 -> 0 | E114: ='App.2-BA_Fixed Asset Cont'!E142 -> 0 | F114: =-('App.2-BA_Fixed Asset Cont'!F142+'App.2-BA_Fixed Asset Cont'!M142) -> 0 | G114: 0 | I114: 0 | J114: 0 | K114: =-'App.2-BA_Fixed Asset Cont'!L142 -> 0 | L114: 0 | M114: 0
A115: 1960 | B115: Miscellaneous Equipment | C115: ='App.2-BA_Fixed Asset Cont'!D143+'App.2-BA_Fixed Asset Cont'!K143 -> 221427.59 | E115: ='App.2-BA_Fixed Asset Cont'!E143 -> 18981.12 | F115: =-('App.2-BA_Fixed Asset Cont'!F143+'App.2-BA_Fixed Asset Cont'!M143) -> 0 | G115: 230918.15 | H115: 5.949501861 | I115: 0.1680812988 | J115: 38813.02257 | K115: =-'App.2-BA_Fixed Asset Cont'!L143 -> 38794.4 | L115: -18.62257056 | M115: -0.0004800324417
A116: 1970 | B116: Load Management Controls Customer Premises | C116: ='App.2-BA_Fixed Asset Cont'!D144+'App.2-BA_Fixed Asset Cont'!K144 -> 0 | E116: ='App.2-BA_Fixed Asset Cont'!E144 -> 0 | F116: =-('App.2-BA_Fixed Asset Cont'!F144+'App.2-BA_Fixed Asset Cont'!M144) -> 0 | G116: 0 | I116: 0 | J116: 0 | K116: =-'App.2-BA_Fixed Asset Cont'!L144 -> 0 | L116: 0 | M116: 0
A117: 1975 | B117: Load Management Controls Utility Premises | C117: ='App.2-BA_Fixed Asset Cont'!D145+'App.2-BA_Fixed Asset Cont'!K145 -> 0 | E117: ='App.2-BA_Fixed Asset Cont'!E145 -> 0 | F117: =-('App.2-BA_Fixed Asset Cont'!F145+'App.2-BA_Fixed Asset Cont'!M145) -> 0 | G117: 0 | I117: 0 | J117: 0 | K117: =-'App.2-BA_Fixed Asset Cont'!L145 -> 0 | L117: 0 | M117: 0
A118: 1980 | B118: System Supervisor Equipment | C118: ='App.2-BA_Fixed Asset Cont'!D146+'App.2-BA_Fixed Asset Cont'!K146 -> 4161247.069 | E118: ='App.2-BA_Fixed Asset Cont'!E146 -> 612475.78 | F118: =-('App.2-BA_Fixed Asset Cont'!F146+'App.2-BA_Fixed Asset Cont'!M146) -> 0 | G118: 4467484.959 | H118: 10.70386176 | I118: 0.09342422599 | J118: 417371.3244 | K118: =-'App.2-BA_Fixed Asset Cont'!L146 -> 419909.91 | L118: 2538.585596 | M118: 0.006045548189
A119: 1985 | B119: Miscellaneous Fixed Assets | C119: ='App.2-BA_Fixed Asset Cont'!D147+'App.2-BA_Fixed Asset Cont'!K147 -> 0 | E119: ='App.2-BA_Fixed Asset Cont'!E147 -> 0 | F119: =-('App.2-BA_Fixed Asset Cont'!F147+'App.2-BA_Fixed Asset Cont'!M147) -> 0 | G119: 0 | I119: 0 | J119: 0 | K119: =-'App.2-BA_Fixed Asset Cont'!L147 -> 0 | L119: 0 | M119: 0
A120: 1990 | B120: Other Tangible Property | C120: ='App.2-BA_Fixed Asset Cont'!D148+'App.2-BA_Fixed Asset Cont'!K148 -> 0 | E120: ='App.2-BA_Fixed Asset Cont'!E148 -> 0 | F120: =-('App.2-BA_Fixed Asset Cont'!F148+'App.2-BA_Fixed Asset Cont'!M148) -> 0 | G120: 0 | I120: 0 | J120: 0 | K120: =-'App.2-BA_Fixed Asset Cont'!L148 -> 0 | L120: 0 | M120: 0
A121: 1995 | B121: Contributions & Grants | C121: ='App.2-BA_Fixed Asset Cont'!D149+'App.2-BA_Fixed Asset Cont'!K149 -> 0 | E121: ='App.2-BA_Fixed Asset Cont'!E149 -> 0 | F121: =-('App.2-BA_Fixed Asset Cont'!F149+'App.2-BA_Fixed Asset Cont'!M149) -> 0 | G121: 0 | I121: 0 | J121: 0 | K121: =-'App.2-BA_Fixed Asset Cont'!L149 -> 0 | L121: 0 | M121: 0
A122: 2075 | B122: Renewables (31) | C122: ='App.2-BA_Fixed Asset Cont'!D150+'App.2-BA_Fixed Asset Cont'!K150 -> 897828.48 | E122: ='App.2-BA_Fixed Asset Cont'!E150 -> 0 | F122: =-('App.2-BA_Fixed Asset Cont'!F150+'App.2-BA_Fixed Asset Cont'!M150) -> 0 | G122: 897828.48 | H122: 15.00895772 | I122: 0.06662687835 | J122: 59819.50892 | K122: =-'App.2-BA_Fixed Asset Cont'!L150 -> 57867.92 | L122: -1951.588916 | M122: -0.03372488446
A123: 2440 | B123: Deferred Revenue | C123: ='App.2-BA_Fixed Asset Cont'!D151+'App.2-BA_Fixed Asset Cont'!K151 -> -74147818.59 | E123: ='App.2-BA_Fixed Asset Cont'!E151 -> -15664639.98 | F123: =-('App.2-BA_Fixed Asset Cont'!F151+'App.2-BA_Fixed Asset Cont'!M151) -> 0 | G123: -81980138.58 | H123: 37.85845761 | I123: 0.02641417699 | J123: -2165437.891 | K123: =-'App.2-BA_Fixed Asset Cont'!L151 -> -2174242.77 | L123: -8804.879474 | M123: 0.004049630333
A124: 2005 | B124: Property Under Finance Lease | C124: ='App.2-BA_Fixed Asset Cont'!D152+'App.2-BA_Fixed Asset Cont'!K152 -> 1099370.03 | E124: ='App.2-BA_Fixed Asset Cont'!E152 -> -42583.88 | F124: =-('App.2-BA_Fixed Asset Cont'!F152+'App.2-BA_Fixed Asset Cont'!M152) -> 0 | G124: 1078078.09 | H124: 3.058233286 | I124: 0.3269861735 | J124: 352516.6294 | K124: =-'App.2-BA_Fixed Asset Cont'!L152 -> 329064.02 | L124: -23452.60938 | M124: -0.07127065846
B125: Total | C125: =SUM(C80:C124) -> 356071074.8 | D125: =SUM(D80:D124) -> 0 | E125: 46682897.77 | F125: 543476.19 | G125: =SUM(G80:G124) -> 378869047.5 | J125: =SUM(J80:J124) -> 19461707.11 | K125: =SUM(K80:K124) -> 19448140.07 | L125: -13567.04202 | M125: -0.0006976010031
E128: Year | F128: 2022
Q129: 2017
C130: Book Values | G130: Service Lives | I130: Depreciation Expense | Q130: 2018
A131: Account | B131: Description | C131: Opening Net Book Value of Assets | D131: Less Fully Depreciated 1 | E131: Current Year Additions | F131: Disposals (Net) | G131: Net Amount of Assets to be Depreciated | H131: Remaining Life of Assets Existing 2 | I131: Depreciation Rate Assets | J131: Depreciation Expense on Assets 3 | K131: Depreciation Expense per Appendix 2-BA Fixed Assets, Column K | L131: Variance 4 | M131: Variance %
C132: a | D132: b | E132: c | F132: d | G132: e = a-b+0.5*c-d | H132: f | I132: g = 1/f | J132: h = e/f | K132: i | L132: j = i-h | M132: k = j/i
A133: 1609 | B133: Capital Contributions Paid | C133: ='App.2-BA_Fixed Asset Cont'!D177+'App.2-BA_Fixed Asset Cont'!K177 -> 1887869.69 | E133: ='App.2-BA_Fixed Asset Cont'!E177 -> 0 | F133: =-('App.2-BA_Fixed Asset Cont'!F177+'App.2-BA_Fixed Asset Cont'!M177) -> 0 | G133: =C133-D133+(E133*0.5)-F133 -> 1887869.69 | H133: 11.49589041 | I133: =IF(H133=0,0,1/H133) -> 0.08698760724 | J133: =IF(H133=0,0,+G133/H133) -> 164221.2671 | K133: =-'App.2-BA_Fixed Asset Cont'!L177 -> 164103.94 | L133: =IF(ISERROR(+K133-J133), 0, +K133-J133) -> -117.3271235 | M133: =IFERROR(L133/K133,0) -> -0.0007149561641
A134: 1610 | B134: Miscellaneous Intangible Plant | C134: ='App.2-BA_Fixed Asset Cont'!D178+'App.2-BA_Fixed Asset Cont'!K178 -> 1088063.16 | E134: ='App.2-BA_Fixed Asset Cont'!E178 -> 218311.82 | F134: =-('App.2-BA_Fixed Asset Cont'!F178+'App.2-BA_Fixed Asset Cont'!M178) -> 0 | G134: =C134-D134+(E134*0.5)-F134 -> 1197219.07 | H134: 2.907891817 | I134: =IF(H134=0,0,1/H134) -> 0.343891748 | J134: 411713.7587 | K134: =-'App.2-BA_Fixed Asset Cont'!L178 -> 411945.99 | L134: =IF(ISERROR(+K134-J134), 0, +K134-J134) -> 232.2312628 | M134: =IFERROR(L134/K134,0) -> 0.0005637420157
A135: 1611 | B135: Computer Software (Formally known as Account 1925) | C135: ='App.2-BA_Fixed Asset Cont'!D179+'App.2-BA_Fixed Asset Cont'!K179 -> 3609734.11 | E135: ='App.2-BA_Fixed Asset Cont'!E179 -> 1885559.2 | F135: =-('App.2-BA_Fixed Asset Cont'!F179+'App.2-BA_Fixed Asset Cont'!M179) -> 0 | G135: =C135-D135+(E135*0.5)-F135 -> 4552513.71 | H135: 2.230739611 | I135: =IF(H135=0,0,1/H135) -> 0.4482818143 | J135: 2040809.106 | K135: =-'App.2-BA_Fixed Asset Cont'!L179 -> 2042517.17 | L135: =IF(ISERROR(+K135-J135), 0, +K135-J135) -> 1708.064296 | M135: =IFERROR(L135/K135,0) -> 0.0008362545594
A136: 1612 | B136: Land Rights (Formally known as Account 1906) | C136: ='App.2-BA_Fixed Asset Cont'!D180+'App.2-BA_Fixed Asset Cont'!K180-3841402 -> 369482.6 | F136: =-('App.2-BA_Fixed Asset Cont'!F180+'App.2-BA_Fixed Asset Cont'!M180) -> 0 | G136: 369482.6 | H136: 30.01389247 | I136: =IF(H136=0,0,1/H136) -> 0.0333179044 | J136: 12310.38595 | K136: =-'App.2-BA_Fixed Asset Cont'!L180 -> 12301.73 | L136: =IF(ISERROR(+K136-J136), 0, +K136-J136) -> -8.655945223 | M136: -0.0007036364172
A137: 1612 | B137: Land Rights-Seaton MTS | C137: 3841402 | E137: ='App.2-BA_Fixed Asset Cont'!E180 -> -3841402 | G137: 1920701 | I137: 0 | J137: 0 | L137: 0 | M137: 0
A138: 1805 | B138: Land | C138: ='App.2-BA_Fixed Asset Cont'!D181+'App.2-BA_Fixed Asset Cont'!K181 -> 981172.99 | E138: ='App.2-BA_Fixed Asset Cont'!E181 -> 16193.1 | F138: =-('App.2-BA_Fixed Asset Cont'!F181+'App.2-BA_Fixed Asset Cont'!M181) -> 2376.56 | G138: 986892.98 | I138: 0 | J138: 0 | K138: =-'App.2-BA_Fixed Asset Cont'!L181 -> 0 | L138: 0 | M138: 0
A139: 1808 | B139: Buildings | C139: ='App.2-BA_Fixed Asset Cont'!D182+'App.2-BA_Fixed Asset Cont'!K182 -> 216727.86 | E139: ='App.2-BA_Fixed Asset Cont'!E182 -> 0 | F139: =-('App.2-BA_Fixed Asset Cont'!F182+'App.2-BA_Fixed Asset Cont'!M182) -> 0 | G139: 216727.86 | H139: 22.62346501 | I139: 0.0442018939 | J139: 9579.781872 | K139: =-'App.2-BA_Fixed Asset Cont'!L182 -> 9573.82 | L139: -5.961872427 | M139: -0.0006227266052
A140: 1810 | B140: Leasehold Improvements | C140: ='App.2-BA_Fixed Asset Cont'!D183+'App.2-BA_Fixed Asset Cont'!K183 -> 0 | E140: ='App.2-BA_Fixed Asset Cont'!E183 -> 0 | F140: =-('App.2-BA_Fixed Asset Cont'!F183+'App.2-BA_Fixed Asset Cont'!M183) -> 0 | G140: 0 | I140: 0 | J140: 0 | K140: =-'App.2-BA_Fixed Asset Cont'!L183 -> 0 | L140: 0 | M140: 0
A141: 1815 | B141: Transformer Station Equipment >50 kV | C141: ='App.2-BA_Fixed Asset Cont'!D184+'App.2-BA_Fixed Asset Cont'!K184 -> 176425.32 | E141: ='App.2-BA_Fixed Asset Cont'!E184 -> 0 | F141: =-('App.2-BA_Fixed Asset Cont'!F184+'App.2-BA_Fixed Asset Cont'!M184) -> 0 | G141: 176425.32 | H141: 26.68378631 | I141: 0.03747594095 | J141: 6611.704874 | K141: =-'App.2-BA_Fixed Asset Cont'!L184 -> 5533.63 | L141: -1078.074874 | M141: -0.1948223633
A142: 1820 | B142: Distribution Station Equipment <50 kV | C142: ='App.2-BA_Fixed Asset Cont'!D185+'App.2-BA_Fixed Asset Cont'!K185 -> 53892385.57 | E142: ='App.2-BA_Fixed Asset Cont'!E185 -> 2299674.15 | F142: =-('App.2-BA_Fixed Asset Cont'!F185+'App.2-BA_Fixed Asset Cont'!M185) -> 11885.14 | G142: 55030337.5 | H142: 28.10282621 | I142: 0.03558360972 | J142: 1958178.052 | K142: =-'App.2-BA_Fixed Asset Cont'!L185 -> 1952949.29 | L142: -5228.762406 | M142: -0.002677367217
A143: 1825 | B143: Storage Battery Equipment | C143: ='App.2-BA_Fixed Asset Cont'!D186+'App.2-BA_Fixed Asset Cont'!K186 -> 0 | E143: ='App.2-BA_Fixed Asset Cont'!E186 -> 0 | F143: =-('App.2-BA_Fixed Asset Cont'!F186+'App.2-BA_Fixed Asset Cont'!M186) -> 0 | G143: 0 | I143: 0 | J143: 0 | K143: =-'App.2-BA_Fixed Asset Cont'!L186 -> 0 | L143: 0 | M143: 0
A144: 1830 | B144: Poles, Towers & Fixtures | C144: ='App.2-BA_Fixed Asset Cont'!D187+'App.2-BA_Fixed Asset Cont'!K187 -> 84809254.04 | E144: ='App.2-BA_Fixed Asset Cont'!E187 -> 12378908.51 | F144: =-('App.2-BA_Fixed Asset Cont'!F187+'App.2-BA_Fixed Asset Cont'!M187) -> 444896.59 | G144: 90553811.7 | H144: 32.60671136 | I144: 0.03066853289 | J144: 2777152.553 | K144: =-'App.2-BA_Fixed Asset Cont'!L187 -> 2789882.89 | L144: 12730.33712 | M144: 0.004563036378
A145: 1835 | B145: Overhead Conductors & Devices | C145: ='App.2-BA_Fixed Asset Cont'!D188+'App.2-BA_Fixed Asset Cont'!K188 -> 61451752.19 | E145: ='App.2-BA_Fixed Asset Cont'!E188 -> 5962963.66 | F145: =-('App.2-BA_Fixed Asset Cont'!F188+'App.2-BA_Fixed Asset Cont'!M188) -> 160279 | G145: 64272955.02 | H145: 33.13112182 | I145: 0.03018310112 | J145: 1939957.1 | K145: =-'App.2-BA_Fixed Asset Cont'!L188 -> 1945949.72 | L145: 5992.61964 | M145: 0.003079534676
A146: 1840 | B146: Underground Conduit | C146: ='App.2-BA_Fixed Asset Cont'!D189+'App.2-BA_Fixed Asset Cont'!K189 -> 48379375.59 | E146: ='App.2-BA_Fixed Asset Cont'!E189 -> 3431792.73 | F146: =-('App.2-BA_Fixed Asset Cont'!F189+'App.2-BA_Fixed Asset Cont'!M189) -> 283500.72 | G146: 49811771.24 | H146: 49.95589212 | I146: 0.02001765873 | J146: 997115.0374 | K146: =-'App.2-BA_Fixed Asset Cont'!L189 -> 1003834.99 | L146: 6719.952573 | M146: 0.006694280076
A147: 1845 | B147: Underground Conductors & Devices | C147: ='App.2-BA_Fixed Asset Cont'!D190+'App.2-BA_Fixed Asset Cont'!K190 -> 73444483.98 | E147: ='App.2-BA_Fixed Asset Cont'!E190 -> 7034342.7 | F147: =-('App.2-BA_Fixed Asset Cont'!F190+'App.2-BA_Fixed Asset Cont'!M190) -> 459499.72 | G147: 76502155.61 | H147: 30.81272209 | I147: 0.03245412714 | J147: 2482810.684 | K147: =-'App.2-BA_Fixed Asset Cont'!L190 -> 2501373.15 | L147: 18562.46557 | M147: 0.007420910217
A148: 1850 | B148: Line Transformers | C148: ='App.2-BA_Fixed Asset Cont'!D191+'App.2-BA_Fixed Asset Cont'!K191 -> 52198726.3 | E148: ='App.2-BA_Fixed Asset Cont'!E191 -> 5723708.29 | F148: =-('App.2-BA_Fixed Asset Cont'!F191+'App.2-BA_Fixed Asset Cont'!M191) -> 323358.86 | G148: 54737221.58 | H148: 22.15624185 | I148: 0.04513400813 | J148: 2470510.204 | K148: =-'App.2-BA_Fixed Asset Cont'!L191 -> 2485626.47 | L148: 15116.26586 | M148: 0.006081471228
A149: 1855 | B149: Services (Overhead & Underground) | C149: ='App.2-BA_Fixed Asset Cont'!D192+'App.2-BA_Fixed Asset Cont'!K192 -> 38771068.86 | E149: ='App.2-BA_Fixed Asset Cont'!E192 -> 2904698.5 | F149: =-('App.2-BA_Fixed Asset Cont'!F192+'App.2-BA_Fixed Asset Cont'!M192) -> 0 | G149: 40223418.11 | H149: 33.65052907 | I149: 0.02971721479 | J149: 1195327.955 | K149: =-'App.2-BA_Fixed Asset Cont'!L192 -> 1195230.97 | L149: -96.98537093 | M149: -8.114362275e-05
A150: 1860 | B150: Meters | C150: ='App.2-BA_Fixed Asset Cont'!D193+'App.2-BA_Fixed Asset Cont'!K193 -> 2201451.32 | E150: ='App.2-BA_Fixed Asset Cont'!E193 -> 27870.73 | F150: =-('App.2-BA_Fixed Asset Cont'!F193+'App.2-BA_Fixed Asset Cont'!M193) -> 65663.46 | G150: 2149723.225 | H150: 18.05658709 | I150: 0.05538145139 | J150: 119054.7923 | K150: =-'App.2-BA_Fixed Asset Cont'!L193 -> 119825.48 | L150: 770.6877079 | M150: 0.006431751477
A151: 1860 | B151: Meters (Smart Meters) | C151: ='App.2-BA_Fixed Asset Cont'!D194+'App.2-BA_Fixed Asset Cont'!K194 -> 9263009.549 | E151: ='App.2-BA_Fixed Asset Cont'!E194 -> 879564.85 | F151: =-('App.2-BA_Fixed Asset Cont'!F194+'App.2-BA_Fixed Asset Cont'!M194) -> 33552.84 | G151: 9669239.134 | H151: 5.161692987 | I151: 0.1937348855 | J151: 1873268.937 | K151: =-'App.2-BA_Fixed Asset Cont'!L194 -> 1877275.14 | L151: 4006.203194 | M151: 0.002134052227
A152: 1865 | B152: Other Installations on Customers Premises | C152: ='App.2-BA_Fixed Asset Cont'!D195+'App.2-BA_Fixed Asset Cont'!K195 -> 0 | E152: ='App.2-BA_Fixed Asset Cont'!E195 -> 0 | F152: =-('App.2-BA_Fixed Asset Cont'!F195+'App.2-BA_Fixed Asset Cont'!M195) -> 0 | G152: 0 | I152: 0 | J152: 0 | K152: =-'App.2-BA_Fixed Asset Cont'!L195 -> 0 | L152: 0 | M152: 0
A153: 1905 | B153: Land | C153: ='App.2-BA_Fixed Asset Cont'!D196+'App.2-BA_Fixed Asset Cont'!K196 -> 1195031.32 | E153: ='App.2-BA_Fixed Asset Cont'!E196 -> -0.02000000002 | F153: =-('App.2-BA_Fixed Asset Cont'!F196+'App.2-BA_Fixed Asset Cont'!M196) -> 0 | G153: 1195031.31 | I153: 0 | J153: 0 | K153: =-'App.2-BA_Fixed Asset Cont'!L196 -> 0 | L153: 0 | M153: 0
A154: 1908 | B154: Buildings & Fixtures | C154: ='App.2-BA_Fixed Asset Cont'!D197+'App.2-BA_Fixed Asset Cont'!K197 -> 14745857.26 | E154: ='App.2-BA_Fixed Asset Cont'!E197 -> 5214434.38 | F154: =-('App.2-BA_Fixed Asset Cont'!F197+'App.2-BA_Fixed Asset Cont'!M197) -> 0 | G154: 17353074.45 | H154: 14.50923104 | I154: 0.0689216401 | J154: 1196002.352 | K154: =-'App.2-BA_Fixed Asset Cont'!L197 -> 1195904.46 | L154: -97.89191737 | M154: -8.185596813e-05
A155: 1910 | B155: Leasehold Improvements | C155: ='App.2-BA_Fixed Asset Cont'!D198+'App.2-BA_Fixed Asset Cont'!K198 -> 0 | E155: ='App.2-BA_Fixed Asset Cont'!E198 -> 0 | F155: =-('App.2-BA_Fixed Asset Cont'!F198+'App.2-BA_Fixed Asset Cont'!M198) -> 0 | G155: 0 | I155: 0 | J155: 0 | K155: =-'App.2-BA_Fixed Asset Cont'!L198 -> 0 | L155: 0 | M155: 0
A156: 1915 | B156: Office Furniture & Equipment (10 years) | C156: ='App.2-BA_Fixed Asset Cont'!D199+'App.2-BA_Fixed Asset Cont'!K199 -> 619563.46 | E156: ='App.2-BA_Fixed Asset Cont'!E199 -> 162420.69 | F156: =-('App.2-BA_Fixed Asset Cont'!F199+'App.2-BA_Fixed Asset Cont'!M199) -> 0 | G156: 700773.805 | H156: 5.861138847 | I156: 0.1706153064 | J156: 119562.7374 | K156: =-'App.2-BA_Fixed Asset Cont'!L199 -> 119562.47 | L156: -0.2674357498 | M156: -2.236786759e-06
A157: 1915 | B157: Office Furniture & Equipment (5 years) | C157: ='App.2-BA_Fixed Asset Cont'!D200+'App.2-BA_Fixed Asset Cont'!K200 -> 0 | E157: ='App.2-BA_Fixed Asset Cont'!E200 -> 0 | F157: =-('App.2-BA_Fixed Asset Cont'!F200+'App.2-BA_Fixed Asset Cont'!M200) -> 0 | G157: 0 | I157: 0 | J157: 0 | K157: =-'App.2-BA_Fixed Asset Cont'!L200 -> 0 | L157: 0 | M157: 0
A158: 1920 | B158: Computer Equipment - Hardware | C158: ='App.2-BA_Fixed Asset Cont'!D201+'App.2-BA_Fixed Asset Cont'!K201 -> 3209222.94 | E158: ='App.2-BA_Fixed Asset Cont'!E201 -> 2507697.9 | F158: =-('App.2-BA_Fixed Asset Cont'!F201+'App.2-BA_Fixed Asset Cont'!M201) -> 0 | G158: 4463071.89 | H158: 3.490903954 | I158: 0.2864587548 | J158: 1278486.016 | K158: =-'App.2-BA_Fixed Asset Cont'!L201 -> 1280115.2 | L158: 1629.183689 | M158: 0.001272685215
A159: 1920 | B159: Computer Equip.-Hardware(Post Mar. 22/04) | C159: ='App.2-BA_Fixed Asset Cont'!D202+'App.2-BA_Fixed Asset Cont'!K202 -> 0 | E159: ='App.2-BA_Fixed Asset Cont'!E202 -> 0 | F159: =-('App.2-BA_Fixed Asset Cont'!F202+'App.2-BA_Fixed Asset Cont'!M202) -> 0 | G159: 0 | I159: 0 | J159: 0 | K159: =-'App.2-BA_Fixed Asset Cont'!L202 -> 0 | L159: 0 | M159: 0
A160: 1920 | B160: Computer Equip.-Hardware(Post Mar. 19/07) | C160: ='App.2-BA_Fixed Asset Cont'!D203+'App.2-BA_Fixed Asset Cont'!K203 -> 0 | E160: ='App.2-BA_Fixed Asset Cont'!E203 -> 0 | F160: =-('App.2-BA_Fixed Asset Cont'!F203+'App.2-BA_Fixed Asset Cont'!M203) -> 0 | G160: 0 | I160: 0 | J160: 0 | K160: =-'App.2-BA_Fixed Asset Cont'!L203 -> 0 | L160: 0 | M160: 0
A161: 1930 | B161: Transportation Equipment | C161: ='App.2-BA_Fixed Asset Cont'!D204+'App.2-BA_Fixed Asset Cont'!K204 -> 5950812.44 | E161: ='App.2-BA_Fixed Asset Cont'!E204 -> 2455255.05 | F161: =-('App.2-BA_Fixed Asset Cont'!F204+'App.2-BA_Fixed Asset Cont'!M204) -> 0 | G161: 7178439.965 | H161: 7.340552373 | I161: 0.13622953 | J161: 977915.5028 | K161: =-'App.2-BA_Fixed Asset Cont'!L204 -> 978396.01 | L161: 480.5071925 | M161: 0.0004911172854
A162: 1935 | B162: Stores Equipment | C162: ='App.2-BA_Fixed Asset Cont'!D205+'App.2-BA_Fixed Asset Cont'!K205 -> 50325.48 | E162: ='App.2-BA_Fixed Asset Cont'!E205 -> 0 | F162: =-('App.2-BA_Fixed Asset Cont'!F205+'App.2-BA_Fixed Asset Cont'!M205) -> 0 | G162: 50325.48 | H162: 4.495890411 | I162: 0.2224253504 | J162: 11193.66252 | K162: =-'App.2-BA_Fixed Asset Cont'!L205 -> 11186.85 | L162: -6.812522852 | M162: -0.000608975972
A163: 1940 | B163: Tools, Shop & Garage Equipment | C163: ='App.2-BA_Fixed Asset Cont'!D206+'App.2-BA_Fixed Asset Cont'!K206 -> 1217981.39 | E163: ='App.2-BA_Fixed Asset Cont'!E206 -> 431334.32 | F163: =-('App.2-BA_Fixed Asset Cont'!F206+'App.2-BA_Fixed Asset Cont'!M206) -> 0 | G163: 1433648.55 | H163: 5.759927206 | I163: 0.1736133052 | J163: 248900.4633 | K163: =-'App.2-BA_Fixed Asset Cont'!L206 -> 247751.92 | L163: -1148.543262 | M163: -0.004635860186
A164: 1945 | B164: Measurement & Testing Equipment | C164: ='App.2-BA_Fixed Asset Cont'!D207+'App.2-BA_Fixed Asset Cont'!K207 -> 51251.28 | E164: ='App.2-BA_Fixed Asset Cont'!E207 -> 0 | F164: =-('App.2-BA_Fixed Asset Cont'!F207+'App.2-BA_Fixed Asset Cont'!M207) -> 0 | G164: 51251.28 | H164: 3.62539632 | I164: 0.2758319124 | J164: 14136.73857 | K164: =-'App.2-BA_Fixed Asset Cont'!L207 -> 14135.12 | L164: -1.618574282 | M164: -0.0001145072898
A165: 1950 | B165: Power Operated Equipment | C165: ='App.2-BA_Fixed Asset Cont'!D208+'App.2-BA_Fixed Asset Cont'!K208 -> 0 | E165: ='App.2-BA_Fixed Asset Cont'!E208 -> 0 | F165: =-('App.2-BA_Fixed Asset Cont'!F208+'App.2-BA_Fixed Asset Cont'!M208) -> 0 | G165: 0 | I165: 0 | J165: 0 | K165: =-'App.2-BA_Fixed Asset Cont'!L208 -> 0 | L165: 0 | M165: 0
A166: 1955 | B166: Communications Equipment | C166: ='App.2-BA_Fixed Asset Cont'!D209+'App.2-BA_Fixed Asset Cont'!K209 -> 655031.49 | E166: ='App.2-BA_Fixed Asset Cont'!E209 -> 339287.24 | F166: =-('App.2-BA_Fixed Asset Cont'!F209+'App.2-BA_Fixed Asset Cont'!M209) -> 0 | G166: 824675.11 | H166: 4.039164521 | I166: 0.2475759516 | J166: 204169.7251 | K166: =-'App.2-BA_Fixed Asset Cont'!L209 -> 204237.35 | L166: 67.62486812 | M166: 0.0003311092125
A167: 1955 | B167: Communication Equipment (Smart Meters) | C167: ='App.2-BA_Fixed Asset Cont'!D210+'App.2-BA_Fixed Asset Cont'!K210 -> 0 | E167: ='App.2-BA_Fixed Asset Cont'!E210 -> 0 | F167: =-('App.2-BA_Fixed Asset Cont'!F210+'App.2-BA_Fixed Asset Cont'!M210) -> 0 | G167: 0 | I167: 0 | J167: 0 | K167: =-'App.2-BA_Fixed Asset Cont'!L210 -> 0 | L167: 0 | M167: 0
A168: 1960 | B168: Miscellaneous Equipment | C168: ='App.2-BA_Fixed Asset Cont'!D211+'App.2-BA_Fixed Asset Cont'!K211 -> 201614.31 | E168: ='App.2-BA_Fixed Asset Cont'!E211 -> 25626.86 | F168: =-('App.2-BA_Fixed Asset Cont'!F211+'App.2-BA_Fixed Asset Cont'!M211) -> 0 | G168: 214427.74 | H168: 5.68435985 | I168: 0.1759213045 | J168: 37722.40774 | K168: =-'App.2-BA_Fixed Asset Cont'!L211 -> 37715.4 | L168: -7.007740916 | M168: -0.0001858058224
A169: 1970 | B169: Load Management Controls Customer Premises | C169: ='App.2-BA_Fixed Asset Cont'!D212+'App.2-BA_Fixed Asset Cont'!K212 -> 0 | E169: ='App.2-BA_Fixed Asset Cont'!E212 -> 0 | F169: =-('App.2-BA_Fixed Asset Cont'!F212+'App.2-BA_Fixed Asset Cont'!M212) -> 0 | G169: 0 | I169: 0 | J169: 0 | K169: =-'App.2-BA_Fixed Asset Cont'!L212 -> 0 | L169: 0 | M169: 0
A170: 1975 | B170: Load Management Controls Utility Premises | C170: ='App.2-BA_Fixed Asset Cont'!D213+'App.2-BA_Fixed Asset Cont'!K213 -> 0 | E170: ='App.2-BA_Fixed Asset Cont'!E213 -> 0 | F170: =-('App.2-BA_Fixed Asset Cont'!F213+'App.2-BA_Fixed Asset Cont'!M213) -> 0 | G170: 0 | I170: 0 | J170: 0 | K170: =-'App.2-BA_Fixed Asset Cont'!L213 -> 0 | L170: 0 | M170: 0
A171: 1980 | B171: System Supervisor Equipment | C171: ='App.2-BA_Fixed Asset Cont'!D214+'App.2-BA_Fixed Asset Cont'!K214 -> 4353812.939 | E171: ='App.2-BA_Fixed Asset Cont'!E214 -> 531740.7 | F171: =-('App.2-BA_Fixed Asset Cont'!F214+'App.2-BA_Fixed Asset Cont'!M214) -> 0 | G171: 4619683.289 | H171: 10.33634429 | I171: 0.09674600338 | J171: 446935.8951 | K171: =-'App.2-BA_Fixed Asset Cont'!L214 -> 446847.12 | L171: -88.77509057 | M171: -0.0001986699401
A172: 1985 | B172: Miscellaneous Fixed Assets | C172: ='App.2-BA_Fixed Asset Cont'!D215+'App.2-BA_Fixed Asset Cont'!K215 -> 0 | E172: ='App.2-BA_Fixed Asset Cont'!E215 -> 0 | F172: =-('App.2-BA_Fixed Asset Cont'!F215+'App.2-BA_Fixed Asset Cont'!M215) -> 0 | G172: 0 | I172: 0 | J172: 0 | K172: =-'App.2-BA_Fixed Asset Cont'!L215 -> 0 | L172: 0 | M172: 0
A173: 1990 | B173: Other Tangible Property | C173: ='App.2-BA_Fixed Asset Cont'!D216+'App.2-BA_Fixed Asset Cont'!K216 -> 0 | E173: ='App.2-BA_Fixed Asset Cont'!E216 -> 0 | F173: =-('App.2-BA_Fixed Asset Cont'!F216+'App.2-BA_Fixed Asset Cont'!M216) -> 0 | G173: 0 | I173: 0 | J173: 0 | K173: =-'App.2-BA_Fixed Asset Cont'!L216 -> 0 | L173: 0 | M173: 0
A174: 1995 | B174: Contributions & Grants | C174: ='App.2-BA_Fixed Asset Cont'!D217+'App.2-BA_Fixed Asset Cont'!K217 -> 0 | E174: ='App.2-BA_Fixed Asset Cont'!E217 -> 0 | F174: =-('App.2-BA_Fixed Asset Cont'!F217+'App.2-BA_Fixed Asset Cont'!M217) -> 0 | G174: 0 | I174: 0 | J174: 0 | K174: =-'App.2-BA_Fixed Asset Cont'!L217 -> 0 | L174: 0 | M174: 0
A175: 2075 | B175: Renewables (31) | C175: ='App.2-BA_Fixed Asset Cont'!D218+'App.2-BA_Fixed Asset Cont'!K218 -> 839960.56 | E175: ='App.2-BA_Fixed Asset Cont'!E218 -> 0.43 | F175: =-('App.2-BA_Fixed Asset Cont'!F218+'App.2-BA_Fixed Asset Cont'!M218) -> 0 | G175: 839960.775 | H175: 14.00767002 | I175: 0.07138946009 | J175: 59964.34623 | K175: =-'App.2-BA_Fixed Asset Cont'!L218 -> 57868.36 | L175: -2095.986226 | M175: -0.03621990023
A176: 2440 | B176: Deferred Revenue | C176: ='App.2-BA_Fixed Asset Cont'!D219+'App.2-BA_Fixed Asset Cont'!K219 -> -87638215.8 | E176: ='App.2-BA_Fixed Asset Cont'!E219 -> -12068411.39 | F176: =-('App.2-BA_Fixed Asset Cont'!F219+'App.2-BA_Fixed Asset Cont'!M219) -> -429497.69 | G176: -93242923.81 | H176: 37.38830505 | I176: 0.02674633147 | J176: -2493906.148 | K176: =-'App.2-BA_Fixed Asset Cont'!L219 -> -2506465.58 | L176: -12559.43244 | M176: 0.005010813849
A177: 2005 | B177: Property Under Finance Lease | C177: ='App.2-BA_Fixed Asset Cont'!D220+'App.2-BA_Fixed Asset Cont'!K220 -> 727722.13 | E177: ='App.2-BA_Fixed Asset Cont'!E220 -> 0 | F177: =-('App.2-BA_Fixed Asset Cont'!F220+'App.2-BA_Fixed Asset Cont'!M220) -> 0 | G177: 727722.13 | H177: 3.384494662 | I177: 0.2954650842 | J177: 215016.4804 | K177: =-'App.2-BA_Fixed Asset Cont'!L220 -> 216734.99 | L177: 1718.509619 | M177: 0.007929082512
B178: Total | C178: =SUM(C133:C177) -> 382762356.3 | D178: =SUM(D133:D177) -> 0 | E178: 38521572.4 | F178: 1355515.2 | G178: =SUM(G133:G177) -> 400667627.3 | J178: =SUM(J133:J177) -> 20774721.5 | K178: =SUM(K133:K177) -> 20821914.05 | L178: 47192.54979 | M178: 0.002266484708
E181: Year | F181: 2023
Q182: 2017
C183: Book Values | G183: Service Lives | I183: Depreciation Expense | Q183: 2018
A184: Account | B184: Description | C184: Opening Net Book Value of Assets | D184: Less Fully Depreciated 1 | E184: Current Year Additions | F184: Disposals (Net) | G184: Net Amount of Assets to be Depreciated | H184: Remaining Life of Assets Existing 2 | I184: Depreciation Rate Assets | J184: Depreciation Expense on Assets 3 | K184: Depreciation Expense per Appendix 2-BA Fixed Assets, Column K | L184: Variance 4 | M184: Variance %
C185: a | D185: b | E185: c | F185: d | G185: e = a-b+0.5*c-d | H185: f | I185: g = 1/f | J185: h = e/f | K185: i | L185: j = i-h | M185: k = j/i
A186: 1609 | B186: Capital Contributions Paid | C186: =SUM('App.2-BA_Fixed Asset Cont'!D247:E247)+SUM('App.2-BA_Fixed Asset Cont'!K247:L247) -> 1723765.75 | E186: ='App.2-BA_Fixed Asset Cont'!F247 -> 0 | F186: =-('App.2-BA_Fixed Asset Cont'!G247+'App.2-BA_Fixed Asset Cont'!N247) -> 0 | G186: =C186-D186+(E186*0.5)-F186 -> 1723765.75 | H186: 10.49589041 | I186: =IF(H186=0,0,1/H186) -> 0.09527538502 | J186: =IF(H186=0,0,+G186/H186) -> 164232.4455 | K186: =-'App.2-BA_Fixed Asset Cont'!M247 -> 164103.94 | L186: =IF(ISERROR(+K186-J186), 0, +K186-J186) -> -128.5055103 | M186: =IFERROR(L186/K186,0) -> -0.0007830738879
A187: 1610 | B187: Miscellaneous Intangible Plant | C187: =SUM('App.2-BA_Fixed Asset Cont'!D248:E248)+SUM('App.2-BA_Fixed Asset Cont'!K248:L248) -> 894428.99 | E187: ='App.2-BA_Fixed Asset Cont'!F248 -> 310063.1 | F187: =-('App.2-BA_Fixed Asset Cont'!G248+'App.2-BA_Fixed Asset Cont'!N248) -> 0 | G187: =C187-D187+(E187*0.5)-F187 -> 1049460.54 | H187: 2.999543412 | I187: =IF(H187=0,0,1/H187) -> 0.333384073 | J187: 349873.4293 | K187: =-'App.2-BA_Fixed Asset Cont'!M248 -> 350134.26 | L187: =IF(ISERROR(+K187-J187), 0, +K187-J187) -> 260.8306995 | M187: =IFERROR(L187/K187,0) -> 0.0007449448092
A188: 1611 | B188: Computer Software (Formally known as Account 1925) | C188: =SUM('App.2-BA_Fixed Asset Cont'!D249:E249)+SUM('App.2-BA_Fixed Asset Cont'!K249:L249) -> 3452776.14 | E188: ='App.2-BA_Fixed Asset Cont'!F249 -> 1843017.05 | F188: =-('App.2-BA_Fixed Asset Cont'!G249+'App.2-BA_Fixed Asset Cont'!N249) -> 0 | G188: =C188-D188+(E188*0.5)-F188 -> 4374284.665 | H188: 2.231418233 | I188: =IF(H188=0,0,1/H188) -> 0.4481454821 | J188: 1960315.91 | K188: =-'App.2-BA_Fixed Asset Cont'!M249 -> 1952593.58 | L188: =IF(ISERROR(+K188-J188), 0, +K188-J188) -> -7722.330143 | M188: =IFERROR(L188/K188,0) -> -0.003954909113
A189: 1612 | B189: Land Rights (Formally known as Account 1906) | C189: =SUM('App.2-BA_Fixed Asset Cont'!D250:E250)+SUM('App.2-BA_Fixed Asset Cont'!K250:L250) -> 357180.87 | E189: ='App.2-BA_Fixed Asset Cont'!F250 -> 0 | F189: =-('App.2-BA_Fixed Asset Cont'!G250+'App.2-BA_Fixed Asset Cont'!N250) -> 0 | G189: 357180.87 | H189: 29.0138618 | I189: =IF(H189=0,0,1/H189) -> 0.03446628398 | J189: 12310.6973 | K189: =-'App.2-BA_Fixed Asset Cont'!M250 -> 12301.75 | L189: =IF(ISERROR(+K189-J189), 0, +K189-J189) -> -8.947297442 | M189: -0.0007273190759
A190: 1805 | B190: Land | C190: =SUM('App.2-BA_Fixed Asset Cont'!D251:E251)+SUM('App.2-BA_Fixed Asset Cont'!K251:L251) -> 994989.53 | E190: ='App.2-BA_Fixed Asset Cont'!F251 -> 195630.36 | F190: =-('App.2-BA_Fixed Asset Cont'!G251+'App.2-BA_Fixed Asset Cont'!N251) -> 0 | G190: 1092804.71 | I190: 0 | J190: 0 | K190: =-'App.2-BA_Fixed Asset Cont'!M251 -> 0 | L190: 0 | M190: 0
A191: 1808 | B191: Buildings | C191: =SUM('App.2-BA_Fixed Asset Cont'!D252:E252)+SUM('App.2-BA_Fixed Asset Cont'!K252:L252) -> 207154.04 | E191: ='App.2-BA_Fixed Asset Cont'!F252 -> 0 | F191: =-('App.2-BA_Fixed Asset Cont'!G252+'App.2-BA_Fixed Asset Cont'!N252) -> 0 | G191: 207154.04 | H191: 21.62345507 | I191: 0.04624607847 | J191: 9580.06199 | K191: =-'App.2-BA_Fixed Asset Cont'!M252 -> 9573.82 | L191: -6.241989826 | M191: -0.0006519852917
A192: 1810 | B192: Leasehold Improvements | C192: =SUM('App.2-BA_Fixed Asset Cont'!D253:E253)+SUM('App.2-BA_Fixed Asset Cont'!K253:L253) -> 0 | E192: ='App.2-BA_Fixed Asset Cont'!F253 -> 0 | F192: =-('App.2-BA_Fixed Asset Cont'!G253+'App.2-BA_Fixed Asset Cont'!N253) -> 0 | G192: 0 | I192: 0 | J192: 0 | K192: =-'App.2-BA_Fixed Asset Cont'!M253 -> 0 | L192: 0 | M192: 0
A193: 1815 | B193: Transformer Station Equipment >50 kV | C193: =SUM('App.2-BA_Fixed Asset Cont'!D254:E254)+SUM('App.2-BA_Fixed Asset Cont'!K254:L254) -> 170891.69 | E193: ='App.2-BA_Fixed Asset Cont'!F254 -> 0 | F193: =-('App.2-BA_Fixed Asset Cont'!G254+'App.2-BA_Fixed Asset Cont'!N254) -> 0 | G193: 170891.69 | H193: 30.86005668 | I193: 0.03240434749 | J193: 5537.633705 | K193: =-'App.2-BA_Fixed Asset Cont'!M254 -> 5533.64 | L193: -3.993705263 | M193: -0.0007217139646
A194: 1820 | B194: Distribution Station Equipment <50 kV | C194: =SUM('App.2-BA_Fixed Asset Cont'!D255:E255)+SUM('App.2-BA_Fixed Asset Cont'!K255:L255) -> 54325594.84 | E194: ='App.2-BA_Fixed Asset Cont'!F255 -> 5073036.55 | F194: =-('App.2-BA_Fixed Asset Cont'!G255+'App.2-BA_Fixed Asset Cont'!N255) -> 27387.04 | G194: 56834726.07 | H194: 27.86602876 | I194: 0.03588598895 | J194: 2039570.352 | K194: =-'App.2-BA_Fixed Asset Cont'!M255 -> 2054117.63 | L194: 14547.2782 | M194: 0.007082008348
A195: 1825 | B195: Storage Battery Equipment | C195: =SUM('App.2-BA_Fixed Asset Cont'!D256:E256)+SUM('App.2-BA_Fixed Asset Cont'!K256:L256) -> 0 | E195: ='App.2-BA_Fixed Asset Cont'!F256 -> 0 | F195: =-('App.2-BA_Fixed Asset Cont'!G256+'App.2-BA_Fixed Asset Cont'!N256) -> 0 | G195: 0 | I195: 0 | J195: 0 | K195: =-'App.2-BA_Fixed Asset Cont'!M256 -> 0 | L195: 0 | M195: 0
A196: 1830 | B196: Poles, Towers & Fixtures | C196: =SUM('App.2-BA_Fixed Asset Cont'!D257:E257)+SUM('App.2-BA_Fixed Asset Cont'!K257:L257) -> 96694135.91 | E196: ='App.2-BA_Fixed Asset Cont'!F257 -> 11978595.62 | F196: =-('App.2-BA_Fixed Asset Cont'!G257+'App.2-BA_Fixed Asset Cont'!N257) -> 155639.72 | G196: 102527794 | H196: 32.60585133 | I196: 0.03066934183 | J196: 3144459.961 | K196: =-'App.2-BA_Fixed Asset Cont'!M257 -> 3148074.41 | L196: 3614.448798 | M196: 0.001148145923
A197: 1835 | B197: Overhead Conductors & Devices | C197: =SUM('App.2-BA_Fixed Asset Cont'!D258:E258)+SUM('App.2-BA_Fixed Asset Cont'!K258:L258) -> 65592556.86 | E197: ='App.2-BA_Fixed Asset Cont'!F258 -> 4949462.69 | F197: =-('App.2-BA_Fixed Asset Cont'!G258+'App.2-BA_Fixed Asset Cont'!N258) -> 117593.24 | G197: 67949694.96 | H197: 32.98768518 | I197: 0.03031434289 | J197: 2059850.353 | K197: =-'App.2-BA_Fixed Asset Cont'!M258 -> 2068736.86 | L197: 8886.50731 | M197: 0.004295619942
A198: 1840 | B198: Underground Conduit | C198: =SUM('App.2-BA_Fixed Asset Cont'!D259:E259)+SUM('App.2-BA_Fixed Asset Cont'!K259:L259) -> 50523832.61 | E198: ='App.2-BA_Fixed Asset Cont'!F259 -> 6281379.57 | F198: =-('App.2-BA_Fixed Asset Cont'!G259+'App.2-BA_Fixed Asset Cont'!N259) -> 256618.4 | G198: 53407904 | H198: 49.72771591 | I198: 0.02010950999 | J198: 1074006.779 | K198: =-'App.2-BA_Fixed Asset Cont'!M259 -> 1075875.8 | L198: 1869.020785 | M198: 0.001737208686
A199: 1845 | B199: Underground Conductors & Devices | C199: =SUM('App.2-BA_Fixed Asset Cont'!D260:E260)+SUM('App.2-BA_Fixed Asset Cont'!K260:L260) -> 77892663.93 | E199: ='App.2-BA_Fixed Asset Cont'!F260 -> 8257100.01 | F199: =-('App.2-BA_Fixed Asset Cont'!G260+'App.2-BA_Fixed Asset Cont'!N260) -> 425733.52 | G199: 81595480.41 | H199: 30.54885134 | I199: 0.03273445502 | J199: 2670983.583 | K199: =-'App.2-BA_Fixed Asset Cont'!M260 -> 2670669.81 | L199: -313.7730737 | M199: -0.0001174885314
A200: 1850 | B200: Line Transformers | C200: =SUM('App.2-BA_Fixed Asset Cont'!D261:E261)+SUM('App.2-BA_Fixed Asset Cont'!K261:L261) -> 55700921.43 | E200: ='App.2-BA_Fixed Asset Cont'!F261 -> 6732715.21 | F200: =-('App.2-BA_Fixed Asset Cont'!G261+'App.2-BA_Fixed Asset Cont'!N261) -> 241117.05 | G200: 58826161.98 | H200: 22.18168263 | I200: 0.0450822427 | J200: 2652015.312 | K200: =-'App.2-BA_Fixed Asset Cont'!M261 -> 2659217.02 | L200: 7201.708398 | M200: 0.002708206342
A201: 1855 | B201: Services (Overhead & Underground) | C201: =SUM('App.2-BA_Fixed Asset Cont'!D262:E262)+SUM('App.2-BA_Fixed Asset Cont'!K262:L262) -> 40562784.25 | E201: ='App.2-BA_Fixed Asset Cont'!F262 -> 4235835 | F201: =-('App.2-BA_Fixed Asset Cont'!G262+'App.2-BA_Fixed Asset Cont'!N262) -> 0 | G201: 42680701.75 | H201: 33.30179219 | I201: 0.03002841391 | J201: 1281633.778 | K201: =-'App.2-BA_Fixed Asset Cont'!M262 -> 1281128.66 | L201: -505.118229 | M201: -0.0003942759574
A202: 1860 | B202: Meters | C202: =SUM('App.2-BA_Fixed Asset Cont'!D263:E263)+SUM('App.2-BA_Fixed Asset Cont'!K263:L263) -> 2043833.11 | E202: ='App.2-BA_Fixed Asset Cont'!F263 -> 209471.9 | F202: =-('App.2-BA_Fixed Asset Cont'!G263+'App.2-BA_Fixed Asset Cont'!N263) -> 177.49 | G202: 2148391.57 | H202: 17.3534795 | I202: 0.057625331 | J202: 123801.7753 | K202: =-'App.2-BA_Fixed Asset Cont'!M263 -> 123221.78 | L202: -579.9953461 | M202: -0.004706922316
A203: 1860 | B203: Meters (Smart Meters) | C203: =SUM('App.2-BA_Fixed Asset Cont'!D264:E264)+SUM('App.2-BA_Fixed Asset Cont'!K264:L264) -> 8231746.419 | E203: ='App.2-BA_Fixed Asset Cont'!F264 -> 1393688.52 | F203: =-('App.2-BA_Fixed Asset Cont'!G264+'App.2-BA_Fixed Asset Cont'!N264) -> 1187.5 | G203: 8927403.179 | H203: 4.59036986 | I203: 0.2178473697 | J203: 1944811.301 | K203: =-'App.2-BA_Fixed Asset Cont'!M264 -> 1943852.16 | L203: -959.1408611 | M203: -0.0004934227411
A204: 1865 | B204: Other Installations on Customers Premises | C204: =SUM('App.2-BA_Fixed Asset Cont'!D265:E265)+SUM('App.2-BA_Fixed Asset Cont'!K265:L265) -> 0 | E204: ='App.2-BA_Fixed Asset Cont'!F265 -> 0 | F204: =-('App.2-BA_Fixed Asset Cont'!G265+'App.2-BA_Fixed Asset Cont'!N265) -> 0 | G204: 0 | I204: 0 | J204: 0 | K204: =-'App.2-BA_Fixed Asset Cont'!M265 -> 0 | L204: 0 | M204: 0
A205: 1905 | B205: Land | C205: =SUM('App.2-BA_Fixed Asset Cont'!D266:E266)+SUM('App.2-BA_Fixed Asset Cont'!K266:L266) -> 1195031.3 | E205: ='App.2-BA_Fixed Asset Cont'!F266 -> 0 | F205: =-('App.2-BA_Fixed Asset Cont'!G266+'App.2-BA_Fixed Asset Cont'!N266) -> 0 | G205: 1195031.3 | I205: 0 | J205: 0 | K205: =-'App.2-BA_Fixed Asset Cont'!M266 -> 0 | L205: 0 | M205: 0
A206: 1908 | B206: Buildings & Fixtures | C206: =SUM('App.2-BA_Fixed Asset Cont'!D267:E267)+SUM('App.2-BA_Fixed Asset Cont'!K267:L267) -> 18764387.18 | E206: ='App.2-BA_Fixed Asset Cont'!F267 -> 1290285.3 | F206: =-('App.2-BA_Fixed Asset Cont'!G267+'App.2-BA_Fixed Asset Cont'!N267) -> 0 | G206: 19409529.83 | H206: 14.57279925 | I206: 0.06862099608 | J206: 1331901.27 | K206: =-'App.2-BA_Fixed Asset Cont'!M267 -> 1331191.8 | L206: -709.470449 | M206: -0.0005329588486
A207: 1910 | B207: Leasehold Improvements | C207: =SUM('App.2-BA_Fixed Asset Cont'!D268:E268)+SUM('App.2-BA_Fixed Asset Cont'!K268:L268) -> 0 | E207: ='App.2-BA_Fixed Asset Cont'!F268 -> 0 | F207: =-('App.2-BA_Fixed Asset Cont'!G268+'App.2-BA_Fixed Asset Cont'!N268) -> 0 | G207: 0 | I207: 0 | J207: 0 | K207: =-'App.2-BA_Fixed Asset Cont'!M268 -> 0 | L207: 0 | M207: 0
A208: 1915 | B208: Office Furniture & Equipment (10 years) | C208: =SUM('App.2-BA_Fixed Asset Cont'!D269:E269)+SUM('App.2-BA_Fixed Asset Cont'!K269:L269) -> 662421.68 | E208: ='App.2-BA_Fixed Asset Cont'!F269 -> 68714.52 | F208: =-('App.2-BA_Fixed Asset Cont'!G269+'App.2-BA_Fixed Asset Cont'!N269) -> 0 | G208: 696778.94 | H208: 5.468358851 | I208: 0.1828702225 | J208: 127420.1198 | K208: =-'App.2-BA_Fixed Asset Cont'!M269 -> 127361.62 | L208: -58.49981521 | M208: -0.000459320596
A209: 1915 | B209: Office Furniture & Equipment (5 years) | C209: =SUM('App.2-BA_Fixed Asset Cont'!D270:E270)+SUM('App.2-BA_Fixed Asset Cont'!K270:L270) -> 0 | E209: ='App.2-BA_Fixed Asset Cont'!F270 -> 0 | F209: =-('App.2-BA_Fixed Asset Cont'!G270+'App.2-BA_Fixed Asset Cont'!N270) -> 0 | G209: 0 | I209: 0 | J209: 0 | K209: =-'App.2-BA_Fixed Asset Cont'!M270 -> 0 | L209: 0 | M209: 0
A210: 1920 | B210: Computer Equipment - Hardware | C210: =SUM('App.2-BA_Fixed Asset Cont'!D271:E271)+SUM('App.2-BA_Fixed Asset Cont'!K271:L271) -> 4436805.64 | E210: ='App.2-BA_Fixed Asset Cont'!F271 -> 1529499.68 | F210: =-('App.2-BA_Fixed Asset Cont'!G271+'App.2-BA_Fixed Asset Cont'!N271) -> 0 | G210: 5201555.48 | H210: 3.346547774 | I210: 0.2988153965 | J210: 1554304.863 | K210: =-'App.2-BA_Fixed Asset Cont'!M271 -> 1544745.59 | L210: -9559.273307 | M210: -0.006188250913
A211: 1920 | B211: Computer Equip.-Hardware(Post Mar. 22/04) | C211: =SUM('App.2-BA_Fixed Asset Cont'!D272:E272)+SUM('App.2-BA_Fixed Asset Cont'!K272:L272) -> 0 | E211: ='App.2-BA_Fixed Asset Cont'!F272 -> 0 | F211: =-('App.2-BA_Fixed Asset Cont'!G272+'App.2-BA_Fixed Asset Cont'!N272) -> 0 | G211: 0 | I211: 0 | J211: 0 | K211: =-'App.2-BA_Fixed Asset Cont'!M272 -> 0 | L211: 0 | M211: 0
... 424 more rows
